Workbook

Sheet Menu
B4: PLANILHA DE CUSTOS SISTEMA DE BALSAS
B5: Morada Nova de Minas
C9: I. Encargos Sociais e Trabalhistas | F9: 1. Custo com pessoal
F10: 1.1 Custo com pessoal mensal
F11: 1.2. Salários por Cargo
F12: 1.3. Custo Pessoal Mensal
F14: 2. Planilha de custo operação Balsas
F15: 3. Planilha de custo Manutenção Veículos e Máquinas
F16: 4. Custo com Outros Materiais de Operação
F17: 5. Planilha de custo com serviços terceirizados
F18: 6. Custos Gerais
F20: 7. Planilha de apropriação de custo
F22: 9. Capacidade Instalada
F23: 10. Estatísticas dos Portos
C24: a. Volume e Faturamento do Serviço
F25: 11. Cálculo da Tarifa dos Serviços de Transporte

Sheet Encargos Folha
B54: Resumo dos Encargos
B55: GRUPO A | C55: 0.38 | D55: 0.38
B56: GRUPO B | C56: 0.183 | D56: 0.183
B57: GRUPO C | C57: 0.1161 | D57: 0.1161
B58: GRUPO D | C58: 0.0741 | D58: 0.0741
B59: Total | C59: 0.7532 | D59: 0.7532

Sheet Custo Pessoal
A1: Voltar ao Menu
A2: 1.1 PLANILHA DE CUSTO PESSOAL
A4: Referência: | B4: 2018-10-01
F5: SALÁRIO (R$) | N5: BENEFÍCIOS | P5: INSUMOS | R5: 0.7532
A6: ORDEM | B6: MATRÍCULA | C6: NOME | D6: LOTAÇÃO | E6: CARGO/FUNÇÃO | F6: Base | G6: Anuênio | H6: Adicional Periculosidade | I6: Adicional Insalubridade | J6: Adicional Noturno | K6: Horas Extras | L6: Outros Valores | M6: Total | N6: Convênio Saúde | O6: SEGURO | P6: UNIFORME | Q6: Total | R6: Encargos Sociais | S6: TOTAL
A7: 1 | D7: ADMINISTRAÇÃO | E7: ASSISTENTE ADMINISTRATIVO | F7: 954 | M7: =SUM(F7:L7) -> 954 | N7: 91.08 | O7: 16.2 | Q7: =SUM(N7:P7) -> 107.28 | R7: =(M7)*$R$5 -> 718.5528 | S7: =M7+Q7+R7 -> 1779.8328
A8: 2 | D8: ADMINISTRAÇÃO | E8: GERENTE ADMNISTRATIVO | F8: 2862 | M8: 2862 | N8: 91.08 | O8: 16.2 | Q8: 107.28 | R8: =(M8)*$R$5 -> 2155.6584 | S8: 5124.9384
A9: 3 | D9: INDAIÁ DE CIMA | E9: MESTRE.FLUV.DE CONVES | F9: 2016.409091 | M9: 2016.409091 | N9: 91.08 | O9: 16.2 | P9: 47.43 | Q9: 154.71 | R9: 1518.759327 | S9: 3689.878418
A10: 4 | D10: INDAIÁ DE CIMA | E10: MAR.FLUV.DE CONVES | F10: 1613.127273 | M10: 1613.127273 | N10: 91.08 | O10: 16.2 | P10: 47.43 | Q10: 154.71 | R10: 1215.007462 | S10: 2982.844735
A11: 5 | D11: INDAIÁ DE CIMA | E11: MAR.FLUV.DE CONVES | F11: 1613.127273 | M11: 1613.127273 | N11: 91.08 | O11: 16.2 | P11: 47.43 | Q11: 154.71 | R11: =(M11)*$R$5 -> 1215.007462 | S11: 2982.844735
A12: 6 | D12: INDAIÁ DE CIMA | E12: MAR.FLUV.DE CONVES | F12: 1613.127273 | M12: =SUM(F12:L12) -> 1613.127273 | N12: 91.08 | O12: 16.2 | P12: 47.43 | Q12: =SUM(N12:P12) -> 154.71 | R12: 1215.007462 | S12: =M12+Q12+R12 -> 2982.844735
A13: 7 | D13: MELANCIAS | E13: MESTRE.FLUV.DE CONVES | F13: 2016.409091 | J13: 183.31 | M13: 2199.719091 | N13: 91.08 | O13: 16.2 | P13: 47.43 | Q13: 154.71 | R13: 1656.828419 | S13: 4011.25751
A14: 8 | D14: MELANCIAS | E14: MESTRE.FLUV.DE CONVES | F14: 2016.409091 | J14: 183.31 | M14: 2199.719091 | N14: 91.08 | O14: 16.2 | P14: 47.43 | Q14: 154.71 | R14: 1656.828419 | S14: 4011.25751
A15: 9 | D15: MELANCIAS | E15: MESTRE.FLUV.DE CONVES | F15: 2016.409091 | J15: 183.31 | M15: =SUM(F15:L15) -> 2199.719091 | N15: 91.08 | O15: 16.2 | P15: 47.43 | Q15: =SUM(N15:P15) -> 154.71 | R15: =(M15)*$R$5 -> 1656.828419 | S15: =M15+Q15+R15 -> 4011.25751
A16: 10 | D16: MELANCIAS | E16: MESTRE.FLUV.DE CONVES | F16: 2016.409091 | J16: 183.31 | M16: 2199.719091 | N16: 91.08 | O16: 16.2 | P16: 47.43 | Q16: 154.71 | R16: 1656.828419 | S16: 4011.25751
A17: 11 | D17: MELANCIAS | E17: MESTRE.FLUV.DE CONVES | F17: 2016.409091 | J17: 183.31 | M17: 2199.719091 | N17: 91.08 | O17: 16.2 | P17: 47.43 | Q17: 154.71 | R17: 1656.828419 | S17: 4011.25751
A18: 12 | D18: MELANCIAS | E18: MAR.FLUV.DE CONVES | F18: 1613.127273 | J18: 150.79 | M18: 1763.917273 | N18: 91.08 | O18: 16.2 | P18: 47.43 | Q18: 154.71 | R18: 1328.58249 | S18: 3247.209763
A19: 13 | D19: MELANCIAS | E19: MAR.FLUV.DE CONVES | F19: 1613.127273 | J19: 150.79 | M19: 1763.917273 | N19: 91.08 | O19: 16.2 | P19: 47.43 | Q19: 154.71 | R19: 1328.58249 | S19: 3247.209763
A20: 14 | D20: MELANCIAS | E20: MAR.FLUV.DE CONVES | F20: 1613.127273 | J20: 150.79 | M20: 1763.917273 | N20: 91.08 | O20: 16.2 | P20: 47.43 | Q20: 154.71 | R20: 1328.58249 | S20: 3247.209763
A21: 15 | D21: MELANCIAS | E21: MAR.FLUV.DE CONVES | F21: 1613.127273 | J21: 150.79 | M21: 1763.917273 | N21: 91.08 | O21: 16.2 | P21: 47.43 | Q21: 154.71 | R21: 1328.58249 | S21: 3247.209763
A22: 16 | D22: MELANCIAS | E22: MAR.FLUV.DE CONVES | F22: 1613.127273 | J22: 150.79 | M22: 1763.917273 | N22: 91.08 | O22: 16.2 | P22: 47.43 | Q22: 154.71 | R22: 1328.58249 | S22: 3247.209763
A23: 17 | D23: MELANCIAS | E23: MAR.FLUV.DE CONVES | F23: 1613.127273 | M23: 1613.127273 | N23: 91.08 | O23: 16.2 | P23: 47.43 | Q23: 154.71 | R23: 1215.007462 | S23: 2982.844735
A24: 18 | D24: MELANCIAS | E24: MAR.FLUV.DE CONVES | F24: 1613.127273 | M24: 1613.127273 | N24: 91.08 | O24: 16.2 | P24: 47.43 | Q24: 154.71 | R24: 1215.007462 | S24: 2982.844735
A25: 19 | D25: MELANCIAS | E25: MAR.FLUV.DE CONVES | F25: 1613.127273 | M25: 1613.127273 | N25: 91.08 | O25: 16.2 | P25: 47.43 | Q25: 154.71 | R25: 1215.007462 | S25: 2982.844735
A26: 20 | D26: INDAIÁ DE BAIXO | E26: MESTRE.FLUV.DE CONVES | F26: 2016.409091 | M26: 2016.409091 | N26: 91.08 | O26: 16.2 | P26: 47.43 | Q26: 154.71 | R26: 1518.759327 | S26: 3689.878418
A27: 21 | D27: INDAIÁ DE BAIXO | E27: MAR.FLUV.DE CONVES | F27: 1613.127273 | M27: =SUM(F27:L27) -> 1613.127273 | N27: 91.08 | O27: 16.2 | P27: 47.43 | Q27: =SUM(N27:P27) -> 154.71 | R27: 1215.007462 | S27: =M27+Q27+R27 -> 2982.844735
A28: 22 | D28: INDAIÁ DE BAIXO | E28: MAR.FLUV.DE CONVES | F28: 1613.127273 | M28: 1613.127273 | N28: 91.08 | O28: 16.2 | P28: 47.43 | Q28: =SUM(N28:P28) -> 154.71 | R28: 1215.007462 | S28: 2982.844735
A29: 23 | D29: SÃO VINCENTE | E29: MESTRE.FLUV.DE CONVES | F29: 2016.409091 | M29: 2016.409091 | N29: 91.08 | O29: 16.2 | P29: 47.43 | Q29: =SUM(N29:P29) -> 154.71 | R29: 1518.759327 | S29: 3689.878418
A30: 24 | D30: SÃO VINCENTE | E30: MAR.FLUV.DE CONVES | F30: 1613.127273 | M30: 1613.127273 | N30: 91.08 | O30: 16.2 | P30: 47.43 | Q30: =SUM(N30:P30) -> 154.71 | R30: 1215.007462 | S30: =M30+Q30+R30 -> 2982.844735
A31: 25 | D31: SÃO VINCENTE | E31: MAR.FLUV.DE CONVES | F31: 1613.127273 | M31: =SUM(F31:L31) -> 1613.127273 | N31: 91.08 | O31: 16.2 | P31: 47.43 | Q31: 154.71 | R31: 1215.007462 | S31: 2982.844735
A32: 26 | D32: MANUTENÇÃO | E32: SOLDADOR | F32: 2337.85 | I32: 467.57 | M32: =SUM(F32:L32) -> 2805.42 | N32: 91.08 | O32: 16.2 | P32: 47.43 | Q32: =SUM(N32:P32) -> 154.71 | R32: =(M32)*$R$5 -> 2113.042344 | S32: =M32+Q32+R32 -> 5073.172344
A33: 27 | D33: MANUTENÇÃO | E33: MOTORISTA | F33: 1429.52 | I33: 285.904 | M33: =SUM(F33:L33) -> 1715.424 | N33: 91.08 | O33: 16.2 | P33: 47.43 | Q33: =SUM(N33:P33) -> 154.71 | R33: =(M33)*$R$5 -> 1292.057357 | S33: =M33+Q33+R33 -> 3162.191357
M34: =SUM(F34:L34) -> 0 | Q34: =SUM(N34:P34) -> 0 | R34: =(M34)*$R$5 -> 0 | S34: =M34+Q34+R34 -> 0
A35: TOTAL GERAL | F35: =SUM(F7:F34) -> 47911.55182 | G35: =SUM(G7:G34) -> 0 | H35: 0 | I35: 753.474 | J35: 1670.5 | K35: 0 | L35: 0 | M35: 50335.52582 | N35: 2459.16 | O35: 437.4 | P35: 1185.75 | Q35: 4082.31 | R35: 37912.71805 | S35: 92330.55386

Sheet saláriosxencargos
A1: Voltar ao Menu
A2: 1.2. CUSTO PESSOAL POR SETOR
A3: =Menu!B5 -> Morada Nova de Minas
A4: LOTAÇÃO | B4: CARGO/FUNÇÃO | C4: Qtde | D4: Salário Base | E4: Anuênio | F4: Periculosidade | G4: Insalubridade | H4: Adicional Noturno | I4: Horas Extras | J4: Outros Valores | K4: Total Mensal | L4: Convênio Saúde | M4: SEGURO | N4: UNIFORME | O4: Total
A5: ADMINISTRAÇÃO | B5: ASSISTENTE ADMINISTRATIVO | C5: =COUNTIFS('Custo Pessoal'!$D$7:$D$34,A5,'Custo Pessoal'!$E$7:$E$34,B5) -> 1 | D5: =SUM(IF('Custo Pessoal'!$D$7:$D$34=$A5,IF('Custo Pessoal'!$E$7:$E$34=$B5,'Custo Pessoal'!$F$7:$F$34))) -> 954 | E5: =SUM(IF('Custo Pessoal'!$D$7:$D$34=$A5,IF('Custo Pessoal'!$E$7:$E$34=$B5,'Custo Pessoal'!G$7:G$34))) -> 0 | F5: =SUM(IF('Custo Pessoal'!$D$7:$D$34=$A5,IF('Custo Pessoal'!$E$7:$E$34=$B5,'Custo Pessoal'!H$7:H$34))) -> 0 | G5: =SUM(IF('Custo Pessoal'!$D$7:$D$34=$A5,IF('Custo Pessoal'!$E$7:$E$34=$B5,'Custo Pessoal'!I$7:I$34))) -> 0 | H5: =SUM(IF('Custo Pessoal'!$D$7:$D$34=$A5,IF('Custo Pessoal'!$E$7:$E$34=$B5,'Custo Pessoal'!J$7:J$34))) -> 0 | I5: =SUM(IF('Custo Pessoal'!$D$7:$D$34=$A5,IF('Custo Pessoal'!$E$7:$E$34=$B5,'Custo Pessoal'!K$7:K$34))) -> 0 | J5: =SUM(IF('Custo Pessoal'!$D$7:$D$34=$A5,IF('Custo Pessoal'!$E$7:$E$34=$B5,'Custo Pessoal'!L$7:L$34))) -> 0 | K5: =SUM(D5:J5) -> 954 | L5: =SUM(IF('Custo Pessoal'!$D$7:$D$34=$A5,IF('Custo Pessoal'!$E$7:$E$34=$B5,'Custo Pessoal'!N$7:N$34))) -> 91.08 | M5: =SUM(IF('Custo Pessoal'!$D$7:$D$34=$A5,IF('Custo Pessoal'!$E$7:$E$34=$B5,'Custo Pessoal'!O$7:O$34))) -> 16.2 | N5: =SUM(IF('Custo Pessoal'!$D$7:$D$34=$A5,IF('Custo Pessoal'!$E$7:$E$34=$B5,'Custo Pessoal'!P$7:P$34))) -> 0 | O5: =SUM(L5:N5) -> 107.28
A6: =A5 -> ADMINISTRAÇÃO | B6: SERVICOS GERAIS-FEMININO | C6: =COUNTIFS('Custo Pessoal'!$D$7:$D$34,A6,'Custo Pessoal'!$E$7:$E$34,B6) -> 0 | D6: =SUM(IF('Custo Pessoal'!$D$7:$D$34=$A6,IF('Custo Pessoal'!$E$7:$E$34=$B6,'Custo Pessoal'!$F$7:$F$34))) -> 0 | E6: =SUM(IF('Custo Pessoal'!$D$7:$D$34=$A6,IF('Custo Pessoal'!$E$7:$E$34=$B6,'Custo Pessoal'!G$7:G$34))) -> 0 | F6: =SUM(IF('Custo Pessoal'!$D$7:$D$34=$A6,IF('Custo Pessoal'!$E$7:$E$34=$B6,'Custo Pessoal'!H$7:H$34))) -> 0 | G6: =SUM(IF('Custo Pessoal'!$D$7:$D$34=$A6,IF('Custo Pessoal'!$E$7:$E$34=$B6,'Custo Pessoal'!I$7:I$34))) -> 0 | H6: =SUM(IF('Custo Pessoal'!$D$7:$D$34=$A6,IF('Custo Pessoal'!$E$7:$E$34=$B6,'Custo Pessoal'!J$7:J$34))) -> 0 | I6: =SUM(IF('Custo Pessoal'!$D$7:$D$34=$A6,IF('Custo Pessoal'!$E$7:$E$34=$B6,'Custo Pessoal'!K$7:K$34))) -> 0 | J6: =SUM(IF('Custo Pessoal'!$D$7:$D$34=$A6,IF('Custo Pessoal'!$E$7:$E$34=$B6,'Custo Pessoal'!L$7:L$34))) -> 0 | K6: =SUM(D6:J6) -> 0 | L6: =SUM(IF('Custo Pessoal'!$D$7:$D$34=$A6,IF('Custo Pessoal'!$E$7:$E$34=$B6,'Custo Pessoal'!N$7:N$34))) -> 0 | M6: =SUM(IF('Custo Pessoal'!$D$7:$D$34=$A6,IF('Custo Pessoal'!$E$7:$E$34=$B6,'Custo Pessoal'!O$7:O$34))) -> 0 | N6: =SUM(IF('Custo Pessoal'!$D$7:$D$34=$A6,IF('Custo Pessoal'!$E$7:$E$34=$B6,'Custo Pessoal'!P$7:P$34))) -> 0 | O6: =SUM(L6:N6) -> 0
A7: =A6 -> ADMINISTRAÇÃO | B7: GERENTE ADMNISTRATIVO | C7: =COUNTIFS('Custo Pessoal'!$D$7:$D$34,A7,'Custo Pessoal'!$E$7:$E$34,B7) -> 1 | D7: =SUM(IF('Custo Pessoal'!$D$7:$D$34=$A7,IF('Custo Pessoal'!$E$7:$E$34=$B7,'Custo Pessoal'!$F$7:$F$34))) -> 2862 | E7: =SUM(IF('Custo Pessoal'!$D$7:$D$34=$A7,IF('Custo Pessoal'!$E$7:$E$34=$B7,'Custo Pessoal'!G$7:G$34))) -> 0 | F7: =SUM(IF('Custo Pessoal'!$D$7:$D$34=$A7,IF('Custo Pessoal'!$E$7:$E$34=$B7,'Custo Pessoal'!H$7:H$34))) -> 0 | G7: =SUM(IF('Custo Pessoal'!$D$7:$D$34=$A7,IF('Custo Pessoal'!$E$7:$E$34=$B7,'Custo Pessoal'!I$7:I$34))) -> 0 | H7: =SUM(IF('Custo Pessoal'!$D$7:$D$34=$A7,IF('Custo Pessoal'!$E$7:$E$34=$B7,'Custo Pessoal'!J$7:J$34))) -> 0 | I7: =SUM(IF('Custo Pessoal'!$D$7:$D$34=$A7,IF('Custo Pessoal'!$E$7:$E$34=$B7,'Custo Pessoal'!K$7:K$34))) -> 0 | J7: =SUM(IF('Custo Pessoal'!$D$7:$D$34=$A7,IF('Custo Pessoal'!$E$7:$E$34=$B7,'Custo Pessoal'!L$7:L$34))) -> 0 | K7: 2862 | L7: =SUM(IF('Custo Pessoal'!$D$7:$D$34=$A7,IF('Custo Pessoal'!$E$7:$E$34=$B7,'Custo Pessoal'!N$7:N$34))) -> 91.08 | M7: =SUM(IF('Custo Pessoal'!$D$7:$D$34=$A7,IF('Custo Pessoal'!$E$7:$E$34=$B7,'Custo Pessoal'!O$7:O$34))) -> 16.2 | N7: =SUM(IF('Custo Pessoal'!$D$7:$D$34=$A7,IF('Custo Pessoal'!$E$7:$E$34=$B7,'Custo Pessoal'!P$7:P$34))) -> 0 | O7: =SUM(L7:N7) -> 107.28
A8: ADMINISTRAÇÃO Total | C8: =SUM(C5:C7) -> 2 | D8: =SUM(D5:D7) -> 3816 | E8: =SUM(E5:E7) -> 0 | F8: 0 | G8: 0 | H8: 0 | I8: 0 | J8: 0 | K8: =SUM(K5:K7) -> 3816 | L8: =SUM(L5:L7) -> 182.16 | M8: =SUM(M5:M7) -> 32.4 | N8: =SUM(N5:N7) -> 0 | O8: =SUM(O5:O7) -> 214.56
A9: EXTREMA | B9: MESTRE.FLUV.DE CONVES | C9: =COUNTIFS('Custo Pessoal'!$D$7:$D$34,A9,'Custo Pessoal'!$E$7:$E$34,B9) -> 0 | D9: =SUM(IF('Custo Pessoal'!$D$7:$D$34=$A9,IF('Custo Pessoal'!$E$7:$E$34=$B9,'Custo Pessoal'!$F$7:$F$34))) -> 0 | F9: =SUM(IF('Custo Pessoal'!$D$7:$D$34=$A9,IF('Custo Pessoal'!$E$7:$E$34=$B9,'Custo Pessoal'!H$7:H$34))) -> 0 | I9: =SUM(IF('Custo Pessoal'!$D$7:$D$34=$A9,IF('Custo Pessoal'!$E$7:$E$34=$B9,'Custo Pessoal'!K$7:K$34))) -> 0 | K9: 0
A10: EXTREMA | B10: MAR.FLUV.DE CONVES | C10: =COUNTIFS('Custo Pessoal'!$D$7:$D$34,A10,'Custo Pessoal'!$E$7:$E$34,B10) -> 0 | D10: =SUM(IF('Custo Pessoal'!$D$7:$D$34=$A10,IF('Custo Pessoal'!$E$7:$E$34=$B10,'Custo Pessoal'!$F$7:$F$34))) -> 0 | E10: =SUM(IF('Custo Pessoal'!$D$7:$D$34=$A10,IF('Custo Pessoal'!$E$7:$E$34=$B10,'Custo Pessoal'!G$7:G$34))) -> 0 | F10: =SUM(IF('Custo Pessoal'!$D$7:$D$34=$A10,IF('Custo Pessoal'!$E$7:$E$34=$B10,'Custo Pessoal'!H$7:H$34))) -> 0 | G10: =SUM(IF('Custo Pessoal'!$D$7:$D$34=$A10,IF('Custo Pessoal'!$E$7:$E$34=$B10,'Custo Pessoal'!I$7:I$34))) -> 0 | H10: =SUM(IF('Custo Pessoal'!$D$7:$D$34=$A10,IF('Custo Pessoal'!$E$7:$E$34=$B10,'Custo Pessoal'!J$7:J$34))) -> 0 | I10: =SUM(IF('Custo Pessoal'!$D$7:$D$34=$A10,IF('Custo Pessoal'!$E$7:$E$34=$B10,'Custo Pessoal'!K$7:K$34))) -> 0 | J10: =SUM(IF('Custo Pessoal'!$D$7:$D$34=$A10,IF('Custo Pessoal'!$E$7:$E$34=$B10,'Custo Pessoal'!L$7:L$34))) -> 0 | K10: 0 | L10: =SUM(IF('Custo Pessoal'!$D$7:$D$34=$A10,IF('Custo Pessoal'!$E$7:$E$34=$B10,'Custo Pessoal'!N$7:N$34))) -> 0 | M10: =SUM(IF('Custo Pessoal'!$D$7:$D$34=$A10,IF('Custo Pessoal'!$E$7:$E$34=$B10,'Custo Pessoal'!O$7:O$34))) -> 0 | N10: =SUM(IF('Custo Pessoal'!$D$7:$D$34=$A10,IF('Custo Pessoal'!$E$7:$E$34=$B10,'Custo Pessoal'!P$7:P$34))) -> 0 | O10: =SUM(L10:N10) -> 0
A11: EXTREMA Total | C11: =SUM(C9:C10) -> 0 | D11: =SUM(D9:D10) -> 0 | E11: =E10 -> 0 | F11: 0 | G11: 0 | H11: 0 | I11: 0 | J11: 0 | K11: =SUM(K9:K10) -> 0 | L11: =L10 -> 0 | M11: =M10 -> 0 | N11: =N10 -> 0 | O11: =O10 -> 0
A12: INDAIÁ DE BAIXO | B12: MESTRE.FLUV.DE CONVES | C12: =COUNTIFS('Custo Pessoal'!$D$7:$D$34,A12,'Custo Pessoal'!$E$7:$E$34,B12) -> 1 | D12: =SUM(IF('Custo Pessoal'!$D$7:$D$34=$A12,IF('Custo Pessoal'!$E$7:$E$34=$B12,'Custo Pessoal'!$F$7:$F$34))) -> 2016.409091 | F12: =SUM(IF('Custo Pessoal'!$D$7:$D$34=$A12,IF('Custo Pessoal'!$E$7:$E$34=$B12,'Custo Pessoal'!H$7:H$34))) -> 0 | I12: =SUM(IF('Custo Pessoal'!$D$7:$D$34=$A12,IF('Custo Pessoal'!$E$7:$E$34=$B12,'Custo Pessoal'!K$7:K$34))) -> 0 | K12: 2016.409091 | L12: =SUM(IF('Custo Pessoal'!$D$7:$D$34=$A12,IF('Custo Pessoal'!$E$7:$E$34=$B12,'Custo Pessoal'!N$7:N$34))) -> 91.08 | M12: =SUM(IF('Custo Pessoal'!$D$7:$D$34=$A12,IF('Custo Pessoal'!$E$7:$E$34=$B12,'Custo Pessoal'!O$7:O$34))) -> 16.2 | N12: =SUM(IF('Custo Pessoal'!$D$7:$D$34=$A12,IF('Custo Pessoal'!$E$7:$E$34=$B12,'Custo Pessoal'!P$7:P$34))) -> 47.43 | O12: =SUM(L12:N12) -> 154.71
A13: INDAIÁ DE BAIXO | B13: MAR.FLUV.DE CONVES | C13: =COUNTIFS('Custo Pessoal'!$D$7:$D$34,A13,'Custo Pessoal'!$E$7:$E$34,B13) -> 2 | D13: =SUM(IF('Custo Pessoal'!$D$7:$D$34=$A13,IF('Custo Pessoal'!$E$7:$E$34=$B13,'Custo Pessoal'!$F$7:$F$34))) -> 3226.254545 | E13: =SUM(IF('Custo Pessoal'!$D$7:$D$34=$A13,IF('Custo Pessoal'!$E$7:$E$34=$B13,'Custo Pessoal'!G$7:G$34))) -> 0 | F13: =SUM(IF('Custo Pessoal'!$D$7:$D$34=$A13,IF('Custo Pessoal'!$E$7:$E$34=$B13,'Custo Pessoal'!H$7:H$34))) -> 0 | G13: =SUM(IF('Custo Pessoal'!$D$7:$D$34=$A13,IF('Custo Pessoal'!$E$7:$E$34=$B13,'Custo Pessoal'!I$7:I$34))) -> 0 | H13: =SUM(IF('Custo Pessoal'!$D$7:$D$34=$A13,IF('Custo Pessoal'!$E$7:$E$34=$B13,'Custo Pessoal'!J$7:J$34))) -> 0 | I13: =SUM(IF('Custo Pessoal'!$D$7:$D$34=$A13,IF('Custo Pessoal'!$E$7:$E$34=$B13,'Custo Pessoal'!K$7:K$34))) -> 0 | J13: =SUM(IF('Custo Pessoal'!$D$7:$D$34=$A13,IF('Custo Pessoal'!$E$7:$E$34=$B13,'Custo Pessoal'!L$7:L$34))) -> 0 | K13: 3226.254545 | L13: =SUM(IF('Custo Pessoal'!$D$7:$D$34=$A13,IF('Custo Pessoal'!$E$7:$E$34=$B13,'Custo Pessoal'!N$7:N$34))) -> 182.16 | M13: =SUM(IF('Custo Pessoal'!$D$7:$D$34=$A13,IF('Custo Pessoal'!$E$7:$E$34=$B13,'Custo Pessoal'!O$7:O$34))) -> 32.4 | N13: =SUM(IF('Custo Pessoal'!$D$7:$D$34=$A13,IF('Custo Pessoal'!$E$7:$E$34=$B13,'Custo Pessoal'!P$7:P$34))) -> 94.86 | O13: =SUM(L13:N13) -> 309.42
A14: INDAIÁ DE BAIXO Total | C14: =SUM(C12:C13) -> 3 | D14: =SUM(D12:D13) -> 5242.663636 | E14: =E13 -> 0 | F14: 0 | G14: 0 | H14: 0 | I14: 0 | J14: 0 | K14: =SUM(K12:K13) -> 5242.663636 | L14: 182.16 | M14: 32.4 | N14: 94.86 | O14: =SUM(O11:O13) -> 464.13
A15: INDAIÁ DE CIMA | B15: MESTRE.FLUV.DE CONVES | C15: =COUNTIFS('Custo Pessoal'!$D$7:$D$34,A15,'Custo Pessoal'!$E$7:$E$34,B15) -> 1 | D15: =SUM(IF('Custo Pessoal'!$D$7:$D$34=$A15,IF('Custo Pessoal'!$E$7:$E$34=$B15,'Custo Pessoal'!$F$7:$F$34))) -> 2016.409091 | F15: =SUM(IF('Custo Pessoal'!$D$7:$D$34=$A15,IF('Custo Pessoal'!$E$7:$E$34=$B15,'Custo Pessoal'!H$7:H$34))) -> 0 | I15: =SUM(IF('Custo Pessoal'!$D$7:$D$34=$A15,IF('Custo Pessoal'!$E$7:$E$34=$B15,'Custo Pessoal'!K$7:K$34))) -> 0 | K15: 2016.409091 | L15: =SUM(IF('Custo Pessoal'!$D$7:$D$34=$A15,IF('Custo Pessoal'!$E$7:$E$34=$B15,'Custo Pessoal'!N$7:N$34))) -> 91.08 | M15: =SUM(IF('Custo Pessoal'!$D$7:$D$34=$A15,IF('Custo Pessoal'!$E$7:$E$34=$B15,'Custo Pessoal'!O$7:O$34))) -> 16.2 | N15: =SUM(IF('Custo Pessoal'!$D$7:$D$34=$A15,IF('Custo Pessoal'!$E$7:$E$34=$B15,'Custo Pessoal'!P$7:P$34))) -> 47.43 | O15: =SUM(L15:N15) -> 154.71
A16: INDAIÁ DE CIMA | B16: MAR.FLUV.DE CONVES | C16: =COUNTIFS('Custo Pessoal'!$D$7:$D$34,A16,'Custo Pessoal'!$E$7:$E$34,B16) -> 3 | D16: =SUM(IF('Custo Pessoal'!$D$7:$D$34=$A16,IF('Custo Pessoal'!$E$7:$E$34=$B16,'Custo Pessoal'!$F$7:$F$34))) -> 4839.381818 | E16: =SUM(IF('Custo Pessoal'!$D$7:$D$34=$A16,IF('Custo Pessoal'!$E$7:$E$34=$B16,'Custo Pessoal'!G$7:G$34))) -> 0 | F16: =SUM(IF('Custo Pessoal'!$D$7:$D$34=$A16,IF('Custo Pessoal'!$E$7:$E$34=$B16,'Custo Pessoal'!H$7:H$34))) -> 0 | G16: =SUM(IF('Custo Pessoal'!$D$7:$D$34=$A16,IF('Custo Pessoal'!$E$7:$E$34=$B16,'Custo Pessoal'!I$7:I$34))) -> 0 | H16: =SUM(IF('Custo Pessoal'!$D$7:$D$34=$A16,IF('Custo Pessoal'!$E$7:$E$34=$B16,'Custo Pessoal'!J$7:J$34))) -> 0 | I16: =SUM(IF('Custo Pessoal'!$D$7:$D$34=$A16,IF('Custo Pessoal'!$E$7:$E$34=$B16,'Custo Pessoal'!K$7:K$34))) -> 0 | J16: =SUM(IF('Custo Pessoal'!$D$7:$D$34=$A16,IF('Custo Pessoal'!$E$7:$E$34=$B16,'Custo Pessoal'!L$7:L$34))) -> 0 | K16: 4839.381818 | L16: =SUM(IF('Custo Pessoal'!$D$7:$D$34=$A16,IF('Custo Pessoal'!$E$7:$E$34=$B16,'Custo Pessoal'!N$7:N$34))) -> 273.24 | M16: =SUM(IF('Custo Pessoal'!$D$7:$D$34=$A16,IF('Custo Pessoal'!$E$7:$E$34=$B16,'Custo Pessoal'!O$7:O$34))) -> 48.6 | N16: =SUM(IF('Custo Pessoal'!$D$7:$D$34=$A16,IF('Custo Pessoal'!$E$7:$E$34=$B16,'Custo Pessoal'!P$7:P$34))) -> 142.29 | O16: =SUM(L16:N16) -> 464.13
A17: INDAIÁ DE CIMA Total | C17: =SUM(C15:C16) -> 4 | D17: =SUM(D15:D16) -> 6855.790909 | E17: =E16 -> 0 | F17: 0 | G17: 0 | H17: 0 | I17: 0 | J17: 0 | K17: =SUM(K15:K16) -> 6855.790909 | L17: 273.24 | M17: 48.6 | N17: 142.29 | O17: 464.13
K18: 0
A19: MANUTENÇÃO | B19: AUXILIAR MECANICO | C19: =COUNTIFS('Custo Pessoal'!$D$7:$D$34,A19,'Custo Pessoal'!$E$7:$E$34,B19) -> 0 | D19: =SUM(IF('Custo Pessoal'!$D$7:$D$34=$A19,IF('Custo Pessoal'!$E$7:$E$34=$B19,'Custo Pessoal'!$F$7:$F$34))) -> 0 | E19: =SUM(IF('Custo Pessoal'!$D$7:$D$34=$A19,IF('Custo Pessoal'!$E$7:$E$34=$B19,'Custo Pessoal'!G$7:G$34))) -> 0 | F19: =SUM(IF('Custo Pessoal'!$D$7:$D$34=$A19,IF('Custo Pessoal'!$E$7:$E$34=$B19,'Custo Pessoal'!H$7:H$34))) -> 0 | G19: =SUM(IF('Custo Pessoal'!$D$7:$D$34=$A19,IF('Custo Pessoal'!$E$7:$E$34=$B19,'Custo Pessoal'!I$7:I$34))) -> 0 | H19: =SUM(IF('Custo Pessoal'!$D$7:$D$34=$A19,IF('Custo Pessoal'!$E$7:$E$34=$B19,'Custo Pessoal'!J$7:J$34))) -> 0 | I19: =SUM(IF('Custo Pessoal'!$D$7:$D$34=$A19,IF('Custo Pessoal'!$E$7:$E$34=$B19,'Custo Pessoal'!K$7:K$34))) -> 0 | J19: =SUM(IF('Custo Pessoal'!$D$7:$D$34=$A19,IF('Custo Pessoal'!$E$7:$E$34=$B19,'Custo Pessoal'!L$7:L$34))) -> 0 | K19: 0 | L19: =SUM(IF('Custo Pessoal'!$D$7:$D$34=$A19,IF('Custo Pessoal'!$E$7:$E$34=$B19,'Custo Pessoal'!N$7:N$34))) -> 0 | M19: =SUM(IF('Custo Pessoal'!$D$7:$D$34=$A19,IF('Custo Pessoal'!$E$7:$E$34=$B19,'Custo Pessoal'!O$7:O$34))) -> 0 | N19: =SUM(IF('Custo Pessoal'!$D$7:$D$34=$A19,IF('Custo Pessoal'!$E$7:$E$34=$B19,'Custo Pessoal'!P$7:P$34))) -> 0 | O19: =SUM(L19:N19) -> 0
A20: =A19 -> MANUTENÇÃO | B20: MECANICO | C20: =COUNTIFS('Custo Pessoal'!$D$7:$D$34,A20,'Custo Pessoal'!$E$7:$E$34,B20) -> 0 | D20: =SUM(IF('Custo Pessoal'!$D$7:$D$34=$A20,IF('Custo Pessoal'!$E$7:$E$34=$B20,'Custo Pessoal'!$F$7:$F$34))) -> 0 | E20: =SUM(IF('Custo Pessoal'!$D$7:$D$34=$A20,IF('Custo Pessoal'!$E$7:$E$34=$B20,'Custo Pessoal'!G$7:G$34))) -> 0 | F20: =SUM(IF('Custo Pessoal'!$D$7:$D$34=$A20,IF('Custo Pessoal'!$E$7:$E$34=$B20,'Custo Pessoal'!H$7:H$34))) -> 0 | G20: =SUM(IF('Custo Pessoal'!$D$7:$D$34=$A20,IF('Custo Pessoal'!$E$7:$E$34=$B20,'Custo Pessoal'!I$7:I$34))) -> 0 | H20: =SUM(IF('Custo Pessoal'!$D$7:$D$34=$A20,IF('Custo Pessoal'!$E$7:$E$34=$B20,'Custo Pessoal'!J$7:J$34))) -> 0 | I20: =SUM(IF('Custo Pessoal'!$D$7:$D$34=$A20,IF('Custo Pessoal'!$E$7:$E$34=$B20,'Custo Pessoal'!K$7:K$34))) -> 0 | J20: =SUM(IF('Custo Pessoal'!$D$7:$D$34=$A20,IF('Custo Pessoal'!$E$7:$E$34=$B20,'Custo Pessoal'!L$7:L$34))) -> 0 | K20: 0 | L20: =SUM(IF('Custo Pessoal'!$D$7:$D$34=$A20,IF('Custo Pessoal'!$E$7:$E$34=$B20,'Custo Pessoal'!N$7:N$34))) -> 0 | M20: =SUM(IF('Custo Pessoal'!$D$7:$D$34=$A20,IF('Custo Pessoal'!$E$7:$E$34=$B20,'Custo Pessoal'!O$7:O$34))) -> 0 | N20: =SUM(IF('Custo Pessoal'!$D$7:$D$34=$A20,IF('Custo Pessoal'!$E$7:$E$34=$B20,'Custo Pessoal'!P$7:P$34))) -> 0 | O20: 0
A21: MANUTENÇÃO | B21: MOTORISTA | C21: =COUNTIFS('Custo Pessoal'!$D$7:$D$34,A21,'Custo Pessoal'!$E$7:$E$34,B21) -> 1 | D21: =SUM(IF('Custo Pessoal'!$D$7:$D$34=$A21,IF('Custo Pessoal'!$E$7:$E$34=$B21,'Custo Pessoal'!$F$7:$F$34))) -> 1429.52 | E21: =SUM(IF('Custo Pessoal'!$D$7:$D$34=$A21,IF('Custo Pessoal'!$E$7:$E$34=$B21,'Custo Pessoal'!G$7:G$34))) -> 0 | F21: =SUM(IF('Custo Pessoal'!$D$7:$D$34=$A21,IF('Custo Pessoal'!$E$7:$E$34=$B21,'Custo Pessoal'!H$7:H$34))) -> 0 | G21: =SUM(IF('Custo Pessoal'!$D$7:$D$34=$A21,IF('Custo Pessoal'!$E$7:$E$34=$B21,'Custo Pessoal'!I$7:I$34))) -> 285.904 | H21: =SUM(IF('Custo Pessoal'!$D$7:$D$34=$A21,IF('Custo Pessoal'!$E$7:$E$34=$B21,'Custo Pessoal'!J$7:J$34))) -> 0 | I21: =SUM(IF('Custo Pessoal'!$D$7:$D$34=$A21,IF('Custo Pessoal'!$E$7:$E$34=$B21,'Custo Pessoal'!K$7:K$34))) -> 0 | J21: =SUM(IF('Custo Pessoal'!$D$7:$D$34=$A21,IF('Custo Pessoal'!$E$7:$E$34=$B21,'Custo Pessoal'!L$7:L$34))) -> 0 | K21: 1715.424 | L21: =SUM(IF('Custo Pessoal'!$D$7:$D$34=$A21,IF('Custo Pessoal'!$E$7:$E$34=$B21,'Custo Pessoal'!N$7:N$34))) -> 91.08 | M21: =SUM(IF('Custo Pessoal'!$D$7:$D$34=$A21,IF('Custo Pessoal'!$E$7:$E$34=$B21,'Custo Pessoal'!O$7:O$34))) -> 16.2 | N21: =SUM(IF('Custo Pessoal'!$D$7:$D$34=$A21,IF('Custo Pessoal'!$E$7:$E$34=$B21,'Custo Pessoal'!P$7:P$34))) -> 47.43 | O21: 154.71
A22: MANUTENÇÃO | B22: OFICIAL DE SERVIÇOS | C22: =COUNTIFS('Custo Pessoal'!$D$7:$D$34,A22,'Custo Pessoal'!$E$7:$E$34,B22) -> 0 | D22: =SUM(IF('Custo Pessoal'!$D$7:$D$34=$A22,IF('Custo Pessoal'!$E$7:$E$34=$B22,'Custo Pessoal'!$F$7:$F$34))) -> 0 | E22: =SUM(IF('Custo Pessoal'!$D$7:$D$34=$A22,IF('Custo Pessoal'!$E$7:$E$34=$B22,'Custo Pessoal'!G$7:G$34))) -> 0 | F22: =SUM(IF('Custo Pessoal'!$D$7:$D$34=$A22,IF('Custo Pessoal'!$E$7:$E$34=$B22,'Custo Pessoal'!H$7:H$34))) -> 0 | G22: =SUM(IF('Custo Pessoal'!$D$7:$D$34=$A22,IF('Custo Pessoal'!$E$7:$E$34=$B22,'Custo Pessoal'!I$7:I$34))) -> 0 | H22: =SUM(IF('Custo Pessoal'!$D$7:$D$34=$A22,IF('Custo Pessoal'!$E$7:$E$34=$B22,'Custo Pessoal'!J$7:J$34))) -> 0 | I22: =SUM(IF('Custo Pessoal'!$D$7:$D$34=$A22,IF('Custo Pessoal'!$E$7:$E$34=$B22,'Custo Pessoal'!K$7:K$34))) -> 0 | J22: =SUM(IF('Custo Pessoal'!$D$7:$D$34=$A22,IF('Custo Pessoal'!$E$7:$E$34=$B22,'Custo Pessoal'!L$7:L$34))) -> 0 | K22: 0 | L22: =SUM(IF('Custo Pessoal'!$D$7:$D$34=$A22,IF('Custo Pessoal'!$E$7:$E$34=$B22,'Custo Pessoal'!N$7:N$34))) -> 0 | M22: =SUM(IF('Custo Pessoal'!$D$7:$D$34=$A22,IF('Custo Pessoal'!$E$7:$E$34=$B22,'Custo Pessoal'!O$7:O$34))) -> 0 | N22: =SUM(IF('Custo Pessoal'!$D$7:$D$34=$A22,IF('Custo Pessoal'!$E$7:$E$34=$B22,'Custo Pessoal'!P$7:P$34))) -> 0 | O22: 0
A23: MANUTENÇÃO | B23: OPERADOR DE MAQUINAS | C23: =COUNTIFS('Custo Pessoal'!$D$7:$D$34,A23,'Custo Pessoal'!$E$7:$E$34,B23) -> 0 | D23: =SUM(IF('Custo Pessoal'!$D$7:$D$34=$A23,IF('Custo Pessoal'!$E$7:$E$34=$B23,'Custo Pessoal'!$F$7:$F$34))) -> 0 | E23: =SUM(IF('Custo Pessoal'!$D$7:$D$34=$A23,IF('Custo Pessoal'!$E$7:$E$34=$B23,'Custo Pessoal'!G$7:G$34))) -> 0 | F23: =SUM(IF('Custo Pessoal'!$D$7:$D$34=$A23,IF('Custo Pessoal'!$E$7:$E$34=$B23,'Custo Pessoal'!H$7:H$34))) -> 0 | G23: =SUM(IF('Custo Pessoal'!$D$7:$D$34=$A23,IF('Custo Pessoal'!$E$7:$E$34=$B23,'Custo Pessoal'!I$7:I$34))) -> 0 | H23: =SUM(IF('Custo Pessoal'!$D$7:$D$34=$A23,IF('Custo Pessoal'!$E$7:$E$34=$B23,'Custo Pessoal'!J$7:J$34))) -> 0 | I23: =SUM(IF('Custo Pessoal'!$D$7:$D$34=$A23,IF('Custo Pessoal'!$E$7:$E$34=$B23,'Custo Pessoal'!K$7:K$34))) -> 0 | J23: =SUM(IF('Custo Pessoal'!$D$7:$D$34=$A23,IF('Custo Pessoal'!$E$7:$E$34=$B23,'Custo Pessoal'!L$7:L$34))) -> 0 | K23: 0 | L23: =SUM(IF('Custo Pessoal'!$D$7:$D$34=$A23,IF('Custo Pessoal'!$E$7:$E$34=$B23,'Custo Pessoal'!N$7:N$34))) -> 0 | M23: =SUM(IF('Custo Pessoal'!$D$7:$D$34=$A23,IF('Custo Pessoal'!$E$7:$E$34=$B23,'Custo Pessoal'!O$7:O$34))) -> 0 | N23: =SUM(IF('Custo Pessoal'!$D$7:$D$34=$A23,IF('Custo Pessoal'!$E$7:$E$34=$B23,'Custo Pessoal'!P$7:P$34))) -> 0 | O23: 0
A24: MANUTENÇÃO | B24: SOLDADOR | C24: =COUNTIFS('Custo Pessoal'!$D$7:$D$34,A24,'Custo Pessoal'!$E$7:$E$34,B24) -> 1 | D24: =SUM(IF('Custo Pessoal'!$D$7:$D$34=$A24,IF('Custo Pessoal'!$E$7:$E$34=$B24,'Custo Pessoal'!$F$7:$F$34))) -> 2337.85 | E24: =SUM(IF('Custo Pessoal'!$D$7:$D$34=$A24,IF('Custo Pessoal'!$E$7:$E$34=$B24,'Custo Pessoal'!G$7:G$34))) -> 0 | F24: =SUM(IF('Custo Pessoal'!$D$7:$D$34=$A24,IF('Custo Pessoal'!$E$7:$E$34=$B24,'Custo Pessoal'!H$7:H$34))) -> 0 | G24: =SUM(IF('Custo Pessoal'!$D$7:$D$34=$A24,IF('Custo Pessoal'!$E$7:$E$34=$B24,'Custo Pessoal'!I$7:I$34))) -> 467.57 | H24: =SUM(IF('Custo Pessoal'!$D$7:$D$34=$A24,IF('Custo Pessoal'!$E$7:$E$34=$B24,'Custo Pessoal'!J$7:J$34))) -> 0 | I24: =SUM(IF('Custo Pessoal'!$D$7:$D$34=$A24,IF('Custo Pessoal'!$E$7:$E$34=$B24,'Custo Pessoal'!K$7:K$34))) -> 0 | J24: =SUM(IF('Custo Pessoal'!$D$7:$D$34=$A24,IF('Custo Pessoal'!$E$7:$E$34=$B24,'Custo Pessoal'!L$7:L$34))) -> 0 | K24: 2805.42 | L24: =SUM(IF('Custo Pessoal'!$D$7:$D$34=$A24,IF('Custo Pessoal'!$E$7:$E$34=$B24,'Custo Pessoal'!N$7:N$34))) -> 91.08 | M24: =SUM(IF('Custo Pessoal'!$D$7:$D$34=$A24,IF('Custo Pessoal'!$E$7:$E$34=$B24,'Custo Pessoal'!O$7:O$34))) -> 16.2 | N24: =SUM(IF('Custo Pessoal'!$D$7:$D$34=$A24,IF('Custo Pessoal'!$E$7:$E$34=$B24,'Custo Pessoal'!P$7:P$34))) -> 47.43 | O24: 154.71
A25: MANUTENÇÃO | B25: VIGILANTE | C25: =COUNTIFS('Custo Pessoal'!$D$7:$D$34,A25,'Custo Pessoal'!$E$7:$E$34,B25) -> 0 | D25: =SUM(IF('Custo Pessoal'!$D$7:$D$34=$A25,IF('Custo Pessoal'!$E$7:$E$34=$B25,'Custo Pessoal'!$F$7:$F$34))) -> 0 | E25: =SUM(IF('Custo Pessoal'!$D$7:$D$34=$A25,IF('Custo Pessoal'!$E$7:$E$34=$B25,'Custo Pessoal'!G$7:G$34))) -> 0 | F25: =SUM(IF('Custo Pessoal'!$D$7:$D$34=$A25,IF('Custo Pessoal'!$E$7:$E$34=$B25,'Custo Pessoal'!H$7:H$34))) -> 0 | G25: =SUM(IF('Custo Pessoal'!$D$7:$D$34=$A25,IF('Custo Pessoal'!$E$7:$E$34=$B25,'Custo Pessoal'!I$7:I$34))) -> 0 | H25: =SUM(IF('Custo Pessoal'!$D$7:$D$34=$A25,IF('Custo Pessoal'!$E$7:$E$34=$B25,'Custo Pessoal'!J$7:J$34))) -> 0 | I25: =SUM(IF('Custo Pessoal'!$D$7:$D$34=$A25,IF('Custo Pessoal'!$E$7:$E$34=$B25,'Custo Pessoal'!K$7:K$34))) -> 0 | J25: =SUM(IF('Custo Pessoal'!$D$7:$D$34=$A25,IF('Custo Pessoal'!$E$7:$E$34=$B25,'Custo Pessoal'!L$7:L$34))) -> 0 | K25: 0 | L25: =SUM(IF('Custo Pessoal'!$D$7:$D$34=$A25,IF('Custo Pessoal'!$E$7:$E$34=$B25,'Custo Pessoal'!N$7:N$34))) -> 0 | M25: =SUM(IF('Custo Pessoal'!$D$7:$D$34=$A25,IF('Custo Pessoal'!$E$7:$E$34=$B25,'Custo Pessoal'!O$7:O$34))) -> 0 | N25: =SUM(IF('Custo Pessoal'!$D$7:$D$34=$A25,IF('Custo Pessoal'!$E$7:$E$34=$B25,'Custo Pessoal'!P$7:P$34))) -> 0 | O25: 0
A26: MANUTENÇÃO Total | C26: =SUM(C19:C25) -> 2 | D26: =SUM(D19:D25) -> 3767.37 | E26: =SUM(E19:E25) -> 0 | F26: 0 | G26: 753.474 | H26: 0 | I26: 0 | J26: 0 | K26: 4520.844 | L26: =SUM(L19:L25) -> 182.16 | M26: =SUM(M19:M25) -> 32.4 | N26: =SUM(N19:N25) -> 94.86 | O26: =SUM(O19:O25) -> 309.42
A27: MELANCIAS | B27: MESTRE.FLUV.DE CONVES | C27: =COUNTIFS('Custo Pessoal'!$D$7:$D$34,A27,'Custo Pessoal'!$E$7:$E$34,B27) -> 5 | D27: =SUM(IF('Custo Pessoal'!$D$7:$D$34=$A27,IF('Custo Pessoal'!$E$7:$E$34=$B27,'Custo Pessoal'!$F$7:$F$34))) -> 10082.04545 | F27: =SUM(IF('Custo Pessoal'!$D$7:$D$34=$A27,IF('Custo Pessoal'!$E$7:$E$34=$B27,'Custo Pessoal'!H$7:H$34))) -> 0 | H27: =SUM(IF('Custo Pessoal'!$D$7:$D$34=$A27,IF('Custo Pessoal'!$E$7:$E$34=$B27,'Custo Pessoal'!J$7:J$34))) -> 916.55 | I27: =SUM(IF('Custo Pessoal'!$D$7:$D$34=$A27,IF('Custo Pessoal'!$E$7:$E$34=$B27,'Custo Pessoal'!K$7:K$34))) -> 0 | K27: 10998.59545 | L27: =SUM(IF('Custo Pessoal'!$D$7:$D$34=$A27,IF('Custo Pessoal'!$E$7:$E$34=$B27,'Custo Pessoal'!N$7:N$34))) -> 455.4 | M27: =SUM(IF('Custo Pessoal'!$D$7:$D$34=$A27,IF('Custo Pessoal'!$E$7:$E$34=$B27,'Custo Pessoal'!O$7:O$34))) -> 81 | N27: =SUM(IF('Custo Pessoal'!$D$7:$D$34=$A27,IF('Custo Pessoal'!$E$7:$E$34=$B27,'Custo Pessoal'!P$7:P$34))) -> 237.15 | O27: =SUM(L27:N27) -> 773.55
A28: MELANCIAS | B28: MAR.FLUV.DE CONVES | C28: =COUNTIFS('Custo Pessoal'!$D$7:$D$34,A28,'Custo Pessoal'!$E$7:$E$34,B28) -> 8 | D28: =SUM(IF('Custo Pessoal'!$D$7:$D$34=$A28,IF('Custo Pessoal'!$E$7:$E$34=$B28,'Custo Pessoal'!$F$7:$F$34))) -> 12905.01818 | E28: =SUM(IF('Custo Pessoal'!$D$7:$D$34=$A28,IF('Custo Pessoal'!$E$7:$E$34=$B28,'Custo Pessoal'!G$7:G$34))) -> 0 | F28: =SUM(IF('Custo Pessoal'!$D$7:$D$34=$A28,IF('Custo Pessoal'!$E$7:$E$34=$B28,'Custo Pessoal'!H$7:H$34))) -> 0 | G28: =SUM(IF('Custo Pessoal'!$D$7:$D$34=$A28,IF('Custo Pessoal'!$E$7:$E$34=$B28,'Custo Pessoal'!I$7:I$34))) -> 0 | H28: =SUM(IF('Custo Pessoal'!$D$7:$D$34=$A28,IF('Custo Pessoal'!$E$7:$E$34=$B28,'Custo Pessoal'!J$7:J$34))) -> 753.95 | I28: =SUM(IF('Custo Pessoal'!$D$7:$D$34=$A28,IF('Custo Pessoal'!$E$7:$E$34=$B28,'Custo Pessoal'!K$7:K$34))) -> 0 | J28: =SUM(IF('Custo Pessoal'!$D$7:$D$34=$A28,IF('Custo Pessoal'!$E$7:$E$34=$B28,'Custo Pessoal'!L$7:L$34))) -> 0 | K28: 13658.96818 | L28: =SUM(IF('Custo Pessoal'!$D$7:$D$34=$A28,IF('Custo Pessoal'!$E$7:$E$34=$B28,'Custo Pessoal'!N$7:N$34))) -> 728.64 | M28: =SUM(IF('Custo Pessoal'!$D$7:$D$34=$A28,IF('Custo Pessoal'!$E$7:$E$34=$B28,'Custo Pessoal'!O$7:O$34))) -> 129.6 | N28: =SUM(IF('Custo Pessoal'!$D$7:$D$34=$A28,IF('Custo Pessoal'!$E$7:$E$34=$B28,'Custo Pessoal'!P$7:P$34))) -> 379.44 | O28: =SUM(L28:N28) -> 1237.68
A29: MELANCIAS Total | C29: =SUM(C27:C28) -> 13 | D29: =SUM(D27:D28) -> 22987.06364 | E29: =E28 -> 0 | F29: 0 | G29: 0 | H29: =H28+H27 -> 1670.5 | I29: 0 | J29: 0 | K29: =SUM(K27:K28) -> 24657.56364 | L29: 728.64 | M29: 129.6 | N29: 379.44 | O29: =O28+O27 -> 2011.23
A30: NOVO | B30: MESTRE.FLUV.DE CONVES | C30: =COUNTIFS('Custo Pessoal'!$D$7:$D$34,A30,'Custo Pessoal'!$E$7:$E$34,B30) -> 0 | D30: =SUM(IF('Custo Pessoal'!$D$7:$D$34=$A30,IF('Custo Pessoal'!$E$7:$E$34=$B30,'Custo Pessoal'!$F$7:$F$34))) -> 0 | F30: =SUM(IF('Custo Pessoal'!$D$7:$D$34=$A30,IF('Custo Pessoal'!$E$7:$E$34=$B30,'Custo Pessoal'!H$7:H$34))) -> 0 | I30: =SUM(IF('Custo Pessoal'!$D$7:$D$34=$A30,IF('Custo Pessoal'!$E$7:$E$34=$B30,'Custo Pessoal'!K$7:K$34))) -> 0 | K30: 0
A31: NOVO | B31: MAR.FLUV.DE CONVES | C31: =COUNTIFS('Custo Pessoal'!$D$7:$D$34,A31,'Custo Pessoal'!$E$7:$E$34,B31) -> 0 | D31: =SUM(IF('Custo Pessoal'!$D$7:$D$34=$A31,IF('Custo Pessoal'!$E$7:$E$34=$B31,'Custo Pessoal'!$F$7:$F$34))) -> 0 | E31: =SUM(IF('Custo Pessoal'!$D$7:$D$34=$A31,IF('Custo Pessoal'!$E$7:$E$34=$B31,'Custo Pessoal'!G$7:G$34))) -> 0 | F31: =SUM(IF('Custo Pessoal'!$D$7:$D$34=$A31,IF('Custo Pessoal'!$E$7:$E$34=$B31,'Custo Pessoal'!H$7:H$34))) -> 0 | G31: =SUM(IF('Custo Pessoal'!$D$7:$D$34=$A31,IF('Custo Pessoal'!$E$7:$E$34=$B31,'Custo Pessoal'!I$7:I$34))) -> 0 | H31: =SUM(IF('Custo Pessoal'!$D$7:$D$34=$A31,IF('Custo Pessoal'!$E$7:$E$34=$B31,'Custo Pessoal'!J$7:J$34))) -> 0 | I31: =SUM(IF('Custo Pessoal'!$D$7:$D$34=$A31,IF('Custo Pessoal'!$E$7:$E$34=$B31,'Custo Pessoal'!K$7:K$34))) -> 0 | J31: =SUM(IF('Custo Pessoal'!$D$7:$D$34=$A31,IF('Custo Pessoal'!$E$7:$E$34=$B31,'Custo Pessoal'!L$7:L$34))) -> 0 | K31: 0 | L31: =SUM(IF('Custo Pessoal'!$D$7:$D$34=$A31,IF('Custo Pessoal'!$E$7:$E$34=$B31,'Custo Pessoal'!N$7:N$34))) -> 0 | M31: =SUM(IF('Custo Pessoal'!$D$7:$D$34=$A31,IF('Custo Pessoal'!$E$7:$E$34=$B31,'Custo Pessoal'!O$7:O$34))) -> 0 | N31: =SUM(IF('Custo Pessoal'!$D$7:$D$34=$A31,IF('Custo Pessoal'!$E$7:$E$34=$B31,'Custo Pessoal'!P$7:P$34))) -> 0 | O31: =SUM(L31:N31) -> 0
A32: NOVO Total | C32: =SUM(C30:C31) -> 0 | D32: =SUM(D30:D31) -> 0 | E32: =E31 -> 0 | F32: 0 | G32: 0 | H32: 0 | I32: 0 | J32: 0 | K32: =SUM(K30:K31) -> 0 | L32: 0 | M32: 0 | N32: 0 | O32: 0
A33: SÃO VINCENTE | B33: MESTRE.FLUV.DE CONVES | C33: =COUNTIFS('Custo Pessoal'!$D$7:$D$34,A33,'Custo Pessoal'!$E$7:$E$34,B33) -> 1 | D33: =SUM(IF('Custo Pessoal'!$D$7:$D$34=$A33,IF('Custo Pessoal'!$E$7:$E$34=$B33,'Custo Pessoal'!$F$7:$F$34))) -> 2016.409091 | F33: =SUM(IF('Custo Pessoal'!$D$7:$D$34=$A33,IF('Custo Pessoal'!$E$7:$E$34=$B33,'Custo Pessoal'!H$7:H$34))) -> 0 | I33: =SUM(IF('Custo Pessoal'!$D$7:$D$34=$A33,IF('Custo Pessoal'!$E$7:$E$34=$B33,'Custo Pessoal'!K$7:K$34))) -> 0 | K33: 2016.409091 | L33: =SUM(IF('Custo Pessoal'!$D$7:$D$34=$A33,IF('Custo Pessoal'!$E$7:$E$34=$B33,'Custo Pessoal'!N$7:N$34))) -> 91.08 | M33: =SUM(IF('Custo Pessoal'!$D$7:$D$34=$A33,IF('Custo Pessoal'!$E$7:$E$34=$B33,'Custo Pessoal'!O$7:O$34))) -> 16.2 | N33: =SUM(IF('Custo Pessoal'!$D$7:$D$34=$A33,IF('Custo Pessoal'!$E$7:$E$34=$B33,'Custo Pessoal'!P$7:P$34))) -> 47.43 | O33: =SUM(L33:N33) -> 154.71
A34: SÃO VINCENTE | B34: MAR.FLUV.DE CONVES | C34: =COUNTIFS('Custo Pessoal'!$D$7:$D$34,A34,'Custo Pessoal'!$E$7:$E$34,B34) -> 2 | D34: =SUM(IF('Custo Pessoal'!$D$7:$D$34=$A34,IF('Custo Pessoal'!$E$7:$E$34=$B34,'Custo Pessoal'!$F$7:$F$34))) -> 3226.254545 | E34: =SUM(IF('Custo Pessoal'!$D$7:$D$34=$A34,IF('Custo Pessoal'!$E$7:$E$34=$B34,'Custo Pessoal'!G$7:G$34))) -> 0 | F34: =SUM(IF('Custo Pessoal'!$D$7:$D$34=$A34,IF('Custo Pessoal'!$E$7:$E$34=$B34,'Custo Pessoal'!H$7:H$34))) -> 0 | G34: =SUM(IF('Custo Pessoal'!$D$7:$D$34=$A34,IF('Custo Pessoal'!$E$7:$E$34=$B34,'Custo Pessoal'!I$7:I$34))) -> 0 | H34: =SUM(IF('Custo Pessoal'!$D$7:$D$34=$A34,IF('Custo Pessoal'!$E$7:$E$34=$B34,'Custo Pessoal'!J$7:J$34))) -> 0 | I34: =SUM(IF('Custo Pessoal'!$D$7:$D$34=$A34,IF('Custo Pessoal'!$E$7:$E$34=$B34,'Custo Pessoal'!K$7:K$34))) -> 0 | J34: =SUM(IF('Custo Pessoal'!$D$7:$D$34=$A34,IF('Custo Pessoal'!$E$7:$E$34=$B34,'Custo Pessoal'!L$7:L$34))) -> 0 | K34: 3226.254545 | L34: =SUM(IF('Custo Pessoal'!$D$7:$D$34=$A34,IF('Custo Pessoal'!$E$7:$E$34=$B34,'Custo Pessoal'!N$7:N$34))) -> 182.16 | M34: =SUM(IF('Custo Pessoal'!$D$7:$D$34=$A34,IF('Custo Pessoal'!$E$7:$E$34=$B34,'Custo Pessoal'!O$7:O$34))) -> 32.4 | N34: =SUM(IF('Custo Pessoal'!$D$7:$D$34=$A34,IF('Custo Pessoal'!$E$7:$E$34=$B34,'Custo Pessoal'!P$7:P$34))) -> 94.86 | O34: =SUM(L34:N34) -> 309.42
A35: SÃO VINCENTE Total | C35: =SUM(C33:C34) -> 3 | D35: =SUM(D33:D34) -> 5242.663636 | E35: =E34 -> 0 | F35: 0 | G35: 0 | H35: 0 | I35: 0 | J35: 0 | K35: =SUM(K33:K34) -> 5242.663636 | L35: 182.16 | M35: 32.4 | N35: 94.86 | O35: =O34+O33 -> 464.13
K36: 0
A37: Total geral | C37: =C35+C32+C29+C26+C17+C14+C11+C8 -> 27 | D37: =D35+D32+D29+D26+D17+D14+D11+D8 -> 47911.55182 | E37: =E35+E32+E29+E26+E17+E14+E11+E8 -> 0 | F37: 0 | G37: 753.474 | H37: 1670.5 | I37: 0 | J37: 0 | K37: =K35+K32+K29+K26+K17+K14+K11+K8 -> 50335.52582 | L37: 1730.52 | M37: 307.8 | N37: 806.31 | O37: 3927.6
A38: % do Salário Base | D38: =D37/$D$37 -> 1 | E38: 0 | F38: 0 | G38: 0.01572635349 | H38: 0.03486633049 | I38: 0 | J38: 0

Sheet custo pessoal mês
A1: Voltar ao Menu
A2: 1.3. PLANILHA DE CUSTO DE PESSOAL MENSAL
A3: =saláriosxencargos!A3 -> Morada Nova de Minas
G4: correção / reajuste salarial - mês = | H4: 0
A5: Descrição | C5: 1 | D5: 2 | E5: 3 | F5: 4 | G5: 5 | H5: 6 | I5: 7 | J5: 8 | K5: 9 | L5: 10 | M5: 11 | N5: 12 | O5: Total anual
A6: 1 | B6: Custo de pessoal por área
A7: 1.1 | B7: Área
A8: 1.1.1 | B8: Administração
A9: 1.1.1.1 | B9: Salário base | C9: =saláriosxencargos!$K$8 -> 3816 | D9: =saláriosxencargos!$K$8 -> 3816 | E9: =saláriosxencargos!$K$8 -> 3816 | F9: =saláriosxencargos!$K$8 -> 3816 | G9: =saláriosxencargos!$K$8*(1+$H$4) -> 3816 | H9: =saláriosxencargos!$K$8*(1+$H$4) -> 3816 | I9: =saláriosxencargos!$K$8*(1+$H$4) -> 3816 | J9: =saláriosxencargos!$K$8*(1+$H$4) -> 3816 | K9: =saláriosxencargos!$K$8*(1+$H$4) -> 3816 | L9: =saláriosxencargos!$K$8*(1+$H$4) -> 3816 | M9: =saláriosxencargos!$K$8*(1+$H$4) -> 3816 | N9: =saláriosxencargos!$K$8*(1+$H$4) -> 3816 | O9: =SUM(C9:N9) -> 45792
A10: 1.1.1.2 | B10: 13º salário | C10: =C9*'Encargos Folha'!$D$55 -> 1450.08 | D10: =D9*'Encargos Folha'!$D$55 -> 1450.08 | E10: =E9*'Encargos Folha'!$D$55 -> 1450.08 | F10: =F9*'Encargos Folha'!$D$55 -> 1450.08 | G10: =G9*'Encargos Folha'!$D$55 -> 1450.08 | H10: =H9*'Encargos Folha'!$D$55 -> 1450.08 | I10: =I9*'Encargos Folha'!$D$55 -> 1450.08 | J10: =J9*'Encargos Folha'!$D$55 -> 1450.08 | K10: =K9*'Encargos Folha'!$D$55 -> 1450.08 | L10: =L9*'Encargos Folha'!$D$55 -> 1450.08 | M10: =M9*'Encargos Folha'!$D$55 -> 1450.08 | N10: =N9*'Encargos Folha'!$D$55 -> 1450.08 | O10: 17400.96
A11: 1.1.1.3 | B11: Férias | C11: =C9*'Encargos Folha'!$D$56 -> 698.328 | D11: =D9*'Encargos Folha'!$D$56 -> 698.328 | E11: =E9*'Encargos Folha'!$D$56 -> 698.328 | F11: =F9*'Encargos Folha'!$D$56 -> 698.328 | G11: =G9*'Encargos Folha'!$D$56 -> 698.328 | H11: =H9*'Encargos Folha'!$D$56 -> 698.328 | I11: =I9*'Encargos Folha'!$D$56 -> 698.328 | J11: =J9*'Encargos Folha'!$D$56 -> 698.328 | K11: =K9*'Encargos Folha'!$D$56 -> 698.328 | L11: =L9*'Encargos Folha'!$D$56 -> 698.328 | M11: =M9*'Encargos Folha'!$D$56 -> 698.328 | N11: =N9*'Encargos Folha'!$D$56 -> 698.328 | O11: 8379.936
A12: 1.1.1.4 | B12: Sociais básicos | C12: =(C9)*'Encargos Folha'!$D$57 -> 443.0376 | D12: =(D9)*'Encargos Folha'!$D$57 -> 443.0376 | E12: =(E9)*'Encargos Folha'!$D$57 -> 443.0376 | F12: =(F9)*'Encargos Folha'!$D$57 -> 443.0376 | G12: =(G9)*'Encargos Folha'!$D$57 -> 443.0376 | H12: =(H9)*'Encargos Folha'!$D$57 -> 443.0376 | I12: =(I9)*'Encargos Folha'!$D$57 -> 443.0376 | J12: =(J9)*'Encargos Folha'!$D$57 -> 443.0376 | K12: =(K9)*'Encargos Folha'!$D$57 -> 443.0376 | L12: =(L9)*'Encargos Folha'!$D$57 -> 443.0376 | M12: =(M9)*'Encargos Folha'!$D$57 -> 443.0376 | N12: =(N9)*'Encargos Folha'!$D$57 -> 443.0376 | O12: 5316.4512
A13: 1.1.1.5 | B13: Rescisão | C13: =(C9)*'Encargos Folha'!$D$58 -> 282.7656 | D13: =(D9)*'Encargos Folha'!$D$58 -> 282.7656 | E13: =(E9)*'Encargos Folha'!$D$58 -> 282.7656 | F13: =(F9)*'Encargos Folha'!$D$58 -> 282.7656 | G13: =(G9)*'Encargos Folha'!$D$58 -> 282.7656 | H13: =(H9)*'Encargos Folha'!$D$58 -> 282.7656 | I13: =(I9)*'Encargos Folha'!$D$58 -> 282.7656 | J13: =(J9)*'Encargos Folha'!$D$58 -> 282.7656 | K13: =(K9)*'Encargos Folha'!$D$58 -> 282.7656 | L13: =(L9)*'Encargos Folha'!$D$58 -> 282.7656 | M13: =(M9)*'Encargos Folha'!$D$58 -> 282.7656 | N13: =(N9)*'Encargos Folha'!$D$58 -> 282.7656 | O13: 3393.1872
A14: 1.1.1.6 | B14: Benefícios | C14: =saláriosxencargos!$O$8 -> 214.56 | D14: =saláriosxencargos!$O$8 -> 214.56 | E14: =saláriosxencargos!$O$8 -> 214.56 | F14: =saláriosxencargos!$O$8 -> 214.56 | G14: =saláriosxencargos!$O$8 -> 214.56 | H14: =saláriosxencargos!$O$8 -> 214.56 | I14: =saláriosxencargos!$O$8 -> 214.56 | J14: =saláriosxencargos!$O$8 -> 214.56 | K14: =saláriosxencargos!$O$8 -> 214.56 | L14: =saláriosxencargos!$O$8 -> 214.56 | M14: =saláriosxencargos!$O$8 -> 214.56 | N14: =saláriosxencargos!$O$8 -> 214.56 | O14: 2574.72
A15: Subtotal | C15: =SUM(C9:C14) -> 6904.7712 | D15: 6904.7712 | E15: 6904.7712 | F15: =SUM(F9:F14) -> 6904.7712 | G15: 6904.7712 | H15: 6904.7712 | I15: 6904.7712 | J15: 6904.7712 | K15: 6904.7712 | L15: 6904.7712 | M15: 6904.7712 | N15: 6904.7712 | O15: 82857.2544
A17: 1.1.2 | B17: Manutenção
A18: 1.1.2.1 | B18: Salário base | C18: =saláriosxencargos!$K$26 -> 4520.844 | D18: =saláriosxencargos!$K$26 -> 4520.844 | E18: =saláriosxencargos!$K$26 -> 4520.844 | F18: =saláriosxencargos!$K$26 -> 4520.844 | G18: =saláriosxencargos!$K$26*(1+$H$4) -> 4520.844 | H18: =saláriosxencargos!$K$26*(1+$H$4) -> 4520.844 | I18: =saláriosxencargos!$K$26*(1+$H$4) -> 4520.844 | J18: =saláriosxencargos!$K$26*(1+$H$4) -> 4520.844 | K18: =saláriosxencargos!$K$26*(1+$H$4) -> 4520.844 | L18: =saláriosxencargos!$K$26*(1+$H$4) -> 4520.844 | M18: =saláriosxencargos!$K$26*(1+$H$4) -> 4520.844 | N18: =saláriosxencargos!$K$26*(1+$H$4) -> 4520.844 | O18: =SUM(C18:N18) -> 54250.128
A19: 1.1.2.2 | B19: 13º salário | C19: =C18*'Encargos Folha'!$D$55 -> 1717.92072 | D19: =D18*'Encargos Folha'!$D$55 -> 1717.92072 | E19: =E18*'Encargos Folha'!$D$55 -> 1717.92072 | F19: =F18*'Encargos Folha'!$D$55 -> 1717.92072 | G19: =G18*'Encargos Folha'!$D$55 -> 1717.92072 | H19: =H18*'Encargos Folha'!$D$55 -> 1717.92072 | I19: =I18*'Encargos Folha'!$D$55 -> 1717.92072 | J19: =J18*'Encargos Folha'!$D$55 -> 1717.92072 | K19: =K18*'Encargos Folha'!$D$55 -> 1717.92072 | L19: =L18*'Encargos Folha'!$D$55 -> 1717.92072 | M19: =M18*'Encargos Folha'!$D$55 -> 1717.92072 | N19: =N18*'Encargos Folha'!$D$55 -> 1717.92072 | O19: 20615.04864
A20: 1.1.2.3 | B20: Férias | C20: =C18*'Encargos Folha'!$D$56 -> 827.314452 | D20: =D18*'Encargos Folha'!$D$56 -> 827.314452 | E20: =E18*'Encargos Folha'!$D$56 -> 827.314452 | F20: =F18*'Encargos Folha'!$D$56 -> 827.314452 | G20: =G18*'Encargos Folha'!$D$56 -> 827.314452 | H20: =H18*'Encargos Folha'!$D$56 -> 827.314452 | I20: =I18*'Encargos Folha'!$D$56 -> 827.314452 | J20: =J18*'Encargos Folha'!$D$56 -> 827.314452 | K20: =K18*'Encargos Folha'!$D$56 -> 827.314452 | L20: =L18*'Encargos Folha'!$D$56 -> 827.314452 | M20: =M18*'Encargos Folha'!$D$56 -> 827.314452 | N20: =N18*'Encargos Folha'!$D$56 -> 827.314452 | O20: 9927.773424
A21: 1.1.2.4 | B21: Sociais básicos | C21: =(C18)*'Encargos Folha'!$D$57 -> 524.8699884 | D21: =(D18)*'Encargos Folha'!$D$57 -> 524.8699884 | E21: =(E18)*'Encargos Folha'!$D$57 -> 524.8699884 | F21: =(F18)*'Encargos Folha'!$D$57 -> 524.8699884 | G21: =(G18)*'Encargos Folha'!$D$57 -> 524.8699884 | H21: =(H18)*'Encargos Folha'!$D$57 -> 524.8699884 | I21: =(I18)*'Encargos Folha'!$D$57 -> 524.8699884 | J21: =(J18)*'Encargos Folha'!$D$57 -> 524.8699884 | K21: =(K18)*'Encargos Folha'!$D$57 -> 524.8699884 | L21: =(L18)*'Encargos Folha'!$D$57 -> 524.8699884 | M21: =(M18)*'Encargos Folha'!$D$57 -> 524.8699884 | N21: =(N18)*'Encargos Folha'!$D$57 -> 524.8699884 | O21: 6298.439861
A22: 1.1.2.5 | B22: Rescisão | C22: =(C18)*'Encargos Folha'!$D$58 -> 334.9945404 | D22: =(D18)*'Encargos Folha'!$D$58 -> 334.9945404 | E22: =(E18)*'Encargos Folha'!$D$58 -> 334.9945404 | F22: =(F18)*'Encargos Folha'!$D$58 -> 334.9945404 | G22: =(G18)*'Encargos Folha'!$D$58 -> 334.9945404 | H22: =(H18)*'Encargos Folha'!$D$58 -> 334.9945404 | I22: =(I18)*'Encargos Folha'!$D$58 -> 334.9945404 | J22: =(J18)*'Encargos Folha'!$D$58 -> 334.9945404 | K22: =(K18)*'Encargos Folha'!$D$58 -> 334.9945404 | L22: =(L18)*'Encargos Folha'!$D$58 -> 334.9945404 | M22: =(M18)*'Encargos Folha'!$D$58 -> 334.9945404 | N22: =(N18)*'Encargos Folha'!$D$58 -> 334.9945404 | O22: 4019.934485
A23: 1.1.2.6 | B23: Benefícios | C23: =saláriosxencargos!$O$26 -> 309.42 | D23: =saláriosxencargos!$O$26 -> 309.42 | E23: =saláriosxencargos!$O$26 -> 309.42 | F23: =saláriosxencargos!$O$26 -> 309.42 | G23: =saláriosxencargos!$O$26 -> 309.42 | H23: =saláriosxencargos!$O$26 -> 309.42 | I23: =saláriosxencargos!$O$26 -> 309.42 | J23: =saláriosxencargos!$O$26 -> 309.42 | K23: =saláriosxencargos!$O$26 -> 309.42 | L23: =saláriosxencargos!$O$26 -> 309.42 | M23: =saláriosxencargos!$O$26 -> 309.42 | N23: =saláriosxencargos!$O$26 -> 309.42 | O23: 3713.04
A24: Subtotal | C24: =SUM(C18:C23) -> 8235.363701 | D24: 8235.363701 | E24: 8235.363701 | F24: 8235.363701 | G24: 8235.363701 | H24: 8235.363701 | I24: 8235.363701 | J24: 8235.363701 | K24: 8235.363701 | L24: 8235.363701 | M24: 8235.363701 | N24: 8235.363701 | O24: 98824.36441
A26: 1.1.3 | B26: Porto Extrema
A27: 1.1.3.1 | B27: Salário base | C27: =saláriosxencargos!$K$11 -> 0 | D27: =saláriosxencargos!$K$11 -> 0 | E27: =saláriosxencargos!$K$11 -> 0 | F27: =saláriosxencargos!$K$11 -> 0 | G27: =saláriosxencargos!$K$11*(1+$H$4) -> 0 | H27: =saláriosxencargos!$K$11*(1+$H$4) -> 0 | I27: =saláriosxencargos!$K$11*(1+$H$4) -> 0 | J27: =saláriosxencargos!$K$11*(1+$H$4) -> 0 | K27: =saláriosxencargos!$K$11*(1+$H$4) -> 0 | L27: =saláriosxencargos!$K$11*(1+$H$4) -> 0 | M27: =saláriosxencargos!$K$11*(1+$H$4) -> 0 | N27: =saláriosxencargos!$K$11*(1+$H$4) -> 0 | O27: =SUM(C27:N27) -> 0
A28: 1.1.3.2 | B28: 13º salário | C28: =C27*'Encargos Folha'!$D$55 -> 0 | D28: =D27*'Encargos Folha'!$D$55 -> 0 | E28: =E27*'Encargos Folha'!$D$55 -> 0 | F28: =F27*'Encargos Folha'!$D$55 -> 0 | G28: =G27*'Encargos Folha'!$D$55 -> 0 | H28: =H27*'Encargos Folha'!$D$55 -> 0 | I28: =I27*'Encargos Folha'!$D$55 -> 0 | J28: =J27*'Encargos Folha'!$D$55 -> 0 | K28: =K27*'Encargos Folha'!$D$55 -> 0 | L28: =L27*'Encargos Folha'!$D$55 -> 0 | M28: =M27*'Encargos Folha'!$D$55 -> 0 | N28: =N27*'Encargos Folha'!$D$55 -> 0 | O28: =SUM(C28:N28) -> 0
A29: 1.1.3.3 | B29: Férias | C29: =C27*'Encargos Folha'!$D$56 -> 0 | D29: =D27*'Encargos Folha'!$D$56 -> 0 | E29: =E27*'Encargos Folha'!$D$56 -> 0 | F29: =F27*'Encargos Folha'!$D$56 -> 0 | G29: =G27*'Encargos Folha'!$D$56 -> 0 | H29: =H27*'Encargos Folha'!$D$56 -> 0 | I29: =I27*'Encargos Folha'!$D$56 -> 0 | J29: =J27*'Encargos Folha'!$D$56 -> 0 | K29: =K27*'Encargos Folha'!$D$56 -> 0 | L29: =L27*'Encargos Folha'!$D$56 -> 0 | M29: =M27*'Encargos Folha'!$D$56 -> 0 | N29: =N27*'Encargos Folha'!$D$56 -> 0 | O29: 0
A30: 1.1.3.4 | B30: Sociais básicos | C30: =(C27)*'Encargos Folha'!$D$57 -> 0 | D30: =(D27)*'Encargos Folha'!$D$57 -> 0 | E30: =(E27)*'Encargos Folha'!$D$57 -> 0 | F30: =(F27)*'Encargos Folha'!$D$57 -> 0 | G30: =(G27)*'Encargos Folha'!$D$57 -> 0 | H30: =(H27)*'Encargos Folha'!$D$57 -> 0 | I30: =(I27)*'Encargos Folha'!$D$57 -> 0 | J30: =(J27)*'Encargos Folha'!$D$57 -> 0 | K30: =(K27)*'Encargos Folha'!$D$57 -> 0 | L30: =(L27)*'Encargos Folha'!$D$57 -> 0 | M30: =(M27)*'Encargos Folha'!$D$57 -> 0 | N30: =(N27)*'Encargos Folha'!$D$57 -> 0 | O30: 0
A31: 1.1.3.5 | B31: Rescisão | C31: =(C27)*'Encargos Folha'!$D$58 -> 0 | D31: =(D27)*'Encargos Folha'!$D$58 -> 0 | E31: =(E27)*'Encargos Folha'!$D$58 -> 0 | F31: =(F27)*'Encargos Folha'!$D$58 -> 0 | G31: =(G27)*'Encargos Folha'!$D$58 -> 0 | H31: =(H27)*'Encargos Folha'!$D$58 -> 0 | I31: =(I27)*'Encargos Folha'!$D$58 -> 0 | J31: =(J27)*'Encargos Folha'!$D$58 -> 0 | K31: =(K27)*'Encargos Folha'!$D$58 -> 0 | L31: =(L27)*'Encargos Folha'!$D$58 -> 0 | M31: =(M27)*'Encargos Folha'!$D$58 -> 0 | N31: =(N27)*'Encargos Folha'!$D$58 -> 0 | O31: 0
A32: 1.1.3.6 | B32: Benefícios | C32: =saláriosxencargos!$O$11 -> 0 | D32: =saláriosxencargos!$O$11 -> 0 | E32: =saláriosxencargos!$O$11 -> 0 | F32: =saláriosxencargos!$O$11 -> 0 | G32: =saláriosxencargos!$O$11 -> 0 | H32: =saláriosxencargos!$O$11 -> 0 | I32: =saláriosxencargos!$O$11 -> 0 | J32: =saláriosxencargos!$O$11 -> 0 | K32: =saláriosxencargos!$O$11 -> 0 | L32: =saláriosxencargos!$O$11 -> 0 | M32: =saláriosxencargos!$O$11 -> 0 | N32: =saláriosxencargos!$O$11 -> 0 | O32: 0
A33: Subtotal | C33: =SUM(C27:C32) -> 0 | D33: 0 | E33: 0 | F33: 0 | G33: 0 | H33: 0 | I33: 0 | J33: 0 | K33: 0 | L33: 0 | M33: 0 | N33: 0 | O33: 0
A35: 1.1.4 | B35: Porto Indaiá de Baixo
A36: 1.1.4.1 | B36: Salário base | C36: =saláriosxencargos!$K$14 -> 5242.663636 | D36: =saláriosxencargos!$K$14 -> 5242.663636 | E36: =saláriosxencargos!$K$14 -> 5242.663636 | F36: =saláriosxencargos!$K$14 -> 5242.663636 | G36: =saláriosxencargos!$K$14*(1+$H$4) -> 5242.663636 | H36: =saláriosxencargos!$K$14*(1+$H$4) -> 5242.663636 | I36: =saláriosxencargos!$K$14*(1+$H$4) -> 5242.663636 | J36: =saláriosxencargos!$K$14*(1+$H$4) -> 5242.663636 | K36: =saláriosxencargos!$K$14*(1+$H$4) -> 5242.663636 | L36: =saláriosxencargos!$K$14*(1+$H$4) -> 5242.663636 | M36: =saláriosxencargos!$K$14*(1+$H$4) -> 5242.663636 | N36: =saláriosxencargos!$K$14*(1+$H$4) -> 5242.663636 | O36: =SUM(C36:N36) -> 62911.96364
A37: 1.1.4.2 | B37: 13º salário | C37: =C36*'Encargos Folha'!$D$55 -> 1992.212182 | D37: =D36*'Encargos Folha'!$D$55 -> 1992.212182 | E37: =E36*'Encargos Folha'!$D$55 -> 1992.212182 | F37: =F36*'Encargos Folha'!$D$55 -> 1992.212182 | G37: =G36*'Encargos Folha'!$D$55 -> 1992.212182 | H37: =H36*'Encargos Folha'!$D$55 -> 1992.212182 | I37: =I36*'Encargos Folha'!$D$55 -> 1992.212182 | J37: =J36*'Encargos Folha'!$D$55 -> 1992.212182 | K37: =K36*'Encargos Folha'!$D$55 -> 1992.212182 | L37: =L36*'Encargos Folha'!$D$55 -> 1992.212182 | M37: =M36*'Encargos Folha'!$D$55 -> 1992.212182 | N37: =N36*'Encargos Folha'!$D$55 -> 1992.212182 | O37: =SUM(C37:N37) -> 23906.54618
A38: 1.1.4.3 | B38: Férias | C38: =C36*'Encargos Folha'!$D$56 -> 959.4074455 | D38: =D36*'Encargos Folha'!$D$56 -> 959.4074455 | E38: =E36*'Encargos Folha'!$D$56 -> 959.4074455 | F38: =F36*'Encargos Folha'!$D$56 -> 959.4074455 | G38: =G36*'Encargos Folha'!$D$56 -> 959.4074455 | H38: =H36*'Encargos Folha'!$D$56 -> 959.4074455 | I38: =I36*'Encargos Folha'!$D$56 -> 959.4074455 | J38: =J36*'Encargos Folha'!$D$56 -> 959.4074455 | K38: =K36*'Encargos Folha'!$D$56 -> 959.4074455 | L38: =L36*'Encargos Folha'!$D$56 -> 959.4074455 | M38: =M36*'Encargos Folha'!$D$56 -> 959.4074455 | N38: =N36*'Encargos Folha'!$D$56 -> 959.4074455 | O38: 11512.88935
A39: 1.1.4.4 | B39: Sociais básicos | C39: =(C36)*'Encargos Folha'!$D$57 -> 608.6732482 | D39: =(D36)*'Encargos Folha'!$D$57 -> 608.6732482 | E39: =(E36)*'Encargos Folha'!$D$57 -> 608.6732482 | F39: =(F36)*'Encargos Folha'!$D$57 -> 608.6732482 | G39: =(G36)*'Encargos Folha'!$D$57 -> 608.6732482 | H39: =(H36)*'Encargos Folha'!$D$57 -> 608.6732482 | I39: =(I36)*'Encargos Folha'!$D$57 -> 608.6732482 | J39: =(J36)*'Encargos Folha'!$D$57 -> 608.6732482 | K39: =(K36)*'Encargos Folha'!$D$57 -> 608.6732482 | L39: =(L36)*'Encargos Folha'!$D$57 -> 608.6732482 | M39: =(M36)*'Encargos Folha'!$D$57 -> 608.6732482 | N39: =(N36)*'Encargos Folha'!$D$57 -> 608.6732482 | O39: 7304.078978
A40: 1.1.4.5 | B40: Rescisão | C40: =(C36)*'Encargos Folha'!$D$58 -> 388.4813755 | D40: =(D36)*'Encargos Folha'!$D$58 -> 388.4813755 | E40: =(E36)*'Encargos Folha'!$D$58 -> 388.4813755 | F40: =(F36)*'Encargos Folha'!$D$58 -> 388.4813755 | G40: =(G36)*'Encargos Folha'!$D$58 -> 388.4813755 | H40: =(H36)*'Encargos Folha'!$D$58 -> 388.4813755 | I40: =(I36)*'Encargos Folha'!$D$58 -> 388.4813755 | J40: =(J36)*'Encargos Folha'!$D$58 -> 388.4813755 | K40: =(K36)*'Encargos Folha'!$D$58 -> 388.4813755 | L40: =(L36)*'Encargos Folha'!$D$58 -> 388.4813755 | M40: =(M36)*'Encargos Folha'!$D$58 -> 388.4813755 | N40: =(N36)*'Encargos Folha'!$D$58 -> 388.4813755 | O40: 4661.776505
A41: 1.1.4.6 | B41: Benefícios | C41: =saláriosxencargos!$O$14 -> 464.13 | D41: =saláriosxencargos!$O$14 -> 464.13 | E41: =saláriosxencargos!$O$14 -> 464.13 | F41: =saláriosxencargos!$O$14 -> 464.13 | G41: =saláriosxencargos!$O$14 -> 464.13 | H41: =saláriosxencargos!$O$14 -> 464.13 | I41: =saláriosxencargos!$O$14 -> 464.13 | J41: =saláriosxencargos!$O$14 -> 464.13 | K41: =saláriosxencargos!$O$14 -> 464.13 | L41: =saláriosxencargos!$O$14 -> 464.13 | M41: =saláriosxencargos!$O$14 -> 464.13 | N41: =saláriosxencargos!$O$14 -> 464.13 | O41: 5569.56
A42: Subtotal | C42: =SUM(C36:C41) -> 9655.567887 | D42: 9655.567887 | E42: 9655.567887 | F42: 9655.567887 | G42: 9655.567887 | H42: 9655.567887 | I42: 9655.567887 | J42: 9655.567887 | K42: 9655.567887 | L42: 9655.567887 | M42: 9655.567887 | N42: 9655.567887 | O42: 115866.8146
A44: 1.1.5 | B44: Porto Indaiá de Cima
A45: 1.1.5.1 | B45: Salário base | C45: =saláriosxencargos!$K$17 -> 6855.790909 | D45: =saláriosxencargos!$K$17 -> 6855.790909 | E45: =saláriosxencargos!$K$17 -> 6855.790909 | F45: =saláriosxencargos!$K$17 -> 6855.790909 | G45: =saláriosxencargos!$K$17*(1+$H$4) -> 6855.790909 | H45: =saláriosxencargos!$K$17*(1+$H$4) -> 6855.790909 | I45: =saláriosxencargos!$K$17*(1+$H$4) -> 6855.790909 | J45: =saláriosxencargos!$K$17*(1+$H$4) -> 6855.790909 | K45: =saláriosxencargos!$K$17*(1+$H$4) -> 6855.790909 | L45: =saláriosxencargos!$K$17*(1+$H$4) -> 6855.790909 | M45: =saláriosxencargos!$K$17*(1+$H$4) -> 6855.790909 | N45: =saláriosxencargos!$K$17*(1+$H$4) -> 6855.790909 | O45: =SUM(C45:N45) -> 82269.49091
A46: 1.1.5.2 | B46: 13º salário | C46: =C45*'Encargos Folha'!$D$55 -> 2605.200545 | D46: =D45*'Encargos Folha'!$D$55 -> 2605.200545 | E46: =E45*'Encargos Folha'!$D$55 -> 2605.200545 | F46: =F45*'Encargos Folha'!$D$55 -> 2605.200545 | G46: =G45*'Encargos Folha'!$D$55 -> 2605.200545 | H46: =H45*'Encargos Folha'!$D$55 -> 2605.200545 | I46: =I45*'Encargos Folha'!$D$55 -> 2605.200545 | J46: =J45*'Encargos Folha'!$D$55 -> 2605.200545 | K46: =K45*'Encargos Folha'!$D$55 -> 2605.200545 | L46: =L45*'Encargos Folha'!$D$55 -> 2605.200545 | M46: =M45*'Encargos Folha'!$D$55 -> 2605.200545 | N46: =N45*'Encargos Folha'!$D$55 -> 2605.200545 | O46: =SUM(C46:N46) -> 31262.40655
A47: 1.1.5.3 | B47: Férias | C47: =C45*'Encargos Folha'!$D$56 -> 1254.609736 | D47: =D45*'Encargos Folha'!$D$56 -> 1254.609736 | E47: =E45*'Encargos Folha'!$D$56 -> 1254.609736 | F47: =F45*'Encargos Folha'!$D$56 -> 1254.609736 | G47: =G45*'Encargos Folha'!$D$56 -> 1254.609736 | H47: =H45*'Encargos Folha'!$D$56 -> 1254.609736 | I47: =I45*'Encargos Folha'!$D$56 -> 1254.609736 | J47: =J45*'Encargos Folha'!$D$56 -> 1254.609736 | K47: =K45*'Encargos Folha'!$D$56 -> 1254.609736 | L47: =L45*'Encargos Folha'!$D$56 -> 1254.609736 | M47: =M45*'Encargos Folha'!$D$56 -> 1254.609736 | N47: =N45*'Encargos Folha'!$D$56 -> 1254.609736 | O47: 15055.31684
A48: 1.1.5.4 | B48: Sociais básicos | C48: =(C45)*'Encargos Folha'!$D$57 -> 795.9573245 | D48: =(D45)*'Encargos Folha'!$D$57 -> 795.9573245 | E48: =(E45)*'Encargos Folha'!$D$57 -> 795.9573245 | F48: =(F45)*'Encargos Folha'!$D$57 -> 795.9573245 | G48: =(G45)*'Encargos Folha'!$D$57 -> 795.9573245 | H48: =(H45)*'Encargos Folha'!$D$57 -> 795.9573245 | I48: =(I45)*'Encargos Folha'!$D$57 -> 795.9573245 | J48: =(J45)*'Encargos Folha'!$D$57 -> 795.9573245 | K48: =(K45)*'Encargos Folha'!$D$57 -> 795.9573245 | L48: =(L45)*'Encargos Folha'!$D$57 -> 795.9573245 | M48: =(M45)*'Encargos Folha'!$D$57 -> 795.9573245 | N48: =(N45)*'Encargos Folha'!$D$57 -> 795.9573245 | O48: 9551.487895
A49: 1.1.5.5 | B49: Rescisão | C49: =(C45)*'Encargos Folha'!$D$58 -> 508.0141064 | D49: =(D45)*'Encargos Folha'!$D$58 -> 508.0141064 | E49: =(E45)*'Encargos Folha'!$D$58 -> 508.0141064 | F49: =(F45)*'Encargos Folha'!$D$58 -> 508.0141064 | G49: =(G45)*'Encargos Folha'!$D$58 -> 508.0141064 | H49: =(H45)*'Encargos Folha'!$D$58 -> 508.0141064 | I49: =(I45)*'Encargos Folha'!$D$58 -> 508.0141064 | J49: =(J45)*'Encargos Folha'!$D$58 -> 508.0141064 | K49: =(K45)*'Encargos Folha'!$D$58 -> 508.0141064 | L49: =(L45)*'Encargos Folha'!$D$58 -> 508.0141064 | M49: =(M45)*'Encargos Folha'!$D$58 -> 508.0141064 | N49: =(N45)*'Encargos Folha'!$D$58 -> 508.0141064 | O49: 6096.169276
A50: 1.1.5.6 | B50: Benefícios | C50: =saláriosxencargos!$O$17 -> 464.13 | D50: =saláriosxencargos!$O$17 -> 464.13 | E50: =saláriosxencargos!$O$17 -> 464.13 | F50: =saláriosxencargos!$O$17 -> 464.13 | G50: =saláriosxencargos!$O$17 -> 464.13 | H50: =saláriosxencargos!$O$17 -> 464.13 | I50: =saláriosxencargos!$O$17 -> 464.13 | J50: =saláriosxencargos!$O$17 -> 464.13 | K50: =saláriosxencargos!$O$17 -> 464.13 | L50: =saláriosxencargos!$O$17 -> 464.13 | M50: =saláriosxencargos!$O$17 -> 464.13 | N50: =saláriosxencargos!$O$17 -> 464.13 | O50: 5569.56
A51: Subtotal | C51: =SUM(C45:C50) -> 12483.70262 | D51: 12483.70262 | E51: 12483.70262 | F51: 12483.70262 | G51: 12483.70262 | H51: 12483.70262 | I51: 12483.70262 | J51: 12483.70262 | K51: 12483.70262 | L51: 12483.70262 | M51: 12483.70262 | N51: 12483.70262 | O51: 149804.4315
A53: 1.1.6 | B53: Porto Melancias
A54: 1.1.6.1 | B54: Salário base | C54: =saláriosxencargos!$K$29 -> 24657.56364 | D54: =saláriosxencargos!$K$29 -> 24657.56364 | E54: =saláriosxencargos!$K$29 -> 24657.56364 | F54: =saláriosxencargos!$K$29 -> 24657.56364 | G54: =saláriosxencargos!$K$29*(1+$H$4) -> 24657.56364 | H54: =saláriosxencargos!$K$29*(1+$H$4) -> 24657.56364 | I54: =saláriosxencargos!$K$29*(1+$H$4) -> 24657.56364 | J54: =saláriosxencargos!$K$29*(1+$H$4) -> 24657.56364 | K54: =saláriosxencargos!$K$29*(1+$H$4) -> 24657.56364 | L54: =saláriosxencargos!$K$29*(1+$H$4) -> 24657.56364 | M54: =saláriosxencargos!$K$29*(1+$H$4) -> 24657.56364 | N54: =saláriosxencargos!$K$29*(1+$H$4) -> 24657.56364 | O54: =SUM(C54:N54) -> 295890.7636
A55: 1.1.6.2 | B55: 13º salário | C55: =C54*'Encargos Folha'!$D$55 -> 9369.874182 | D55: =D54*'Encargos Folha'!$D$55 -> 9369.874182 | E55: =E54*'Encargos Folha'!$D$55 -> 9369.874182 | F55: =F54*'Encargos Folha'!$D$55 -> 9369.874182 | G55: =G54*'Encargos Folha'!$D$55 -> 9369.874182 | H55: =H54*'Encargos Folha'!$D$55 -> 9369.874182 | I55: =I54*'Encargos Folha'!$D$55 -> 9369.874182 | J55: =J54*'Encargos Folha'!$D$55 -> 9369.874182 | K55: =K54*'Encargos Folha'!$D$55 -> 9369.874182 | L55: =L54*'Encargos Folha'!$D$55 -> 9369.874182 | M55: =M54*'Encargos Folha'!$D$55 -> 9369.874182 | N55: =N54*'Encargos Folha'!$D$55 -> 9369.874182 | O55: =SUM(C55:N55) -> 112438.4902
A56: 1.1.6.3 | B56: Férias | C56: =C54*'Encargos Folha'!$D$56 -> 4512.334145 | D56: =D54*'Encargos Folha'!$D$56 -> 4512.334145 | E56: =E54*'Encargos Folha'!$D$56 -> 4512.334145 | F56: =F54*'Encargos Folha'!$D$56 -> 4512.334145 | G56: =G54*'Encargos Folha'!$D$56 -> 4512.334145 | H56: =H54*'Encargos Folha'!$D$56 -> 4512.334145 | I56: =I54*'Encargos Folha'!$D$56 -> 4512.334145 | J56: =J54*'Encargos Folha'!$D$56 -> 4512.334145 | K56: =K54*'Encargos Folha'!$D$56 -> 4512.334145 | L56: =L54*'Encargos Folha'!$D$56 -> 4512.334145 | M56: =M54*'Encargos Folha'!$D$56 -> 4512.334145 | N56: =N54*'Encargos Folha'!$D$56 -> 4512.334145 | O56: 54148.00975
A57: 1.1.6.4 | B57: Sociais básicos | C57: =(C54)*'Encargos Folha'!$D$57 -> 2862.743138 | D57: =(D54)*'Encargos Folha'!$D$57 -> 2862.743138 | E57: =(E54)*'Encargos Folha'!$D$57 -> 2862.743138 | F57: =(F54)*'Encargos Folha'!$D$57 -> 2862.743138 | G57: =(G54)*'Encargos Folha'!$D$57 -> 2862.743138 | H57: =(H54)*'Encargos Folha'!$D$57 -> 2862.743138 | I57: =(I54)*'Encargos Folha'!$D$57 -> 2862.743138 | J57: =(J54)*'Encargos Folha'!$D$57 -> 2862.743138 | K57: =(K54)*'Encargos Folha'!$D$57 -> 2862.743138 | L57: =(L54)*'Encargos Folha'!$D$57 -> 2862.743138 | M57: =(M54)*'Encargos Folha'!$D$57 -> 2862.743138 | N57: =(N54)*'Encargos Folha'!$D$57 -> 2862.743138 | O57: 34352.91766
A58: 1.1.6.5 | B58: Rescisão | C58: =(C54)*'Encargos Folha'!$D$58 -> 1827.125465 | D58: =(D54)*'Encargos Folha'!$D$58 -> 1827.125465 | E58: =(E54)*'Encargos Folha'!$D$58 -> 1827.125465 | F58: =(F54)*'Encargos Folha'!$D$58 -> 1827.125465 | G58: =(G54)*'Encargos Folha'!$D$58 -> 1827.125465 | H58: =(H54)*'Encargos Folha'!$D$58 -> 1827.125465 | I58: =(I54)*'Encargos Folha'!$D$58 -> 1827.125465 | J58: =(J54)*'Encargos Folha'!$D$58 -> 1827.125465 | K58: =(K54)*'Encargos Folha'!$D$58 -> 1827.125465 | L58: =(L54)*'Encargos Folha'!$D$58 -> 1827.125465 | M58: =(M54)*'Encargos Folha'!$D$58 -> 1827.125465 | N58: =(N54)*'Encargos Folha'!$D$58 -> 1827.125465 | O58: 21925.50559
A59: 1.1.6.6 | B59: Benefícios | C59: =saláriosxencargos!$O$29 -> 2011.23 | D59: =saláriosxencargos!$O$29 -> 2011.23 | E59: =saláriosxencargos!$O$29 -> 2011.23 | F59: =saláriosxencargos!$O$29 -> 2011.23 | G59: =saláriosxencargos!$O$29 -> 2011.23 | H59: =saláriosxencargos!$O$29 -> 2011.23 | I59: =saláriosxencargos!$O$29 -> 2011.23 | J59: =saláriosxencargos!$O$29 -> 2011.23 | K59: =saláriosxencargos!$O$29 -> 2011.23 | L59: =saláriosxencargos!$O$29 -> 2011.23 | M59: =saláriosxencargos!$O$29 -> 2011.23 | N59: =saláriosxencargos!$O$29 -> 2011.23 | O59: 24134.76
A60: Subtotal | C60: =SUM(C54:C59) -> 45240.87057 | D60: 45240.87057 | E60: 45240.87057 | F60: 45240.87057 | G60: 45240.87057 | H60: 45240.87057 | I60: 45240.87057 | J60: 45240.87057 | K60: 45240.87057 | L60: 45240.87057 | M60: 45240.87057 | N60: 45240.87057 | O60: 542890.4468
A62: 1.1.7 | B62: Porto Novo
A63: 1.1.7.1 | B63: Salário base | C63: =saláriosxencargos!$K$32 -> 0 | D63: =saláriosxencargos!$K$32 -> 0 | E63: =saláriosxencargos!$K$32 -> 0 | F63: =saláriosxencargos!$K$32 -> 0 | G63: =saláriosxencargos!$K$32*(1+$H$4) -> 0 | H63: =saláriosxencargos!$K$32*(1+$H$4) -> 0 | I63: =saláriosxencargos!$K$32*(1+$H$4) -> 0 | J63: =saláriosxencargos!$K$32*(1+$H$4) -> 0 | K63: =saláriosxencargos!$K$32*(1+$H$4) -> 0 | L63: =saláriosxencargos!$K$32*(1+$H$4) -> 0 | M63: =saláriosxencargos!$K$32*(1+$H$4) -> 0 | N63: =saláriosxencargos!$K$32*(1+$H$4) -> 0 | O63: =SUM(C63:N63) -> 0
A64: 1.1.7.2 | B64: 13º salário | C64: =C63*'Encargos Folha'!$D$55 -> 0 | D64: =D63*'Encargos Folha'!$D$55 -> 0 | E64: =E63*'Encargos Folha'!$D$55 -> 0 | F64: =F63*'Encargos Folha'!$D$55 -> 0 | G64: =G63*'Encargos Folha'!$D$55 -> 0 | H64: =H63*'Encargos Folha'!$D$55 -> 0 | I64: =I63*'Encargos Folha'!$D$55 -> 0 | J64: =J63*'Encargos Folha'!$D$55 -> 0 | K64: =K63*'Encargos Folha'!$D$55 -> 0 | L64: =L63*'Encargos Folha'!$D$55 -> 0 | M64: =M63*'Encargos Folha'!$D$55 -> 0 | N64: =N63*'Encargos Folha'!$D$55 -> 0 | O64: =SUM(C64:N64) -> 0
A65: 1.1.7.3 | B65: Férias | C65: =C63*'Encargos Folha'!$D$56 -> 0 | D65: =D63*'Encargos Folha'!$D$56 -> 0 | E65: =E63*'Encargos Folha'!$D$56 -> 0 | F65: =F63*'Encargos Folha'!$D$56 -> 0 | G65: =G63*'Encargos Folha'!$D$56 -> 0 | H65: =H63*'Encargos Folha'!$D$56 -> 0 | I65: =I63*'Encargos Folha'!$D$56 -> 0 | J65: =J63*'Encargos Folha'!$D$56 -> 0 | K65: =K63*'Encargos Folha'!$D$56 -> 0 | L65: =L63*'Encargos Folha'!$D$56 -> 0 | M65: =M63*'Encargos Folha'!$D$56 -> 0 | N65: =N63*'Encargos Folha'!$D$56 -> 0 | O65: 0
A66: 1.1.7.4 | B66: Sociais básicos | C66: =(C63)*'Encargos Folha'!$D$57 -> 0 | D66: =(D63)*'Encargos Folha'!$D$57 -> 0 | E66: =(E63)*'Encargos Folha'!$D$57 -> 0 | F66: =(F63)*'Encargos Folha'!$D$57 -> 0 | G66: =(G63)*'Encargos Folha'!$D$57 -> 0 | H66: =(H63)*'Encargos Folha'!$D$57 -> 0 | I66: =(I63)*'Encargos Folha'!$D$57 -> 0 | J66: =(J63)*'Encargos Folha'!$D$57 -> 0 | K66: =(K63)*'Encargos Folha'!$D$57 -> 0 | L66: =(L63)*'Encargos Folha'!$D$57 -> 0 | M66: =(M63)*'Encargos Folha'!$D$57 -> 0 | N66: =(N63)*'Encargos Folha'!$D$57 -> 0 | O66: 0
A67: 1.1.7.5 | B67: Rescisão | C67: =(C63)*'Encargos Folha'!$D$58 -> 0 | D67: =(D63)*'Encargos Folha'!$D$58 -> 0 | E67: =(E63)*'Encargos Folha'!$D$58 -> 0 | F67: =(F63)*'Encargos Folha'!$D$58 -> 0 | G67: =(G63)*'Encargos Folha'!$D$58 -> 0 | H67: =(H63)*'Encargos Folha'!$D$58 -> 0 | I67: =(I63)*'Encargos Folha'!$D$58 -> 0 | J67: =(J63)*'Encargos Folha'!$D$58 -> 0 | K67: =(K63)*'Encargos Folha'!$D$58 -> 0 | L67: =(L63)*'Encargos Folha'!$D$58 -> 0 | M67: =(M63)*'Encargos Folha'!$D$58 -> 0 | N67: =(N63)*'Encargos Folha'!$D$58 -> 0 | O67: 0
A68: 1.1.7.6 | B68: Benefícios | C68: =saláriosxencargos!$O$32 -> 0 | D68: =saláriosxencargos!$O$32 -> 0 | E68: =saláriosxencargos!$O$32 -> 0 | F68: =saláriosxencargos!$O$32 -> 0 | G68: =saláriosxencargos!$O$32 -> 0 | H68: =saláriosxencargos!$O$32 -> 0 | I68: =saláriosxencargos!$O$32 -> 0 | J68: =saláriosxencargos!$O$32 -> 0 | K68: =saláriosxencargos!$O$32 -> 0 | L68: =saláriosxencargos!$O$32 -> 0 | M68: =saláriosxencargos!$O$32 -> 0 | N68: =saláriosxencargos!$O$32 -> 0 | O68: 0
A69: Subtotal | C69: =SUM(C63:C68) -> 0 | D69: 0 | E69: 0 | F69: 0 | G69: 0 | H69: 0 | I69: 0 | J69: 0 | K69: 0 | L69: 0 | M69: 0 | N69: 0 | O69: 0
A71: 1.1.8 | B71: Porto São Vincente
A72: 1.1.8.1 | B72: Salário base | C72: =saláriosxencargos!$K$35 -> 5242.663636 | D72: =saláriosxencargos!$K$35 -> 5242.663636 | E72: =saláriosxencargos!$K$35 -> 5242.663636 | F72: =saláriosxencargos!$K$35 -> 5242.663636 | G72: =saláriosxencargos!$K$35*(1+$H$4) -> 5242.663636 | H72: =saláriosxencargos!$K$35*(1+$H$4) -> 5242.663636 | I72: =saláriosxencargos!$K$35*(1+$H$4) -> 5242.663636 | J72: =saláriosxencargos!$K$35*(1+$H$4) -> 5242.663636 | K72: =saláriosxencargos!$K$35*(1+$H$4) -> 5242.663636 | L72: =saláriosxencargos!$K$35*(1+$H$4) -> 5242.663636 | M72: =saláriosxencargos!$K$35*(1+$H$4) -> 5242.663636 | N72: =saláriosxencargos!$K$35*(1+$H$4) -> 5242.663636 | O72: =SUM(C72:N72) -> 62911.96364
A73: 1.1.8.2 | B73: 13º salário | C73: =C72*'Encargos Folha'!$D$55 -> 1992.212182 | D73: =D72*'Encargos Folha'!$D$55 -> 1992.212182 | E73: =E72*'Encargos Folha'!$D$55 -> 1992.212182 | F73: =F72*'Encargos Folha'!$D$55 -> 1992.212182 | G73: =G72*'Encargos Folha'!$D$55 -> 1992.212182 | H73: =H72*'Encargos Folha'!$D$55 -> 1992.212182 | I73: =I72*'Encargos Folha'!$D$55 -> 1992.212182 | J73: =J72*'Encargos Folha'!$D$55 -> 1992.212182 | K73: =K72*'Encargos Folha'!$D$55 -> 1992.212182 | L73: =L72*'Encargos Folha'!$D$55 -> 1992.212182 | M73: =M72*'Encargos Folha'!$D$55 -> 1992.212182 | N73: =N72*'Encargos Folha'!$D$55 -> 1992.212182 | O73: =SUM(C73:N73) -> 23906.54618
A74: 1.1.8.3 | B74: Férias | C74: =C72*'Encargos Folha'!$D$56 -> 959.4074455 | D74: =D72*'Encargos Folha'!$D$56 -> 959.4074455 | E74: =E72*'Encargos Folha'!$D$56 -> 959.4074455 | F74: =F72*'Encargos Folha'!$D$56 -> 959.4074455 | G74: =G72*'Encargos Folha'!$D$56 -> 959.4074455 | H74: =H72*'Encargos Folha'!$D$56 -> 959.4074455 | I74: =I72*'Encargos Folha'!$D$56 -> 959.4074455 | J74: =J72*'Encargos Folha'!$D$56 -> 959.4074455 | K74: =K72*'Encargos Folha'!$D$56 -> 959.4074455 | L74: =L72*'Encargos Folha'!$D$56 -> 959.4074455 | M74: =M72*'Encargos Folha'!$D$56 -> 959.4074455 | N74: =N72*'Encargos Folha'!$D$56 -> 959.4074455 | O74: 11512.88935
A75: 1.1.8.4 | B75: Sociais básicos | C75: =(C72)*'Encargos Folha'!$D$57 -> 608.6732482 | D75: =(D72)*'Encargos Folha'!$D$57 -> 608.6732482 | E75: =(E72)*'Encargos Folha'!$D$57 -> 608.6732482 | F75: =(F72)*'Encargos Folha'!$D$57 -> 608.6732482 | G75: =(G72)*'Encargos Folha'!$D$57 -> 608.6732482 | H75: =(H72)*'Encargos Folha'!$D$57 -> 608.6732482 | I75: =(I72)*'Encargos Folha'!$D$57 -> 608.6732482 | J75: =(J72)*'Encargos Folha'!$D$57 -> 608.6732482 | K75: =(K72)*'Encargos Folha'!$D$57 -> 608.6732482 | L75: =(L72)*'Encargos Folha'!$D$57 -> 608.6732482 | M75: =(M72)*'Encargos Folha'!$D$57 -> 608.6732482 | N75: =(N72)*'Encargos Folha'!$D$57 -> 608.6732482 | O75: 7304.078978
A76: 1.1.8.5 | B76: Rescisão | C76: =(C72)*'Encargos Folha'!$D$58 -> 388.4813755 | D76: =(D72)*'Encargos Folha'!$D$58 -> 388.4813755 | E76: =(E72)*'Encargos Folha'!$D$58 -> 388.4813755 | F76: =(F72)*'Encargos Folha'!$D$58 -> 388.4813755 | G76: =(G72)*'Encargos Folha'!$D$58 -> 388.4813755 | H76: =(H72)*'Encargos Folha'!$D$58 -> 388.4813755 | I76: =(I72)*'Encargos Folha'!$D$58 -> 388.4813755 | J76: =(J72)*'Encargos Folha'!$D$58 -> 388.4813755 | K76: =(K72)*'Encargos Folha'!$D$58 -> 388.4813755 | L76: =(L72)*'Encargos Folha'!$D$58 -> 388.4813755 | M76: =(M72)*'Encargos Folha'!$D$58 -> 388.4813755 | N76: =(N72)*'Encargos Folha'!$D$58 -> 388.4813755 | O76: 4661.776505
A77: 1.1.8.6 | B77: Benefícios | C77: =saláriosxencargos!$O$35 -> 464.13 | D77: =saláriosxencargos!$O$35 -> 464.13 | E77: =saláriosxencargos!$O$35 -> 464.13 | F77: =saláriosxencargos!$O$35 -> 464.13 | G77: =saláriosxencargos!$O$35 -> 464.13 | H77: =saláriosxencargos!$O$35 -> 464.13 | I77: =saláriosxencargos!$O$35 -> 464.13 | J77: =saláriosxencargos!$O$35 -> 464.13 | K77: =saláriosxencargos!$O$35 -> 464.13 | L77: =saláriosxencargos!$O$35 -> 464.13 | M77: =saláriosxencargos!$O$35 -> 464.13 | N77: =saláriosxencargos!$O$35 -> 464.13 | O77: 5569.56
A78: Subtotal | C78: =SUM(C72:C77) -> 9655.567887 | D78: 9655.567887 | E78: 9655.567887 | F78: 9655.567887 | G78: 9655.567887 | H78: 9655.567887 | I78: 9655.567887 | J78: 9655.567887 | K78: 9655.567887 | L78: 9655.567887 | M78: 9655.567887 | N78: 9655.567887 | O78: 115866.8146
A81: 2 | B81: Custo Pessoal - salários e encargos
A82: 2.1 | B82: Salário base | C82: =C72+C63+C54+C45+C36+C27+C18+C9 -> 50335.52582 | D82: 50335.52582 | E82: 50335.52582 | F82: 50335.52582 | G82: 50335.52582 | H82: 50335.52582 | I82: 50335.52582 | J82: 50335.52582 | K82: 50335.52582 | L82: 50335.52582 | M82: 50335.52582 | N82: 50335.52582 | O82: =SUM(C82:N82) -> 604026.3098
A84: 2.2 | B84: Férias e 13º
A85: 2.2.1 | B85: 13º salário | C85: =C73+C64+C55+C46+C37+C28+C19+C10 -> 19127.49981 | D85: 19127.49981 | E85: 19127.49981 | F85: 19127.49981 | G85: 19127.49981 | H85: 19127.49981 | I85: 19127.49981 | J85: 19127.49981 | K85: 19127.49981 | L85: 19127.49981 | M85: 19127.49981 | N85: 19127.49981 | O85: =SUM(C85:N85) -> 229529.9977
A86: 2.2.2 | B86: Férias | C86: =C74+C65+C56+C47+C38+C29+C20+C11 -> 9211.401225 | D86: 9211.401225 | E86: 9211.401225 | F86: 9211.401225 | G86: 9211.401225 | H86: 9211.401225 | I86: 9211.401225 | J86: 9211.401225 | K86: 9211.401225 | L86: 9211.401225 | M86: 9211.401225 | N86: 9211.401225 | O86: =SUM(C86:N86) -> 110536.8147
A88: Subtotal Férias e 13º | C88: =SUM(C85:C87) -> 28338.90104 | D88: =SUM(D85:D87) -> 28338.90104 | E88: 28338.90104 | F88: 28338.90104 | G88: 28338.90104 | H88: 28338.90104 | I88: 28338.90104 | J88: 28338.90104 | K88: 28338.90104 | L88: 28338.90104 | M88: 28338.90104 | N88: 28338.90104 | O88: =SUM(C88:N88) -> 340066.8124
A90: 2.3 | B90: Encargos
A91: 2.3.1 | B91: Sociais básicos | C91: =C12+C21+C30+C39+C48+C57+C66+C75 -> 5843.954547 | D91: 5843.954547 | E91: 5843.954547 | F91: 5843.954547 | G91: 5843.954547 | H91: 5843.954547 | I91: 5843.954547 | J91: 5843.954547 | K91: 5843.954547 | L91: 5843.954547 | M91: 5843.954547 | N91: 5843.954547 | O91: =SUM(C91:N91) -> 70127.45457
A92: 2.3.2 | B92: Previsão de rescisão | C92: =C13+C22+C31+C40+C49+C58+C67+C76 -> 3729.862463 | D92: 3729.862463 | E92: 3729.862463 | F92: =F13+F22+F31+F40+F49+F58+F67+F76 -> 3729.862463 | G92: 3729.862463 | H92: 3729.862463 | I92: 3729.862463 | J92: 3729.862463 | K92: 3729.862463 | L92: 3729.862463 | M92: 3729.862463 | N92: 3729.862463 | O92: =SUM(C92:N92) -> 44758.34956
A93: 2.3.3 | B93: Beneficios | F93: =F14+F23+F32+F41+F50+F59+F68+F77 -> 3927.6 | G93: =G14+G23+G32+G41+G50+G59+G68+G77 -> 3927.6 | H93: 3927.6 | I93: 3927.6 | J93: 3927.6 | K93: 3927.6 | L93: 3927.6 | M93: 3927.6 | N93: 3927.6 | O93: 47131.2
A94: Subtotal encargos | C94: =SUM(C91:C93) -> 9573.817011 | D94: =SUM(D91:D93) -> 9573.817011 | E94: =SUM(E91:E93) -> 9573.817011 | F94: 13501.41701 | G94: 13501.41701 | H94: 13501.41701 | I94: 13501.41701 | J94: 13501.41701 | K94: 13501.41701 | L94: 13501.41701 | M94: 13501.41701 | N94: 13501.41701 | O94: =SUM(C94:N94) -> 150234.2041
A99: Total geral | C99: =C94+C88+C82 -> 88248.24386 | D99: =D94+D88+D82 -> 88248.24386 | E99: 88248.24386 | F99: =F94+F88+F82 -> 92175.84386 | G99: 92175.84386 | H99: 92175.84386 | I99: 92175.84386 | J99: 92175.84386 | K99: 92175.84386 | L99: 92175.84386 | M99: 92175.84386 | N99: 92175.84386 | O99: 1094327.326

Sheet Serviços Terceirizados
A1: Voltar ao Menu
A2: 5. CUSTO COM SERVIÇOS TERCEIRIZADOS
A3: ='custo pessoal mês'!A3 -> Morada Nova de Minas
A5: 5.1. Serviços Terceirizados
A6: Ítem | B6: Descrição | C6: Unid | D6: Quant | E6: P. Unit R$ | F6: P. Total R$ | G6: Observações
B7: Veículos
A8: 1 | B8: VEÍCULO KOMB - TRANSPORTE PESSOAL -PORTO MELANCIAS | C8: MÊS | D8: 12 | E8: 5800 | F8: =D8*E8 -> 69600 | G8: Aluguel Mensal com combustivel e motorista
A9: 2 | B9: CAMINHÃO LEVE DE CARROCERIA (92HP) C/ COMBUSTÍVEL E MOTORISTA P/ TRANSPORTES NO CANTEIRO DE OBRA SEINFRA I8650 | C9: MÊS | D9: 12 | E9: 8270 | F9: 99240 | G9: Transporte de combustivel,aluguel mensal com combustivel e motorista
A10: 3 | F10: 0
A11: 4 | F11: 0
A12: 5 | F12: 0
A13: 6 | F13: 0
A14: 7 | F14: 0
B16: Máquinas e caminhões
A17: 8 | B17: RETROESCAVADEIRA (SINAPI 5678 CHP) | C17: HORA/ANO | D17: 100 | E17: 97.89 | F17: =D17*E17 -> 9789 | G17: Reparo de atracadouros
A18: 9 | B18: CAMINHÃO BASCULANTE 10 M³ SINAPI 91384 CHP | C18: HORA/ANO | D18: 100 | E18: 112.12 | F18: 11212 | G18: Reparo de atracadouros
A19: 10 | B19: MOTONIVELADORA 125 HP SINAPI 5932 CHP | C19: HORA/ANO | D19: 50 | E19: 150.32 | F19: 7516
A20: 11 | F20: 0
A21: 12 | F21: 0
A22: 13 | F22: 0
A23: 14 | F23: 0
A24: 15 | F24: 0
A25: 16 | F25: 0
A26: 17 | F26: 0
A27: 18 | F27: 0
A28: 19 | F28: 0
A29: CUSTO TOTAL MÁQ/VEÍCULOS | F29: =SUM(F8:F27) -> 197357
A32: 5.2. Serviços Terceirizados de Manutenção de Balsas
A33: Ítem | B33: Descrição | C33: Unid | D33: Quant | E33: P. Unit R$ | F33: P. Total R$ | G33: Observações
A34: 1 | B34: ='Operação Balsas '!A7 -> BALSA E REBOCADOR CHICO COELHO | C34: verba | D34: 12 | F34: =D34*E34 -> 0 | H34: ='Operação Balsas '!B7 -> MELANCIAS
A35: 2 | B35: ='Operação Balsas '!A8 -> BALSA E REBOCADOR MARIA RAQUEL- Dª.MIQUITA | C35: verba | D35: 12 | E35: 1000 | F35: =D35*E35 -> 12000 | G35: Serviço de mecanica geral | H35: ='Operação Balsas '!B8 -> INDAIÁ DE CIMA
A36: 4 | B36: ='Operação Balsas '!A10 -> BALSA INDAIÁ | C36: verba | D36: 12 | E36: 700 | F36: 8400 | G36: Serviço de mecanica geral | H36: ='Operação Balsas '!B10 -> SÃO VINCENTE
A37: 6 | B37: ='Operação Balsas '!A11 -> BALSA SANTA MARIA | C37: verba | D37: 12 | E37: 700 | F37: 8400 | G37: Serviço de mecanica geral | H37: ='Operação Balsas '!B11 -> SÃO VINCENTE
A38: 7 | B38: ='Operação Balsas '!A12 -> BALSA MORADA NOVA II | C38: verba | D38: 12 | E38: 800 | F38: 9600 | G38: Serviço de mecanica geral | H38: ='Operação Balsas '!B12 -> INDAIÁ DE BAIXO
A39: 8 | B39: ='Operação Balsas '!A13 -> BALSA SAGARANA | C39: verba | D39: 12 | E39: 800 | F39: 9600 | G39: Serviço de mecanica geral | H39: ='Operação Balsas '!B13 -> INDAIÁ DE BAIXO
A40: 9 | B40: ='Operação Balsas '!A14 -> BALSA GUARUJÁ | C40: verba | D40: 12 | E40: 1000 | F40: 12000 | G40: Serviço de mecanica geral | H40: ='Operação Balsas '!B14 -> MELANCIAS
A41: 10 | B41: ='Operação Balsas '!A15 -> 0 | C41: verba | F41: =D41*E41 -> 0 | H41: ='Operação Balsas '!B15 -> 0
A42: 11 | B42: ='Operação Balsas '!A16 -> 0 | F42: 0 | H42: ='Operação Balsas '!B16 -> 0
A43: 12 | B43: ='Operação Balsas '!A17 -> 0 | F43: 0 | H43: ='Operação Balsas '!B17 -> 0
A44: 13 | B44: ='Operação Balsas '!A18 -> 0 | F44: =D44*E44 -> 0 | H44: ='Operação Balsas '!B18 -> 0
A45: 14 | B45: ='Operação Balsas '!A19 -> 0 | F45: =D45*E45 -> 0 | H45: ='Operação Balsas '!B19 -> 0
A46: 15 | B46: ='Operação Balsas '!A20 -> 0 | F46: =D46*E46 -> 0 | H46: ='Operação Balsas '!B20 -> 0
A47: 16 | B47: ='Operação Balsas '!A21 -> 0 | F47: =D47*E47 -> 0 | H47: ='Operação Balsas '!B21 -> 0
A48: 17 | H48: Todos
A49: CUSTO TOTAL COM MANUTENÇÃO MÁQ/VEÍCULOS | F49: =SUM(F34:F48) -> 60000
B51: 2. Apropriação dos custos aos Portos
B52: Descrição | F52: Custo Serviços
B53: NOVO
B54: INDAIÁ DE BAIXO
B55: INDAIÁ DE CIMA
B56: EXTREMA
B57: SÃO VINCENTE
B58: MELANCIAS
B59: Todos
B60: TOTAL | F60: =SUM(F53:F59) -> 0
A63: 5.3 Terceirização de Serviços de Manutenção Predial
A64: Destino | B64: Descrição | C64: Unid | D64: Quant | E64: P. Unit R$ | F64: P. Total R$ | G64: Observações
A65: ADMINISTRAÇÃO | F65: =D65*E65 -> 0
A66: INDAIÁ DE BAIXO | F66: =D66*E66 -> 0
F67: =D67*E67 -> 0
F68: =D68*E68 -> 0
F69: =D69*E69 -> 0
F70: 0
F71: 0
F72: 0
F73: 0
F74: 0
A75: VALOR TOTAL (R$) | F75: =SUM(F65:F74) -> 0
A76: QUANTIDADE DE ANOS CORRESPONDENTE AO SERVIÇO------------------------------------------------------------------------------------------------------------> | F76: 1
A77: VALOR TOTAL (ANO) -------------------------------------------------------------------------------------------------------------------------------------------------------------> | F77: =IF(F75=0,0,F75/F76) -> 0
B79: 2. Apropriação dos custos aos Portos
B80: Descrição | F80: Custo Serviços
B81: NOVO | F81: =SUMIF($A$65:$A$74,$B81,$F$65:$F$74) -> 0
B82: INDAIÁ DE BAIXO | F82: =SUMIF($A$65:$A$74,$B82,$F$65:$F$74) -> 0
B83: INDAIÁ DE CIMA | F83: 0
B84: EXTREMA | F84: 0
B85: SÃO VINCENTE | F85: 0
B86: MELANCIAS | F86: 0
B87: MANUTENÇÃO | F87: 0
B88: ADMINISTRAÇÃO | F88: 0
B89: TOTAL | F89: =SUM(F81:F88) -> 0
A92: 5.4. Serviços Terceirizados de Infra-estrutura dos portos
A93: Ítem | B93: Descrição do Porto | C93: Unid | D93: Quant | E93: P. Unit R$ | F93: P. Total R$ | G93: Observações
A94: 1 | B94: NOVO | F94: =D94*E94 -> 0
A95: 2 | B95: INDAIÁ DE BAIXO | F95: =D95*E95 -> 0
A96: 3 | B96: INDAIÁ DE CIMA | C96: verba | F96: 0
A97: 4 | B97: EXTREMA | F97: 0
A98: 5 | B98: SÃO VINCENTE | F98: 0
A99: 6 | B99: MELANCIAS | C99: verba | F99: 0
A100: 7 | F100: 0
A101: 8
A102: 9
A103: 10 | F103: =D103*E103 -> 0
A104: CUSTO TOTAL COM MANUTENÇÃO MÁQ/VEÍCULOS | F104: =SUM(F94:F103) -> 0

Sheet Custos Gerais
A1: Voltar ao Menu
A2: 5. CUSTOS GERAIS
A3: ='Serviços Terceirizados'!A3 -> Morada Nova de Minas
A5: Descrição | B5: Valor (R$) | C5: Observações
A6: Custos Gerais Diretos
A7: Energia | B7: 3500
A8: Água | B8: 600
A9: Material Gráfico | B9: 4000
A10: Material de Consumo Geral | B10: =260 -> 260
A11: Material escritório (almoxarifado) | B11: 2786.13
A12: Outros | B12: =40+172+582 -> 794 | C12: curso marinheiro/hospedagem/manutenção extintores almoxarifado
A13: Provisão aqusição peças diversas | B13: 160000 | C13: Estimado em 10% custos globais s/remuneração
A20: Sub-total Custos Gerais Diretos | B20: =SUM(B7:B19) -> 171940.13
A22: Custos Gerais Indiretos
A23: Energia/água Escritório Prefeitura
A24: Internet
A25: Material de Consumo Geral
A26: Outros
A36: Sub-total Custos Gerais Indiretos | B36: =SUM(B23:B35) -> 0
A38: Total Custos Gerais | B38: =B36+B20 -> 171940.13

Sheet Outros Materiais
A1: Voltar ao Menu
A2: 4. CUSTO COM OUTROS MATERIAIS DE OPERAÇÃO
A3: ='Custos Gerais'!A3 -> Morada Nova de Minas
A5: 4.1. Materiais utilizados diretamente Infra-estrutura dos portos
A6: Ítem | B6: Descrição do Porto | C6: Unid | D6: Quant | E6: P. Unit R$ | F6: P. Total R$ | G6: Observações
A7: 1 | B7: NOVO | F7: =D7*E7 -> 0
A8: 2 | B8: INDAIÁ DE BAIXO | F8: =D8*E8 -> 0
A9: 3 | B9: INDAIÁ DE CIMA | C9: verba | D9: 1 | E9: 1597.48 | F9: 1597.48 | G9: poço artesiano
A10: 4 | B10: EXTREMA | F10: 0
A11: 5 | B11: SÃO VINCENTE | F11: 0
A12: 6 | B12: MELANCIAS | F12: 0
A13: 7 | B13: MANUTENÇÃO | F13: 0
A14: 8 | B14: ADMINISTRAÇÃO | F14: 0
A15: 9 | F15: 0
A16: 10 | F16: 0
A17: CUSTO TOTAL COM MANUTENÇÃO MÁQ/VEÍCULOS | F17: =SUM(F7:F16) -> 1597.48
A20: 4.2. Materiais utilizados indiretamente embarcações dos portos
A21: Ítem | B21: Descrição do Porto | C21: Unid | D21: Quant | E21: P. Unit R$ | F21: P. Total R$ | G21: Observações
A22: 1 | B22: MATERIAIS DIVERSOS UTILIZADOS NAS EMBARCAÇÕES | C22: verba | D22: 1 | E22: 10850 | F22: =D22*E22 -> 10850
A23: 2 | B23: MATERIAL DE CONSUMO DESTINADO AO USO DA OFICINA | C23: verba | E23: 6290.3 | F23: =D23*E23 -> 0
A24: 3 | B24: MATERIAL DE CONSUMO DESTINADO AO USO DO LAVADOR | C24: verba | E24: =4193.39+33.78 -> 4227.17 | F24: 0
A25: 4 | B25: MATERIAL MANUTENÇÃO MÁQUINA DE SOLDA | C25: verba | E25: 16312.56 | F25: 0
A26: 5 | F26: 0
A27: 6 | F27: 0
A28: 7 | F28: 0
A29: 8
A30: 9
A31: 10 | F31: =D31*E31 -> 0
A32: CUSTO TOTAL COM OPERAÇÃO MÁQ/VEÍCULOS | F32: =SUM(F22:F31) -> 10850

Sheet Manutenção Veículos
A1: Voltar ao Menu
A2: 3. CUSTO COM MÁQUINAS E VEÍCULOS
A3: ='custo pessoal mês'!A3 -> Morada Nova de Minas
A5: Descrição | B5: Quantidade | C5: Valor Unitário R$ | D5: Combustível | E5: Consumo km/lt ou lt/hs | F5: Und Cons. | G5: Km/hs Ano | H5: Combustível Consumido (L) | I5: Horas por ano | J5: Custo Combustível Ano (R$) | K5: Vida útil Anos | L5: % Residual | M5: Valor Residual | N5: Depreciação Anual | O5: % Custo C/ Manutenção | P5: Valor anual Manutenção | Q5: IPVA/TAX/SEG | R5: SEGURO | S5: Custo Total
A6: Veículos
A7: KOMBI | B7: 0 | D7: Gasolina | E7: =IF(G7=0,0,G7/H7) -> 10.17562246 | F7: km/lt | G7: 20001 | H7: 1965.58 | J7: =B7*H7*4.7 -> 0 | M7: =C7*L7 -> 0 | N7: =IF(C7=0,0,(C7-M7)/K7) -> 0 | O7: =IF(C7=0,0,P7/C7) -> 0 | Q7: =0.03*C7 -> 0 | S7: =J7+N7+P7+Q7+R7 -> 0
B8: 0 | D8: Gasolina | F8: km/lt
E9: =IF(G9=0,0,G9/H9) -> 0 | M9: =C9*L9 -> 0 | N9: =IF(C9=0,0,(C9-M9)/K9) -> 0 | O9: 0 | Q9: =0.03*C9 -> 0 | S9: =J9+N9+P9+Q9+R9 -> 0
E10: 0 | M10: 0 | N10: 0 | O10: 0 | Q10: 0 | S10: 0
A12: Máquinas e caminhões
S18: =J18+N18+P18+Q18+R18 -> 0
S19: =J19+N19+P19+Q19+R19 -> 0
A20: CUSTO TOTAL COM MANUTENÇÃO MÁQ/VEÍCULOS | G20: =SUM(G7:G19) -> 20001 | H20: =SUM(H7:H19) -> 1965.58 | I20: =SUM(I7:I19) -> 0 | J20: 0 | N20: =SUM(N7:N17) -> 0 | P20: =SUM(P7:P17) -> 0 | Q20: =SUM(Q7:Q17) -> 0 | R20: =SUM(R7:R17) -> 0 | S20: =SUM(S7:S17) -> 0
A21: Participação nos custos totais de manutenção | J21: 0 | N21: 0 | P21: 0 | Q21: 0 | S21: 0
A23: 2. Apropriação dos custos aos departamentos
A24: Descrição | B24: Quantidade | C24: Taxa de Ocupação | D24: Custo Total anual
A25: 1.2 Patrulha Mecanizada
A26: Descrição veículo/máquina a disposição | B26: qtde | C26: % aplicação | D26: custo patrulha | E26: estrada | G26: canais | J26: obras
E27: % | F27: $ | G27: % | I27: $ | J27: % | K27: $
A28: Veículo Leve | B28: 1 | C28: 1 | D28: =B28*C28*#REF! ->  | E28: 0 | F28: =$D28*E28 ->  | G28: 0.8 | I28: =$D28*G28 ->  | J28: 0.2 | K28: =$D28*J28 -> 
A29: Caminhão Comboio | B29: 1 | C29: 1 | D29: =B29*C29*S13 -> 0 | E29: 0 | F29: =$D29*E29 -> 0 | G29: 0.7 | I29: 0 | J29: 0.3 | K29: 0 | L29: km
A30: Trator Agrícola c/ Roçadeira | B30: 2 | C30: 1 | D30: =B30*C30*#REF! ->  | E30: 0 | G30: 0.7 | J30: 0.3 | L30: hora
A31: Caminhão Carroceria | B31: 1 | C31: 1 | D31: =B31*C31*#REF! ->  | E31: 0 | G31: 0.7 | J31: 0.3 | L31: km
A32: Escavadeira Hidráulica | B32: 1 | C32: 1 | D32: =B32*C32*#REF! ->  | E32: 0 | G32: 0.7 | J32: 0.3 | L32: hora
A33: Retroescavadeira | B33: 1 | C33: 1 | D33: =B33*C33*S15 -> 0 | E33: 0 | F33: 0 | G33: 0.7 | I33: 0 | J33: 0.3 | K33: 0 | L33: hora
A34: Caminhão Basculante | B34: 4 | C34: 1 | D34: =B34*C34*S17 -> 0 | E34: 0 | F34: 0 | G34: 0.7 | I34: 0 | J34: 0.3 | K34: 0 | L34: km
A35: Caminhão draga | B35: 1 | C35: 1 | D35: =B35*C35*#REF! ->  | E35: 0 | G35: 0.7 | J35: 0.3 | L35: km
A36: Caminhão guincho | B36: 1 | C36: 1 | D36: =B36*C36*#REF! ->  | E36: 0 | G36: 0.7 | J36: 0.3 | L36: km
A37: Caminhão Pipa 10000 L | B37: 1 | C37: 1 | D37: =B37*C37*#REF! ->  | E37: 0 | G37: 0.7 | J37: 0.3 | L37: km
A38: Motoniveladora | B38: 2 | C38: 1 | D38: =B38*C38*#REF! ->  | E38: 0 | G38: 0.7 | J38: 0.3 | L38: hora
A39: Pá Carregadeira | B39: 1 | C39: 1 | D39: =B39*C39*#REF! ->  | E39: 0 | G39: 0.7 | J39: 0.3 | L39: hora
A40: Rolo Compactador LR95 - DYNAPAC - Ano 1995 | B40: 1 | C40: 1 | D40: =B40*C40 -> 1 | E40: 0 | F40: 0 | G40: 0.7 | I40: 0.7 | J40: 0.3 | K40: 0.3
A41: Trator de Esteira 7D | B41: 1 | C41: 1 | D41: =B41*C41*#REF! ->  | E41: 0 | G41: 0.7 | J41: 0.3 | L41: hora
A43: 1.2.6 Total em Patrulha | B43: =SUM(B28:B42) -> 19 | D43: =SUM(D28:D41) ->  | E43: 0 | G43: 9.9 | J43: 4.1
A46: 1.4 Manutenção Eletro-Mecânica
A47: 1.4.1 MANUTENÇÃO MECÂNICA
A48: Veículo Leve | B48: 1 | C48: 1 | D48: =B48*C48*#REF! -> 
A49: Veículo Médio | B49: 1 | C49: 1 | D49: =B49*C49*#REF! -> 
A50: Caminhão Guincho | B50: 0 | C50: 0 | D50: =B50*#REF!*C50 -> 
A51: Motocicleta porte Médio | B51: 0 | C51: 0 | D51: =B51*C51*#REF! -> 
A52: Subtotal | B52: =SUM(B48:B51) -> 2 | D52: =SUM(D48:D51) ->  | E52: =D52/B52 -> 
A54: 1.4.2 MANUTENÇÃO ELÉTRICA
A55: Veículo Médio | B55: 1 | C55: 1 | D55: =B55*C55*#REF! -> 
A56: Veículo Leve | B56: 1 | C56: 1 | D56: =B56*C56*#REF! -> 
A57: Motocicleta porte Médio | B57: 1 | C57: 1 | D57: =B57*C57*#REF! -> 
A58: Subtotal | B58: =SUM(B55:B57) -> 3 | D58: =SUM(D55:D57) ->  | E58: =D58/B58 -> 
A60: 1.4.3 Total em Manutenção Eletro-Mecânica | D60: =D58+D52 -> 
A62: 1.5 Operação do Sistema
A63: 1.5.1 SISTEMA PRINCIPAL
D64: =B64*C64*S15 -> 0
D65: =B65*C65*S17 -> 0
A66: Subtotal | D66: =SUM(D64:D65) -> 0
A68: 1.5.2 SISTEMA SECUNDÁRIO
A69: Motocicleta porte Médio | B69: 16 | C69: 1 | D69: =B69*C69*#REF! -> 
A70: Subtotal | B70: =D70/B69 ->  | D70: =SUM(D69) -> 
A72: 1.5.3 ÁREA F
A73: Motocicleta porte Médio | B73: 4 | C73: 1 | D73: =B73*C73*#REF! -> 
A74: Subtotal | B74: =D74/B73 ->  | D74: =SUM(D73) -> 
A77: 1.5.5 Total Operação do Sistema | D77: =D74+D70+D66 -> 
A79: 1.6 Administração
A80: 1.6.1 ADMINISTRAÇÃO
A81: Veículo Leve | B81: 3 | C81: 1 | D81: =B81*C81*#REF! -> 
A82: Subtotal | B82: =D82/B81 ->  | D82: =SUM(D81) -> 
A84: 1.6.2 OUTROS
D85: =B85*C85*#REF! -> 
D86: =SUM(D85) -> 
A88: 1.6.3 Total em Administração | D88: =D86+D82 -> 
A90: 1.7 TOTAL GERAL VEÍCULOS E MÁQUINAS | D90: =D88+D77+D60+D43 -> 

Sheet Operação Balsas
A1: Voltar ao Menu
A2: 2. CUSTO DE MANUTENÇÃO DAS BALSAS
A3: ='Custo Pessoal'!A3 -> 0
A5: 2.1 Custo Manutenção Balsas
A6: Descrição | B6: Porto | C6: Quantidade | D6: Valor Unitário R$ | E6: Combustível | F6: Consumo lt/hs | G6: Horas/ano | H6: Combustível Consumido (L) | I6: Custo Combustível Ano (R$) | J6: Vida útil Anos | K6: % Residual | L6: Valor Residual | M6: Depreciação Anual | N6: % Custo C/ Manutenção | O6: Valor anual Manutenção | P6: SEGURO/LICENCIAMENTO | Q6: Custo Total
A7: BALSA E REBOCADOR CHICO COELHO | B7: MELANCIAS | C7: 1 | E7: Diesel | F7: =IF(G7=0,0,H7/G7) -> 13.33333333 | G7: 300 | H7: 4000 | I7: =H7*3.77 -> 15080 | L7: =D7*K7 -> 0 | M7: =IF(D7=0,0,(D7-L7)/J7) -> 0 | N7: =IF(D7=0,0,O7/D7) -> 0 | P7: 2000 | Q7: =I7+M7+O7+P7 -> 17080
A8: BALSA E REBOCADOR MARIA RAQUEL- Dª.MIQUITA | B8: INDAIÁ DE CIMA | C8: 1 | E8: Diesel | F8: 33 | G8: 641 | H8: 35000 | I8: =H8*3.77 -> 131950 | L8: 0 | M8: 0 | N8: 0 | P8: 2000 | Q8: =I8+M8+O8+P8 -> 133950
A9: BALSA EXTREMA | B9: INDAIÁ DE CIMA | C9: 1 | E9: Diesel | F9: =IF(G9=0,0,H9/G9) -> 11.02941176 | G9: 136 | H9: 1500 | I9: 5655 | L9: 0 | M9: 0 | N9: 0 | P9: 2000 | Q9: 7655
A10: BALSA INDAIÁ | B10: SÃO VINCENTE | C10: 1 | E10: Diesel | F10: 40 | G10: 100 | H10: 4000 | I10: 15080 | L10: 0 | M10: 0 | N10: 0 | P10: 2000 | Q10: 17080
A11: BALSA SANTA MARIA | B11: SÃO VINCENTE | C11: 1 | E11: Diesel | F11: 5.128205128 | G11: 780 | H11: 4000 | I11: 15080 | L11: 0 | M11: 0 | N11: 0 | P11: 2000 | Q11: 17080
A12: BALSA MORADA NOVA II | B12: INDAIÁ DE BAIXO | C12: 1 | E12: Diesel | F12: 8.245877061 | G12: 1334 | H12: 11000 | I12: 41470 | L12: 0 | M12: 0 | N12: 0 | P12: 2000 | Q12: 43470
A13: BALSA SAGARANA | B13: INDAIÁ DE BAIXO | C13: 1 | E13: Diesel | F13: =IF(G13=0,0,H13/G13) -> 50 | G13: 200 | H13: 10000 | I13: 37700 | L13: 0 | M13: 0 | N13: 0 | P13: 2000 | Q13: 39700
A14: BALSA GUARUJÁ | B14: MELANCIAS | C14: 1 | E14: Diesel | F14: =IF(G14=0,0,H14/G14) -> 12.56281407 | G14: 3184 | H14: 40000 | I14: 150800 | L14: 0 | M14: 0 | N14: 0 | P14: 2000 | Q14: 152800
L15: 0 | M15: 0 | N15: 0 | Q15: 0
L16: 0 | M16: 0 | N16: 0 | P16: 0 | Q16: 0
L17: 0 | M17: 0 | N17: 0 | P17: 0 | Q17: 0
L18: 0 | M18: 0 | N18: 0 | P18: 0 | Q18: 0
L19: 0 | M19: 0 | N19: 0 | Q19: 0
L20: 0 | M20: 0 | N20: 0 | Q20: 0
L21: 0 | M21: 0 | N21: 0 | Q21: 0
L22: 0 | M22: 0 | N22: 0 | Q22: 0
A23: CUSTO TOTAL COM MANUTENÇÃO MÁQ/VEÍCULOS | G23: =SUM(G7:G22) -> 6675 | H23: =SUM(H7:H22) -> 109500 | I23: =SUM(I7:I22) -> 412815 | M23: =SUM(M7:M22) -> 0 | O23: =SUM(O7:O22) -> 0 | P23: =SUM(P7:P22) -> 16000 | Q23: =SUM(Q7:Q22) -> 428815
A24: Participação nos custos totais de manutenção | I24: =I23/$Q$23 -> 0.9626878724 | M24: =M23/$Q$23 -> 0 | O24: =O23/$Q$23 -> 0 | Q24: =Q23/$Q$23 -> 1
I26: =H23/12 -> 9125 | J26: =I23/12 -> 34401.25
A27: 2.2. Apropriação dos custos aos Portos
A28: Descrição | B28: Combustível | C28: Depreciação | D28: Manutenção | E28: Seguro/Liceniamento | F28: Total | G28: %
A29: NOVO | B29: =SUMIF($B$7:$B$22,$A29,$I$7:$I$22) -> 0 | C29: =SUMIF($B$7:$B$22,$A29,$M$7:$M$22) -> 0 | D29: =SUMIF($B$7:$B$22,$A29,$O$7:$O$22) -> 0 | E29: =SUMIF($B$7:$B$22,$A29,$P$7:$P$22) -> 0 | F29: =SUM(B29:E29) -> 0 | G29: =F29/$F$36 -> 0
A30: INDAIÁ DE BAIXO | B30: 79170 | C30: 0 | D30: 0 | E30: 4000 | F30: =SUM(B30:E30) -> 83170 | G30: =F30/$F$36 -> 0.1939531033 | J30: =E36/12 -> 1333.333333
A31: INDAIÁ DE CIMA | B31: 137605 | C31: 0 | D31: 0 | E31: 4000 | F31: 141605 | G31: 0.3302239894
A32: EXTREMA | B32: 0 | C32: 0 | D32: 0 | E32: 0 | F32: 0 | G32: 0
A33: SÃO VINCENTE | B33: 30160 | C33: 0 | D33: 0 | E33: 4000 | F33: 34160 | G33: 0.07966139244
A34: MELANCIAS | B34: 165880 | C34: 0 | D34: 0 | E34: 4000 | F34: 169880 | G34: 0.3961615149
B35: 0 | C35: 0 | D35: 0 | E35: 0 | F35: 0 | G35: 0
A36: TOTAL | B36: =SUM(B29:B35) -> 412815 | C36: =SUM(C29:C35) -> 0 | D36: =SUM(D29:D35) -> 0 | E36: =SUM(E29:E35) -> 16000 | F36: =SUM(F29:F35) -> 428815 | G36: 1

Sheet capacidade
A1: Voltar ao Menu
A2: 9. ESTUDO DA CAPACIDADE INSTALADA DAS BALSAS/PORTOS
A3: ='Custo Pessoal'!A3 -> 0
A4: ='custo pessoal mês'!A3 -> Morada Nova de Minas
A5: 9.1 Caracterização das Balsas
A6: Descrição | B6: Porto | C6: Capacidade (TON) | D6: comprimento (M) | E6: largura (M) | F6: área (m²)
A7: ='Operação Balsas '!A7 -> BALSA E REBOCADOR CHICO COELHO | B7: ='Operação Balsas '!B7 -> MELANCIAS | C7: 80 | D7: 36 | E7: 8 | F7: =D7*E7 -> 288
A8: ='Operação Balsas '!A8 -> BALSA E REBOCADOR MARIA RAQUEL- Dª.MIQUITA | B8: ='Operação Balsas '!B8 -> INDAIÁ DE CIMA | C8: 80 | D8: 36 | E8: 8 | F8: =D8*E8 -> 288
A9: ='Operação Balsas '!A9 -> BALSA EXTREMA | B9: ='Operação Balsas '!B9 -> INDAIÁ DE CIMA | C9: 50 | D9: 17.52 | E9: 6 | F9: =D9*E9 -> 105.12
A10: ='Operação Balsas '!A10 -> BALSA INDAIÁ | B10: ='Operação Balsas '!B10 -> SÃO VINCENTE | C10: 34 | D10: 17.6 | E10: 6.22 | F10: =D10*E10 -> 109.472
A11: ='Operação Balsas '!A11 -> BALSA SANTA MARIA | B11: ='Operação Balsas '!B11 -> SÃO VINCENTE | C11: 48 | D11: 17.52 | E11: 6 | F11: =D11*E11 -> 105.12
A12: ='Operação Balsas '!A12 -> BALSA MORADA NOVA II | B12: ='Operação Balsas '!B12 -> INDAIÁ DE BAIXO | C12: 81.4 | D12: 26.4 | E12: 7.3 | F12: 192.72
A13: ='Operação Balsas '!A13 -> BALSA SAGARANA | B13: ='Operação Balsas '!B13 -> INDAIÁ DE BAIXO | C13: 50.6 | D13: 22 | E13: 7 | F13: 154
A14: ='Operação Balsas '!A14 -> BALSA GUARUJÁ | B14: ='Operação Balsas '!B14 -> MELANCIAS | C14: 120.5 | D14: 34 | E14: 9 | F14: 306
A15: ='Operação Balsas '!A15 -> 0 | B15: ='Operação Balsas '!B15 -> 0 | F15: 0
A16: ='Operação Balsas '!A16 -> 0 | B16: ='Operação Balsas '!B16 -> 0 | F16: 0
A17: ='Operação Balsas '!A17 -> 0 | B17: ='Operação Balsas '!B17 -> 0 | F17: 0
A18: ='Operação Balsas '!A18 -> 0 | B18: ='Operação Balsas '!B18 -> 0 | F18: 0
A19: ='Operação Balsas '!A19 -> 0 | B19: ='Operação Balsas '!B19 -> 0 | F19: 0
A20: ='Operação Balsas '!A20 -> 0 | B20: ='Operação Balsas '!B20 -> 0 | F20: 0
A21: ='Operação Balsas '!A21 -> 0 | B21: ='Operação Balsas '!B21 -> 0 | F21: 0
A22: ='Operação Balsas '!A22 -> 0 | B22: ='Operação Balsas '!B22 -> 0 | F22: 0
A23: CUSTO TOTAL COM MANUTENÇÃO MÁQ/VEÍCULOS | F23: =SUM(F7:F22) -> 1548.432
A26: 9.2. Capacidade dos Portos
A27: Descrição | B27: Capacidade/Embarcações | C27: Qtde Horários/dia | D27: Capacidade Transporte/Mês (ton) | E27: Capacidade Transporte (m²) | F27: Capacidade qtde veículos p/ viagem | G27: Capacidade qtde veículos p/ ano | H27: Veículos Transportados | I27: Uso Capacidade
A28: NOVO | B28: =SUMIF($B$7:$B$22,$A28,$C$7:$C$22) -> 0 | C28: 16 | D28: =B28*C28*30*12 -> 0 | E28: 288 | F28: =estatísticatransporte!F34 -> 34.49989565 | G28: =C28*F28*30*12 -> 198719.399 | H28: =Produção!N7 -> 25973.7 | I28: =H28/G28 -> 0.1307054074
A29: INDAIÁ DE BAIXO | B29: 132 | C29: 12 | D29: 570240 | E29: =SUMIF($B$7:$B$22,$A29,$F$7:$F$22) -> 346.72 | F29: =estatísticatransporte!F66 -> 78.16021276 | G29: =C29*F29*30*12 -> 337652.1191 | H29: =Produção!N11 -> 12152.25 | I29: 0.03599044493
A30: INDAIÁ DE CIMA | B30: 130 | C30: 10 | D30: 468000 | E30: 288 | F30: =estatísticatransporte!F98 -> 48.79148029 | G30: 175649.3291 | H30: =Produção!N15 -> 11152.25 | I30: 0.06349156049
A31: SÃO VINCENTE | B31: 82 | C31: 10 | D31: 295200 | E31: =SUMIF($B$7:$B$22,$A31,$F$7:$F$22) -> 214.592 | F31: =estatísticatransporte!F160 -> 48.29713455 | G31: 173869.6844 | H31: =Produção!N20 -> 6723.666667 | I31: 0.03867072452
A32: MELANCIAS | B32: 200.5 | C32: 10 | D32: 721800 | E32: =SUMIF($B$7:$B$22,$A32,$F$7:$F$22) -> 594 | F32: =estatísticatransporte!F191 -> 186.2464423 | G32: 670487.1923 | H32: =Produção!N24 -> 5110.25 | I32: 0.007621696669
B33: 0 | D33: 0 | E33: =SUMIF($B$7:$B$22,$A33,$F$7:$F$22) -> 0 | G33: 0
A34: TOTAL | B34: =SUM(B28:B33) -> 544.5 | D34: =SUM(D28:D33) -> 2055240 | E34: =SUM(E28:E33) -> 1731.312 | G34: =SUM(G28:G33) -> 1556377.724 | H34: =SUM(H28:H33) -> 61112.11667 | I34: =H34/G34 -> 0.0392656074

Sheet Apropriação
A1: Voltar ao Menu
A2: 7. PLANILHA DE APROPRIAÇÃO DE CUSTOS SERVIÇO DE TRANSPORTE POR MEIO DE BALSAS
A3: ='custo pessoal mês'!A3 -> Morada Nova de Minas
A5: I- Custo por Tipo e Centro de Custo
A6: Descrição | B6: CLASSIFICAÇÃO | D6: ='Operação Balsas '!A30 -> INDAIÁ DE BAIXO | E6: ='Operação Balsas '!A31 -> INDAIÁ DE CIMA | G6: ='Operação Balsas '!A33 -> SÃO VINCENTE | H6: ='Operação Balsas '!A34 -> MELANCIAS | I6: MANUTENÇÃO | J6: ADMINISTRAÇÃO | K6: TOTAL GERAL | L6: %
A8: 1. Custo Pessoal | C8: =SUM(C9:C13) -> 0 | D8: 110297.2546 | E8: 144234.8715 | F8: 0 | G8: 110297.2546 | H8: 518755.6868 | I8: 95111.32441 | J8: 80282.5344 | K8: =SUM(C8:J8) -> 1058978.926 | L8: =K8/$K$33 -> 0.5664386723
A9: Salários | B9: Fixo | C9: ='custo pessoal mês'!O63 -> 0 | D9: ='custo pessoal mês'!O36 -> 62911.96364 | E9: ='custo pessoal mês'!O45 -> 82269.49091 | F9: ='custo pessoal mês'!O27 -> 0 | G9: ='custo pessoal mês'!O72 -> 62911.96364 | H9: ='custo pessoal mês'!O54 -> 295890.7636 | I9: ='custo pessoal mês'!O18 -> 54250.128 | J9: ='custo pessoal mês'!O9 -> 45792 | K9: 604026.3098 | L9: 0.323088451
A10: 13º salário | B10: Fixo | C10: ='custo pessoal mês'!O64 -> 0 | D10: ='custo pessoal mês'!O37 -> 23906.54618 | E10: ='custo pessoal mês'!O46 -> 31262.40655 | F10: ='custo pessoal mês'!O28 -> 0 | G10: ='custo pessoal mês'!O73 -> 23906.54618 | H10: ='custo pessoal mês'!O55 -> 112438.4902 | I10: ='custo pessoal mês'!O19 -> 20615.04864 | J10: ='custo pessoal mês'!O10 -> 17400.96 | K10: 229529.9977 | L10: 0.1227736114
A11: Férias | B11: Fixo | C11: ='custo pessoal mês'!O65 -> 0 | D11: ='custo pessoal mês'!O38 -> 11512.88935 | E11: ='custo pessoal mês'!O47 -> 15055.31684 | F11: ='custo pessoal mês'!O29 -> 0 | G11: ='custo pessoal mês'!O74 -> 11512.88935 | H11: ='custo pessoal mês'!O56 -> 54148.00975 | I11: ='custo pessoal mês'!O20 -> 9927.773424 | J11: ='custo pessoal mês'!O11 -> 8379.936 | K11: 110536.8147 | L11: 0.05912518653
A12: Sociais básicos | B12: Fixo | C12: ='custo pessoal mês'!O66 -> 0 | D12: ='custo pessoal mês'!O39 -> 7304.078978 | E12: ='custo pessoal mês'!O48 -> 9551.487895 | F12: ='custo pessoal mês'!O30 -> 0 | G12: ='custo pessoal mês'!O75 -> 7304.078978 | H12: ='custo pessoal mês'!O57 -> 34352.91766 | I12: ='custo pessoal mês'!O21 -> 6298.439861 | J12: ='custo pessoal mês'!O12 -> 5316.4512 | K12: 70127.45457 | L12: 0.03751056916
A13: Rescisão | B13: Fixo | C13: ='custo pessoal mês'!O67 -> 0 | D13: ='custo pessoal mês'!O40 -> 4661.776505 | E13: ='custo pessoal mês'!O49 -> 6096.169276 | F13: ='custo pessoal mês'!O31 -> 0 | G13: ='custo pessoal mês'!O76 -> 4661.776505 | H13: ='custo pessoal mês'!O58 -> 21925.50559 | I13: ='custo pessoal mês'!O22 -> 4019.934485 | J13: ='custo pessoal mês'!O13 -> 3393.1872 | K13: 44758.34956 | L13: 0.02394085422
A15: 2. Operação de Balsas | B15: Variável | C15: ='Operação Balsas '!F29 -> 0 | D15: ='Operação Balsas '!F30 -> 83170 | E15: ='Operação Balsas '!F31 -> 141605 | F15: ='Operação Balsas '!F32 -> 0 | G15: ='Operação Balsas '!F33 -> 34160 | H15: ='Operação Balsas '!F34 -> 169880 | K15: =SUM(C15:J15) -> 428815 | L15: =K15/$K$33 -> 0.2293694362
A17: 3. Manutenção de Veículos/Máq | I17: ='Manutenção Veículos'!S20 -> 0 | K17: =SUM(C17:J17) -> 0 | L17: =K17/$K$33 -> 0
A18: Fixos: seguro/taxas/licenc/dep | B18: Fixo | I18: ='Manutenção Veículos'!Q20+'Manutenção Veículos'!N20 -> 0 | K18: =SUM(C18:J18) -> 0 | L18: =K18/$K$33 -> 0
A19: variáveis: manutenção/comb | B19: Variável | I19: ='Manutenção Veículos'!J20+'Manutenção Veículos'!P20 -> 0 | K19: =SUM(C19:J19) -> 0 | L19: =K19/$K$33 -> 0
A21: 4. Outros Materiais de Manutenção | C21: =SUM(C22:C23) -> 0 | D21: =SUM(D22:D23) -> 0 | E21: 1597.48 | F21: 0 | G21: 0 | H21: 0 | I21: 10850 | J21: 0 | K21: =SUM(C21:J21) -> 12447.48 | L21: =K21/$K$33 -> 0.006658049437
A22: Material Direto Operação | B22: Fixo | C22: ='Outros Materiais'!F7 -> 0 | D22: ='Outros Materiais'!F8 -> 0 | E22: ='Outros Materiais'!F9 -> 1597.48 | F22: ='Outros Materiais'!F10 -> 0 | G22: ='Outros Materiais'!F11 -> 0 | H22: ='Outros Materiais'!F12 -> 0 | I22: ='Outros Materiais'!F13 -> 0 | J22: ='Outros Materiais'!F14 -> 0 | K22: =SUM(C22:J22) -> 1597.48 | L22: =K22/$K$33 -> 0.000854478241
A23: Material Indireto Operação | B23: Fixo | I23: ='Outros Materiais'!F32 -> 10850 | K23: =SUM(C23:J23) -> 10850 | L23: =K23/$K$33 -> 0.005803571196
A25: 5. Serviços Terceirizados | C25: =SUM(C26:C29) -> 0 | D25: =SUM(D26:D29) -> 0 | E25: 0 | F25: 0 | G25: 0 | H25: 0 | I25: 197357 | J25: 0 | K25: =SUM(C25:J25) -> 197357 | L25: =K25/$K$33 -> 0.105564553
A26: Máquinas e Veículos | B26: Variável | I26: ='Serviços Terceirizados'!F29 -> 197357 | K26: =SUM(C26:J26) -> 197357 | L26: =K26/$K$33 -> 0.105564553
A27: Balsas | B27: Variável | C27: ='Serviços Terceirizados'!F53 -> 0 | D27: ='Serviços Terceirizados'!F54 -> 0 | E27: ='Serviços Terceirizados'!F55 -> 0 | F27: ='Serviços Terceirizados'!F56 -> 0 | G27: ='Serviços Terceirizados'!F57 -> 0 | H27: ='Serviços Terceirizados'!F58 -> 0 | I27: ='Serviços Terceirizados'!F59 -> 0 | K27: =SUM(C27:J27) -> 0 | L27: =K27/$K$33 -> 0
A28: Manutenção Predial | B28: Fixo | C28: ='Serviços Terceirizados'!F81 -> 0 | D28: ='Serviços Terceirizados'!F82 -> 0 | E28: ='Serviços Terceirizados'!F83 -> 0 | F28: ='Serviços Terceirizados'!F84 -> 0 | G28: ='Serviços Terceirizados'!F85 -> 0 | H28: ='Serviços Terceirizados'!F86 -> 0 | I28: ='Serviços Terceirizados'!F87 -> 0 | J28: ='Serviços Terceirizados'!F88 -> 0 | K28: =SUM(C28:J28) -> 0 | L28: =K28/$K$33 -> 0
A29: Manutenção Infraestrutura | B29: Fixo | C29: ='Serviços Terceirizados'!F94 -> 0 | D29: ='Serviços Terceirizados'!F95 -> 0 | E29: ='Serviços Terceirizados'!F96 -> 0 | F29: ='Serviços Terceirizados'!F97 -> 0 | G29: ='Serviços Terceirizados'!F98 -> 0 | H29: ='Serviços Terceirizados'!F99 -> 0 | K29: =SUM(C29:J29) -> 0 | L29: =K29/$K$33 -> 0
A31: 6. Custos Gerais | B31: Fixo | J31: ='Custos Gerais'!B38 -> 171940.13 | K31: =SUM(C31:J31) -> 171940.13 | L31: =K31/$K$33 -> 0.09196928903
A33: 7. TOTAL GERAL | C33: =C31+C25+C21+C17+C15+C8 -> 0 | D33: 193467.2546 | E33: 287437.3515 | F33: 0 | G33: 144457.2546 | H33: 688635.6868 | I33: 303318.3244 | J33: 252222.6644 | K33: =K31+K25+K21+K17+K15+K8 -> 1869538.536 | L33: =K33/$K$33 -> 1
A35: II- Custos por Natureza e Apropriação da Adm e Manutenção p/ Portos
A36: Descrição | C36: =C6 -> 0 | D36: =D6 -> INDAIÁ DE BAIXO | E36: INDAIÁ DE CIMA | F36: 0 | G36: SÃO VINCENTE | H36: MELANCIAS | I36: MANUTENÇÃO | J36: ADMINISTRAÇÃO | K36: TOTAL GERAL | L36: %
A37: 8. Rateio Custo Departamentos Apoio
A38: 8.1. Administração | B38: Fixo | C38: 0 | D38: =D50+D53 -> 42320.06321 | E38: 56750.15906 | F38: 0 | G38: 34794.06269 | H38: 118358.3794 | I38: 0 | J38: 0 | K38: =SUM(C38:J38) -> 252222.6644
A39: 8.2. Operação | B39: Fixo | C39: 0 | D39: =D57+D61+D65 -> 21791.72601 | E39: 27927.37975 | G39: 18026.71239 | H39: 34921.87509 | K39: =SUM(C39:J39) -> 102667.6932
A40: 8.2. Operação | B40: Variável | C40: 0 | D40: =D69+D73+D77 -> 40367.53719 | E40: 39075.76717 | G40: 33355.05601 | H40: 87847.92296 | I40: =I57+I61+I65 -> 0 | J40: =J57+J61+J65 -> 0 | K40: =SUM(C40:J40) -> 200646.2833
A41: 8.3 Total Custo Apropriado | C41: =SUM(C38:C40) -> 0 | D41: =SUM(D38:D40) -> 104479.3264 | E41: 123753.306 | F41: 0 | G41: 86175.83109 | H41: 241128.1775 | I41: 0 | J41: 0 | K41: =SUM(C41:J41) -> 555536.641
A42: % Participação Rateio Indiretos | C42: =C41/$K$41 -> 0 | D42: =D41/$K$41 -> 0.1880691906 | E42: 0.222763535 | F42: 0 | G42: 0.1551217773 | H42: 0.4340454971 | I42: 0 | J42: 0 | K42: 1
A44: e. Custo Total | C44: =C41+C33 -> 0 | D44: =D41+D33 -> 297946.5811 | E44: 411190.6574 | F44: 0 | G44: 230633.0857 | H44: 929763.8643 | K44: =SUM(C44:J44) -> 1869534.189
A45: % Participação C. Fixo + Rateio | C45: =C44/$K$44 -> 0 | D45: =D44/$K$44 -> 0.1593694209 | E45: 0.2199428392 | F45: 0 | G45: 0.1233639305 | H45: 0.4973238093 | I45: 0 | J45: 0 | K45: 1
A47: <>0
A48: III. Critérios de Rateio
A49: Administração
A50: % rateado igual para todos | C50: 0 | D50: =($J$33*$L$50)/(COUNTIF($C$6:$H$6,$A$47)) -> 12611.13322 | E50: 12611.13322 | G50: 12611.13322 | H50: 12611.13322 | K50: =SUM(C50:J50) -> 50444.53288 | L50: 0.3
A51: Custos Diretos | C51: =C33 -> 0 | D51: 193467.2546 | E51: 287437.3515 | F51: 0 | G51: 144457.2546 | H51: 688635.6868 | K51: =SUM(C51:J51) -> 1313997.548
A52: % custos diretos | C52: =C51/$K$51 -> 0 | D52: 0.1472356284 | E52: 0.2187502952 | F52: 0 | G52: 0.1099372331 | H52: 0.5240768433 | K52: =K51/$K$51 -> 1
A53: Rateio restante administração | C53: =($J$33-$K$50)*C52 -> 0 | D53: 29708.92999 | E53: 44139.02584 | F53: 0 | G53: 22182.92947 | H53: 105747.2462 | K53: =SUM(C53:J53) -> 201778.1315
A56: Operação - custos fixos
A57: % rateado igual para todos | C57: 0 | D57: =(($I$8+$I$18+$I$21+$I$28+$I$29+$I$31)*$L$57)/(COUNTIF($C$6:$H$6,$A$47)) -> 6534.281672 | E57: 6534.281672 | G57: 6534.281672 | H57: 6534.281672 | K57: =SUM(C57:J57) -> 26137.12669 | L57: 0.37
A59: Produção (nº passagens) | D59: =Produção!N11 -> 12152.25 | E59: =Produção!N15 -> 11152.25 | G59: =Produção!N20 -> 6723.666667 | H59: =Produção!N7+Produção!N24 -> 31083.95 | K59: =SUM(C59:J59) -> 61112.11667 | L59: 0.4
A60: % número passagens emitidas | C60: =C59/$K$59 -> 0 | D60: 0.198851728 | E60: 0.1824883609 | F60: 0 | G60: 0.110021826 | H60: 0.5086380851 | K60: =SUM(C60:J60) -> 1
A61: Rateio pelo número passagens | C61: =(($I$8+$I$18+$I$21+$I$28+$I$29+$I$31)*$L$59)*C60 -> 0 | D61: 8428.236983 | E61: 7734.683363 | F61: 0 | G61: 4663.223359 | H61: 21558.38606 | K61: =SUM(C61:J61) -> 42384.52976
A63: Qtde de Balsas | C63: 0 | D63: 1 | E63: 2 | F63: 1 | G63: 1 | H63: 1 | K63: =SUM(C63:J63) -> 6 | L63: 0.3867
A64: % balsas | C64: =C63/$K$63 -> 0 | D64: 0.1666666667 | E64: 0.3333333333 | F64: 0.1666666667 | G64: 0.1666666667 | H64: 0.1666666667 | K64: =SUM(C64:J64) -> 1
A65: Rateio pelo número balsas | C65: =(($I$8+$I$18+$I$21+$I$28+$I$29+$I$31)*$L$63)*C64 -> 0 | D65: 6829.207358 | E65: 13658.41472 | F65: 6829.207358 | G65: 6829.207358 | H65: 6829.207358 | K65: =SUM(C65:J65) -> 40975.24415
A68: Operação - custos variáveis
A69: % rateado igual para todos | C69: 0 | D69: =(($I$19+$I$26+$I$27+$I$15)*$L$69)/(COUNTIF($C$6:$H$6,$A$47)) -> 13157.13333 | E69: 13157.13333 | G69: 13157.13333 | H69: 13157.13333 | K69: =SUM(C69:J69) -> 52628.53333 | L69: 0.4
A71: Produção (nº passagens) | C71: =C59 -> 0 | D71: 12152.25 | E71: 11152.25 | F71: 0 | G71: 6723.666667 | H71: 31083.95 | K71: =SUM(C71:J71) -> 61112.11667 | L71: =L59 -> 0.4
A72: % número passagens emitidas | C72: =C71/$K$59 -> 0 | D72: 0.198851728 | E72: 0.1824883609 | F72: 0 | G72: 0.110021826 | H72: 0.5086380851 | K72: =SUM(C72:J72) -> 1
A73: Rateio pelo número passagens | C73: =((($I$19+$I$26+$I$27+$I$15))*$L$71)*C72 -> 0 | D73: 15697.91219 | E73: 14406.14217 | F73: 0 | G73: 8685.431006 | H73: 40153.31463 | K73: =SUM(C73:J73) -> 78942.8
A75: Qtde de Balsas | C75: 0 | D75: 1 | E75: 1 | F75: 0 | G75: 1 | H75: 3 | K75: =SUM(C75:J75) -> 6 | L75: 0.35
A76: % balsas | C76: =C75/$K$63 -> 0 | D76: 0.1666666667 | E76: 0.1666666667 | F76: 0 | G76: 0.1666666667 | H76: 0.5 | K76: =SUM(C76:J76) -> 1
A77: Rateio pelo número balsas | C77: =((($I$19+$I$26+$I$27+$I$15))*$L$75)*C76 -> 0 | D77: 11512.49167 | E77: 11512.49167 | F77: 0 | G77: 11512.49167 | H77: 34537.475 | K77: =SUM(C77:J77) -> 69074.95

Sheet tarifa serviços
A1: Voltar ao Menu
A2: 10. PLANILHA DE CÁLCULO DE TARIFAS DO SERVIÇO
A3: ='custo pessoal mês'!A3 -> Morada Nova de Minas
A4: ='Custo Pessoal'!B4 -> 2018-10-01
A5: DESCRIÇÃO | B5: ='Operação Balsas '!A30 -> INDAIÁ DE BAIXO | C5: ='Operação Balsas '!A31 -> INDAIÁ DE CIMA | D5: ='Operação Balsas '!A33 -> SÃO VINCENTE | E5: ='Operação Balsas '!A34 -> MELANCIAS | F5: TOTAL GERAL | G5: %
A7: 1. Custos Fixos (com encargos e remuneração da empresa) | B7: =SUM(B8:B12) -> 218011.3048 | C7: 288137.3628 | D7: 203897.5372 | E7: 840044.9267 | F7: 1550091.132 | G7: =F7/$F$20 -> 0.6633058185
A8: Encargos e remuneraçaõ da empresa (25%) | B8: =0.25*(SUM(B9:B13)) -> 43602.26097 | C8: 57627.47257 | D8: 40779.50743 | E8: 168008.9853 | F8: 310018.2263
A9: 1.1 Custo Pessoal | B9: =Apropriação!D8 -> 110297.2546 | C9: =Apropriação!E8 -> 144234.8715 | D9: =Apropriação!G8 -> 110297.2546 | E9: =Apropriação!H8 -> 518755.6868 | F9: =SUM(B9:E9) -> 883585.0676 | G9: =F9/$F$20 -> 0.3780984902
A10: 1.2. Outros Materiais de Manutenção (parte fixa) | B10: =Apropriação!D21 -> 0 | C10: =Apropriação!E21 -> 1597.48 | D10: =Apropriação!G21 -> 0 | E10: =Apropriação!H21 -> 0 | F10: =SUM(B10:E10) -> 1597.48 | G10: =F10/$F$20 -> 0.0006835841825
A11: 1.3. Rateio Administração | B11: =Apropriação!D38 -> 42320.06321 | C11: =Apropriação!E38 -> 56750.15906 | D11: =Apropriação!G38 -> 34794.06269 | E11: =Apropriação!H38 -> 118358.3794 | F11: =SUM(B11:E11) -> 252222.6644 | G11: =F11/$F$20 -> 0.1079296291
A12: 1.4. Rateio Manutenção (parte fixa) | B12: =Apropriação!D39 -> 21791.72601 | C12: =Apropriação!E39 -> 27927.37975 | D12: =Apropriação!G39 -> 18026.71239 | E12: =Apropriação!H39 -> 34921.87509 | F12: =SUM(B12:E12) -> 102667.6932 | G12: =F12/$F$20 -> 0.04393295137
A14: 2. Custos Variáveis (com encargos e remuneração da empresa | B14: =SUM(B15:B19) -> 154421.9215 | C14: 225850.959 | D14: 84393.82001 | E14: 322159.9037 | F14: =SUM(F15:F19) -> 786826.6042 | G14: =F14/$F$20 -> 0.3366941815
A15: Encargos e remuneraçaõ da empresa (25%) | B15: =0.25*(SUM(B16:B19)) -> 30884.3843 | C15: 45170.19179 | D15: 16878.764 | E15: 64431.98074 | F15: =0.25*(SUM(F16:F19)) -> 157365.3208
A16: 2.1. Operação de Balsas | B16: =Apropriação!D15 -> 83170 | C16: =Apropriação!E15 -> 141605 | D16: =Apropriação!G15 -> 34160 | E16: =Apropriação!H15 -> 169880 | F16: =SUM(B16:E16) -> 428815 | G16: =F16/$F$20 -> 0.1834959757
A17: 2.2. Serviços Terceirizados (parte variável) | B17: =Apropriação!D26+Apropriação!D27 -> 0 | C17: =Apropriação!E26+Apropriação!E27 -> 0 | D17: =Apropriação!G26+Apropriação!G27 -> 0 | E17: =Apropriação!H26+Apropriação!H27 -> 0 | F17: =SUM(B17:E17) -> 0 | G17: =F17/$F$20 -> 0
A18: 2.3. Rateio Operação (parte variável) | B18: =Apropriação!D40 -> 40367.53719 | C18: =Apropriação!E40 -> 39075.76717 | D18: =Apropriação!G40 -> 33355.05601 | E18: =Apropriação!H40 -> 87847.92296 | F18: =SUM(B18:E18) -> 200646.2833 | G18: =F18/$F$20 -> 0.08585936949
A20: 3. TOTAL GERAL | B20: =B14+B7 -> 372433.2263 | C20: 513988.3218 | D20: 288291.3572 | E20: 1162204.83 | F20: 2336917.736 | G20: =F20/$F$20 -> 1
A22: 4. Total de veículos transportados | B22: =Produção!N11 -> 12152.25 | C22: =Produção!N15 -> 11152.25 | D22: =Produção!N20+Produção!N24 -> 11833.91667 | E22: =Produção!N7+Produção!N24 -> 31083.95
A23: Uso da capacidade | B23: =B22/B26 -> 0.03599044493 | C23: 0.06349156049 | D23: 0.0680619897 | E23: 0.04636024425
A24: 5. Tarifa da parcela variável - R$/Viagem (2 / 4) | B24: =B14/B22 -> 12.70726997 | C24: 20.25160474 | D24: 7.131520559 | E24: 10.36418807
A26: 6. Capacidade de Transporte (qtde veículos) | B26: =capacidade!G29 -> 337652.1191 | C26: =capacidade!G30 -> 175649.3291 | D26: =capacidade!G31 -> 173869.6844 | E26: =capacidade!G32 -> 670487.1923
A27: % p/ Rateio da Capacidade para Rateio custo Fixo | B27: 0.05 | C27: 0.1 | D27: 0.1 | E27: 0.12
A28: 7. Capacidade Ajustada para Rateio do custo fixo | B28: =B26*B27 -> 16882.60596 | C28: 17564.93291 | D28: 17386.96844 | E28: 80458.46307
A29: 8. Tarifa da Parcela Fixa - R$/Viagem (1 / 7) | B29: =B7/B28 -> 12.91336808 | C29: 16.40412545 | D29: 11.72703211 | E29: 10.44072798
A31: 9. Tarifa Básica - R$/Viagem (5 + 8) | B31: =B29+B24 -> 25.62063805 | C31: 36.65573019 | D31: 18.85855267 | E31: 20.80491605
A33: 10. Detalhamento da tarifa por veículo
A34: Tipo de Veículo | B34: Tarifa R$/Viagem | C34: Tarifa R$/Viagem | D34: Tarifa R$/Viagem | E34: Tarifa R$/Viagem | F34: Peso p/ distribuição
A35: 10.1. moto | B35: =B$36*$F35 -> 6.405159512 | C35: =C$36*$F35 -> 9.163932547 | D35: =D$36*$F35 -> 4.714638168 | E35: =E$36*$F35 -> 5.201229012 | F35: 0.25
A36: 10.2 Veículo pequeno (tarifa básica) | B36: =B31*(1+$B$33/100) -> 25.62063805 | C36: =C31*(1+$B$33/100) -> 36.65573019 | D36: =D31*(1+$B$33/100) -> 18.85855267 | E36: =E31*(1+$B$33/100) -> 20.80491605 | F36: 1
A37: 10.3. Veículo médio ( van e microônbus, automovel com reboque) | B37: =B$36*$F37 -> 38.43095707 | C37: 54.98359528 | D37: 28.28782901 | E37: 31.20737407 | F37: 1.5
A38: 10.4. Caminhão 3/4 , caminhão toco, | B38: 51.2412761 | C38: 73.31146037 | D38: 37.71710534 | E38: 41.6098321 | F38: 2
A39: 10.5. Caminhão truck/ônibus | B39: 76.86191415 | C39: 109.9671906 | D39: 56.57565801 | E39: 62.41474815 | F39: 3
A40: 10.6. Carreta, caminhão trator com semi reboque | B40: 102.4825522 | C40: 146.6229207 | D40: 75.43421068 | E40: 83.21966419 | F40: 4
A41: 10.7. Bitrem | B41: 128.1031902 | C41: 183.2786509 | D41: 94.29276335 | E41: 104.0245802 | F41: 5
A42: 10.8 Caminhão transporte combustiveis, cargas especiais (perigosas) | B42: 179.3444663 | C42: 256.5901113 | D42: 132.0098687 | E42: 145.6344123 | F42: 7
A86: passeio | B86: 55 | C86: 46 | D86: 1500 | E86: =#REF!*D86 ->  | F86: =E86/1000 ->  | H86: =#REF!/#REF! -> 
A87: caminhonete e van | B87: 10 | C87: 14 | D87: 2500 | E87: =#REF!*D87 ->  | H87: =#REF!/#REF! ->  | L87: 34 | M87: 8 | N87: =L87*M87 -> 272 | O87: área
A88: caminhão 3/4 microônibus | C88: 4 | D88: 10000 | E88: =#REF!*D88 ->  | H88: =#REF!/#REF! ->  | N88: 120.5 | O88: cap carta
A89: caminhão toco | C89: 3 | D89: 10000 | E89: =#REF!*D89 ->  | H89: =#REF!/#REF! ->  | N89: =N88/N87 -> 0.4430147059 | O89: =N89*#REF! -> 
A90: caminhão truck | B90: 1 | C90: 4 | D90: 20000 | E90: =#REF!*D90 ->  | H90: =#REF!/#REF! -> 
A91: carreta | C91: 5 | D91: 30000 | E91: =#REF!*D91 ->  | H91: =#REF!/#REF! ->  | N91: 5
A92: bitrem | B92: 1 | D92: 50000 | E92: =#REF!*D92 ->  | H92: =#REF!/#REF! -> 
A93: caminhão leiteiro | D93: 25000 | E93: =#REF!*D93 ->  | H93: =#REF!/#REF! -> 
A94: reboque pequeno e tri | B94: 1 | D94: 20000 | E94: =#REF!*D94 ->  | H94: =#REF!/#REF! -> 
A95: reboque de barco | D95: 15000 | E95: =#REF!*D95 ->  | H95: =#REF!/#REF! -> 
A96: ônibus trab. Rural | D96: 40000 | E96: =#REF!*D96 ->  | H96: =#REF!/#REF! -> 
A97: ônibus de carreira | D97: 40000 | E97: =#REF!*D97 ->  | H97: =#REF!/#REF! -> 
A98: moto | B98: 12 | C98: 2 | D98: 200 | E98: =#REF!*D98 ->  | F98: =E98/1000 ->  | H98: =#REF!/#REF! -> 
A99: extra | C99: 4 | E99: =#REF!*D99 -> 
B100: =SUM(B86:B98) -> 80 | C100: =SUM(C86:C98) -> 78 | E100: =SUM(E86:E99) ->  | F100: =SUM(F86:F98) ->  | H100: =#REF!/#REF! -> 
E102: =E100*12 ->  | F102: =F100*12 -> 
A104: extrema | B104: 2015-06-01 | C104: 2015-05-01
A105: passeio | B105: 224 | C105: 230 | D105: =#REF!/3 ->  | E105: =D105/$D$120 ->  | F105: 2 | G105: 4 | H105: =G105*F105 -> 8 | K105: passeio
A106: caminhonete e van | B106: 119 | C106: 90 | D106: =#REF!/3 ->  | E106: =D106/$D$120 ->  | F106: 2.5 | G106: 5 | H106: =G106*F106 -> 12.5 | K106: caminhonete e van
A107: caminhão 3/4 microônibus | B107: 48 | C107: 31 | D107: =#REF!/3 ->  | F107: 4 | G107: 6 | H107: =G107*F107 -> 24 | K107: caminhão 3/4 microônibus
A108: caminhão toco | B108: 90 | C108: 95 | D108: =#REF!/3 ->  | F108: 4 | G108: 8 | H108: 32 | K108: caminhão toco
A109: caminhão truck | B109: 52 | C109: 23 | D109: =#REF!/3 ->  | F109: 4 | G109: 10 | H109: 40 | K109: caminhão truck
A110: carreta | B110: 6 | C110: 7 | D110: =#REF!/3 ->  | F110: 5 | G110: 12 | H110: 60 | K110: carreta
A111: bitrem | B111: 0 | C111: 0 | D111: =#REF!/3 ->  | F111: 5 | G111: 20 | H111: 100 | K111: bitrem
A112: caminhão leiteiro | B112: 0 | C112: 0 | D112: =#REF!/3 ->  | H112: 0 | K112: caminhão leiteiro
A113: reboque pequeno e tri | B113: 92 | C113: 89 | D113: =#REF!/3 ->  | H113: 0 | K113: reboque pequeno e tri
A114: reboque de barco | B114: 2 | C114: 0 | D114: =#REF!/3 ->  | H114: 0 | K114: reboque de barco
A115: ônibus trab. Rural | B115: 0 | C115: 0 | D115: =#REF!/3 ->  | H115: 0 | K115: ônibus trab. Rural
A116: ônibus de carreira | B116: 0 | C116: 0 | D116: =#REF!/3 ->  | H116: 0 | K116: ônibus de carreira
A117: moto | B117: 11 | C117: 13 | D117: =#REF!/3 ->  | F117: 1 | G117: 1 | H117: 1 | K117: moto
A118: extra | B118: 0 | C118: 0 | D118: =#REF!/3 ->  | H118: 0 | K118: extra
A119: outros | B119: 0 | C119: 1 | D119: =#REF!/3 ->  | H119: 0 | K119: outros
D120: =SUM(D105:D119) ->  | H120: =SUM(H105:H119) -> 277.5
D121: =D120*12 -> 
D122: =#REF!/D121 -> 
A123: moto | B123: =#REF!*#REF! ->  | C123: =B123/H117 -> 
A124: pequeno | B124: =#REF!*#REF! ->  | C124: =B124/H105 -> 
A125: médio | B125: =#REF!*#REF! ->  | C125: =B125/H106 -> 
A126: caminhão/ônibus | B126: =#REF!*#REF! ->  | C126: =B126/H108 -> 
A127: carreta | B127: =#REF!*#REF! -> 
A128: bitrem | B128: =#REF!*#REF! -> 
B129: =SUM(B123:B128) ->  | C129: =SUM(C123:C128) -> 
C131: =capacidade!#REF! -> 
C132: =C129*C131*30 -> 
C133: =D120/C132 -> 
C135: =C132*12 -> 

Sheet Remuneração da empresa
C3: ENCARGOS SOCIAIS | G3: CUSTO DE ADMINISTRAÇÃO + REMUNERAÇÃO DA EMPRESA
C5: A1 | D5: PREVIDÊNCIA SOCIAL | E5: 20 | G5: ITEM
C6: A2 | D6: FUNDO DE GARANTIA POR TEMPO DE SERVIÇO | E6: 8 | G6: ADMINISTRAÇÃO CENTRAL | J6: 0.06
C7: A3 | D7: SALÁRIO EDUCAÇÃO | E7: 2.5 | G7: (Custo indireto + viagens)
C8: A4 | D8: SERVIÇO SOCIAL DA INDÚSTRIA (SESI) | E8: 1.5 | G8: DESPESAS FINANCEIRAS | J8: 0.012
C9: A5 | D9: SERVIÇO NACIONAL DE APRENDIZAGEM INDUSTRIAL (SENAI) | E9: 1 | G9: LUCRO | J9: 0.1
C10: A6 | D10: SERVIÇO DE APOIO A PEQUENA E MÉDIA EMPRESA (SEBRAE) | E10: 0.6 | G10: RISCO | J10: 0.012
C11: A7 | D11: INSTITUTO NACIONAL DE COLONIZAÇÃO E REFORMA AGRÁRIA (INCRA) | E11: 0.2 | G11: TOTAL | J11: =SUM(J6:J10) -> 0.184
C12: A8 | D12: SEGURO CONTRA ACIDENTES DE TRABALHO (INSS) | E12: 3
C13: A9 | D13: SERVIÇO SOCIAL DA INDÚSTRIA DA CONSTRUÇÃO E DO MOBILIÁRIO | E13: 1.2 | G13: Tributação | J13: 0.0665
C14: A | D14: TOTAL DOS ENCARGOS SOCIAIS BÁSICOS | E14: =SUM(E5:E13) -> 38 | J14: =J11+J13 -> 0.2505
C16: B1
C24: B4 | D24: 13o SALÁRIO | E24: 8.33
C26: B | D26: TOTAL DOS ENCARGOS SOCIAIS QUE RECEBEM INCIDÊNCIA DE A | E26: =SUM(E24:E24) -> 8.33
C28: C1 | D28: DEPÓSITO POR DESPEDIDA INJUSTA (50% SOBRE (A2+((A2XB)))) | E28: 3.69
C29: C2 | D29: FÉRIAS INDENIZADAS | E29: 1.31
C30: C3 | D30: AVISO PRÉVIO INDENIZADO | E30: 5.86
C31: C | D31: TOTAL DE ENCARGOS QUE NÃO RECEBEM AS INCIDÊNCIAS GLOBAIS DE A | E31: =SUM(E28:E30) -> 10.86
C33: D1 | D33: REINCIDÊNCIA DE A SOBRE B | E33: 7.36
C34: D2 | D34: REINCIDÊNCIA DE A SOBRE C3 | E34: 0.52
C35: D | D35: TOTAL DAS TAXAS DAS REINCIDÊNCIAS | E35: =SUM(E33:E34) -> 7.88
D37: PERCENTUAL TOTAL | E37: =SUM(E35,E31,E26,E14) -> 65.07
C40: DESPESAS FISCAIS
E41: DF | F41: DF'
C42: 1 - ISS | E42: 0.03 | F42: =1/(1-$D$43)*E42 -> 0.03
C43: 2 - PIS | E43: 0.0065 | F43: =1/(1-$D$43)*E43 -> 0.0065
C44: 3 - COFINS | E44: 0.03 | F44: =1/(1-$D$43)*E44 -> 0.03
C45: TOTAL | E45: =SUM(E42:E44) -> 0.0665 | F45: =SUM(F42:F44) -> 0.0665

Sheet Produção
A1: Voltar ao Menu
A2: 8. PLANILHA RESUMO DE VOLUME E FATURAMENTO DOS SERVIÇOS
A3: ='Custo Pessoal'!A3 -> 0
B4: 2018-06-01 | C4: 2018-07-01 | D4: 2018-08-01 | E4: 2018-09-01 | F4: 2018-10-01 | G4: 2018-11-01 | H4: 2018-12-01 | I4: 2019-01-01 | J4: 2019-02-01 | K4: 2019-03-01 | L4: 2019-04-01 | M4: 2019-05-01
A5: Porto | B5: 1 | C5: 2 | D5: 3 | E5: 4 | F5: 5 | G5: 6 | H5: 7 | I5: 8 | J5: 9 | K5: 10 | L5: 11 | M5: 12 | N5: Total anual
A6: ='Operação Balsas '!A34 -> MELANCIAS
A7: Passagens emitidas | B7: 2102 | C7: 2357 | D7: =(1811/25)*30 -> 2173.2 | E7: 2170 | F7: 2248 | G7: =AVERAGE(E7:F7) -> 2209 | H7: =AVERAGE(F7:G7) -> 2228.5 | I7: 2106 | J7: 1824 | K7: 2030 | L7: 2418 | M7: 2108 | N7: =SUM(B7:M7) -> 25973.7
A8: Faturamento | B8: 65609 | C8: 71837 | D8: =55193/25*30 -> 66231.6 | E8: 65099 | F8: 67161 | G8: =AVERAGE(E8:F8) -> 66130 | H8: =AVERAGE(F8:G8) -> 66645.5 | I8: 67648 | J8: 41637 | K8: 57685 | L8: 73773 | M8: 64064 | N8: =SUM(B8:M8) -> 773520.1
A10: ='Operação Balsas '!A30 -> INDAIÁ DE BAIXO
A11: Passagens emitidas | B11: 903 | C11: 999 | D11: 772 | E11: 1084 | F11: 1133 | G11: =AVERAGE(E11:F11) -> 1108.5 | H11: =AVERAGE(F11:G11) -> 1120.75 | I11: 1308 | J11: 946 | K11: 928 | L11: 1018 | M11: 832 | N11: =SUM(B11:M11) -> 12152.25
A12: Faturamento | B12: 15983 | C12: 18215 | D12: 13472 | E12: 19153 | F12: 19969 | G12: =AVERAGE(E12:F12) -> 19561 | H12: =AVERAGE(F12:G12) -> 19765 | I12: 13798 | J12: 12207 | K12: 13313 | L12: 17557 | M12: 14341 | N12: =SUM(B12:M12) -> 197334
A14: ='Operação Balsas '!A31 -> INDAIÁ DE CIMA
A15: Passagens emitidas | B15: 653 | C15: 930 | D15: 670 | E15: 1024 | F15: 1069 | G15: =AVERAGE(E15:F15) -> 1046.5 | H15: =AVERAGE(F15:G15) -> 1057.75 | I15: 1085 | J15: 1060 | K15: 1020 | L15: 896 | M15: 641 | N15: =SUM(B15:M15) -> 11152.25
A16: Faturamento | B16: 12936 | C16: 18574 | D16: 13158 | E16: 20598 | F16: 21516 | G16: 16878 | H16: 16878 | I16: 15913 | J16: 15845 | K16: 18280 | L16: 17814 | M16: 12848 | N16: =SUM(B16:M16) -> 201238
A19: ='Operação Balsas '!A33 -> SÃO VINCENTE
A20: Passagens emitidas | B20: =AVERAGE(I20:K20) -> 691.6666667 | C20: 485 | D20: 484 | E20: 385 | F20: 405 | G20: =AVERAGE(E20:F20) -> 395 | H20: =AVERAGE(F20:G20) -> 400 | I20: 702 | J20: 562 | K20: 811 | L20: 665 | M20: =AVERAGE(K20:L20) -> 738 | N20: =SUM(B20:M20) -> 6723.666667
A21: Faturamento | B21: =AVERAGE(I21:K21) -> 10686 | C21: 9098 | D21: 9009 | E21: 7360 | F21: 7557 | G21: 8185 | H21: 8185 | I21: 10013 | J21: 7838 | K21: 14207 | L21: 12707 | M21: =AVERAGE(K21:L21) -> 13457 | N21: =SUM(B21:M21) -> 118302
A23: ='Operação Balsas '!A34 -> MELANCIAS
A24: Passagens emitidas | B24: 396 | C24: 365 | D24: 284 | E24: 349 | F24: 586 | G24: =AVERAGE(E24:F24) -> 467.5 | H24: =AVERAGE(F24:G24) -> 526.75 | I24: 505 | J24: 345 | K24: 404 | L24: 438 | M24: 444 | N24: =SUM(B24:M24) -> 5110.25
A25: Faturamento | B25: 11765 | C25: 10078 | D25: 8017 | E25: 9700 | F25: 17097 | G25: =AVERAGE(E25:F25) -> 13398.5 | H25: =AVERAGE(F25:G25) -> 15247.75 | I25: 10652 | J25: 7803 | K25: 10957 | L25: 12102 | M25: 12786 | N25: =SUM(B25:M25) -> 139603.25
A26: Acrescer movimento Porto Novo
A27: TOTAL
A28: Passagens emitidas | B28: =B24+B20+B15+B11+B7 -> 4745.666667 | C28: 5136 | D28: 4383.2 | E28: 5012 | F28: 5441 | G28: 5226.5 | H28: 5333.75 | I28: 5706 | J28: 4737 | K28: 5193 | L28: 5435 | M28: 4763 | N28: 61112.11667
A29: Faturamento | B29: =B25+B21+B16+B12+B8 -> 116979 | C29: 127802 | D29: 109887.6 | E29: 121910 | F29: 133300 | G29: 124152.5 | H29: 126721.25 | I29: 118024 | J29: 85330 | K29: 114442 | L29: 133953 | M29: 117496 | N29: 1429997.35
A31: O movimento do Porto Melancias deverá ser acrescido ao do porto Novo para fins de estatisitca, face à fusão dos dois na nova operação.

Sheet estatísticatransporte
A1: Voltar ao Menu
A2: 10. ESTATÍSTICAS DE TRANSPORTE
A3: ='tarifa serviços'!A3 -> Morada Nova de Minas
F4: =1494-F9 -> 1107.494527
A5: Porto Novo | B5: (MEDIAS MENSAIS) | D5: (Será agrupado ao Porto Melancias)
A7: veículo | B7: Peso | C7: cumprimento | D7: largura | E7: área ocup | F7: guarujá | G7: indaiá | H7: miquita | I7: total | K7: guarujá | L7: indaiá | M7: miquita | N7: total | P7: guarujá | Q7: indaiá | R7: miquita | S7: total
A8: passeio | B8: 1500 | C8: 5 | D8: 2 | E8: =C8*D8 -> 10 | F8: 1221.960199 | I8: =SUM(F8:H8) -> 1221.960199 | K8: 1221.960199 | N8: =SUM(K8:M8) -> 1221.960199 | P8: 1221.960199 | S8: =SUM(P8:R8) -> 1221.960199 | U8: =(I8+N8+S8)/3 -> 1221.960199 | V8: =U8/$U$23 -> 0.5631152991 | X8: 1135 | Z8: =X8*$Z$23 -> 1221.960199
A9: caminhonete e van | B9: 2500 | C9: 6 | D9: 2.2 | E9: =C9*D9 -> 13.2 | F9: 386.5054726 | I9: =SUM(F9:H9) -> 386.5054726 | K9: 386.5054726 | N9: 386.5054726 | P9: 386.5054726 | S9: 386.5054726 | U9: =(I9+N9+S9)/3 -> 386.5054726 | V9: =U9/$U$23 -> 0.178113121 | X9: 359 | Z9: =X9*$Z$23 -> 386.5054726
A10: caminhão 3/4 microônibus | B10: 10000 | C10: 6.5 | D10: 2.5 | E10: =C10*D10 -> 16.25 | F10: 162.5691542 | I10: 162.5691542 | K10: 162.5691542 | N10: 162.5691542 | P10: 162.5691542 | S10: 162.5691542 | U10: 162.5691542 | V10: 0.07491666093 | X10: 151 | Z10: 162.5691542
A11: caminhão toco | B11: 10000 | C11: 14 | D11: 2.6 | E11: 36.4 | F11: 0 | I11: 0 | K11: 0 | N11: 0 | P11: 0 | S11: 0 | U11: 0 | V11: 0 | X11: 0 | Z11: 0
A12: caminhão truck | B12: 20000 | C12: 14 | D12: 2.6 | E12: 36.4 | F12: 163.6457711 | I12: 163.6457711 | K12: 163.6457711 | N12: 163.6457711 | P12: 163.6457711 | S12: 163.6457711 | U12: 163.6457711 | V12: 0.07541279776 | X12: 152 | Z12: 163.6457711
A13: carreta | B13: 30000 | C13: 18.5 | D13: 2.8 | E13: 51.8 | F13: 55.9840796 | I13: 55.9840796 | K13: 55.9840796 | N13: 55.9840796 | P13: 55.9840796 | S13: 55.9840796 | U13: 55.9840796 | V13: 0.02579911502 | X13: 52 | Z13: 55.9840796
A14: bitrem | B14: 50000 | C14: 30 | D14: 2.8 | E14: 84 | F14: 1.076616915 | I14: 1.076616915 | K14: 1.076616915 | N14: 1.076616915 | P14: 1.076616915 | S14: 1.076616915 | U14: 1.076616915 | V14: 0.0004961368274 | X14: 1 | Z14: 1.076616915
A15: caminhão leiteiro | B15: 25000 | C15: 14 | D15: 2.6 | E15: 36.4 | F15: 0 | I15: 0 | K15: 0 | N15: 0 | P15: 0 | S15: 0 | U15: 0 | V15: 0 | X15: 0 | Z15: 0
A16: reboque pequeno e tri | B16: 20000 | C16: 5 | D16: 2 | E16: 10 | F16: 25.83880597 | I16: 25.83880597 | K16: 25.83880597 | N16: 25.83880597 | P16: 25.83880597 | S16: 25.83880597 | U16: 25.83880597 | V16: 0.01190728386 | X16: 24 | Z16: 25.83880597
A17: reboque de barco | B17: 15000 | C17: 5 | D17: 2 | E17: 10 | F17: 10.76616915 | I17: 10.76616915 | K17: 10.76616915 | N17: 10.76616915 | P17: 10.76616915 | S17: 10.76616915 | U17: 10.76616915 | V17: 0.004961368274 | X17: 10 | Z17: 10.76616915
A18: ônibus trab. Rural | B18: 40000 | C18: 14 | D18: 2.6 | E18: 36.4 | F18: 11.84278607 | I18: 11.84278607 | K18: 11.84278607 | N18: 11.84278607 | P18: 11.84278607 | S18: 11.84278607 | U18: 11.84278607 | V18: 0.005457505101 | X18: 11 | Z18: 11.84278607
A19: ônibus de carreira | B19: 40000 | C19: 14 | D19: 2.6 | E19: 36.4 | F19: 0 | I19: 0 | K19: 0 | N19: 0 | P19: 0 | S19: 0 | U19: 0 | V19: 0 | X19: 0 | Z19: 0
A20: moto | B20: 200 | C20: 2 | D20: 0.7 | E20: 1.4 | F20: 123.8109453 | I20: 123.8109453 | K20: 123.8109453 | N20: 123.8109453 | P20: 123.8109453 | S20: 123.8109453 | U20: 123.8109453 | V20: 0.05705573515 | X20: 115 | Z20: 123.8109453
A21: extra | C21: 5.5 | D21: 2.5 | E21: 13.75 | I21: 0 | K21: 5 | N21: 5 | P21: 3 | S21: 3 | U21: 2.666666667 | V21: 0.001228878648 | Z21: 0
A22: outros | C22: 5.5 | D22: 2.5 | E22: 13.75 | K22: 2 | N22: 2 | P22: 8 | S22: 8 | U22: 3.333333333 | V22: 0.00153609831
E23: 0 | F23: =SUM(F8:F22) -> 2164 | G23: =SUM(G8:G22) -> 0 | H23: =SUM(H8:H22) -> 0 | I23: =SUM(I8:I22) -> 2164 | K23: =SUM(K8:K22) -> 2171 | L23: =SUM(L8:L22) -> 0 | M23: =SUM(M8:M22) -> 0 | N23: =SUM(N8:N22) -> 2171 | P23: =SUM(P8:P22) -> 2175 | Q23: 0 | R23: 0 | S23: 2175 | U23: 2170 | V23: 1 | X23: 2010 | Y23: 2164 | Z23: =Y23/X23 -> 1.076616915
A25: Resumo porto novo
A26: Tipo | B26: qtde média | C26: participação | D26: área ocup por veículo | E26: área disponível balsas x veículo | F26: capacidade por tipo de veículo | H26: tarifa | I26: qtde veículos | K26: faturamento previsto
A27: moto | B27: =U20 -> 123.8109453 | C27: =B27/$B$34 -> 0.05705573515 | D27: =E20 -> 1.4 | E27: =$E$34*C27 -> 16.43205172 | F27: =E27/D27 -> 11.7371798 | H27: ='tarifa serviços'!E35 -> 5.201229012 | I27: =C27*$I$36 -> 1481.948548 | K27: =H27*I27 -> 7707.953783
A28: pequeno | B28: =U8+U16+U17 -> 1258.565174 | C28: =B28/$B$34 -> 0.5799839512 | D28: =E8 -> 10 | E28: 167.0353779 | F28: =E28/D28 -> 16.70353779 | H28: ='tarifa serviços'!E36 -> 20.80491605 | I28: 15064.32915 | K28: =H28*I28 -> 313412.1034
A29: médio | B29: =U9+U21+U22 -> 392.5054726 | C29: 0.180878098 | D29: =E9 -> 13.2 | E29: 52.09289222 | F29: 3.946431229 | H29: ='tarifa serviços'!E37 -> 31.20737407 | I29: 4698.073454 | K29: 146614.5357
A30: 3/4 van e microônbus | B30: =U10 -> 162.5691542 | C30: 0.07491666093 | D30: =E10 -> 16.25 | E30: 21.57599835 | F30: 1.327753745 | H30: ='tarifa serviços'!E38 -> 41.6098321 | I30: 1945.862876 | K30: 80967.02756
A31: caminhão/ônibus | B31: =U11+U12+U15+U18+U19 -> 175.4885572 | C31: 0.08087030286 | D31: =E11 -> 36.4 | E31: 23.29064722 | F31: 0.6398529457 | H31: ='tarifa serviços'!E39 -> 62.41474815 | I31: 2100.500985 | K31: 131102.24
A32: carreta | B32: =U13 -> 55.9840796 | C32: 0.02579911502 | D32: =E13 -> 51.8 | E32: =$E$34*C32 -> 7.430145127 | F32: 0.1434390951 | H32: ='tarifa serviços'!E40 -> 83.21966419 | I32: 670.0984739 | K32: 55765.36997
A33: bitrem | B33: =U14 -> 1.076616915 | C33: 0.0004961368274 | D33: =E14 -> 84 | E33: 0.1428874063 | F33: 0.001701040551 | H33: ='tarifa serviços'!E41 -> 104.0245802 | I33: 12.88650911 | K33: 1340.513701
A34: Total | B34: =SUM(B27:B33) -> 2170 | C34: 1 | E34: =capacidade!E28 -> 288 | F34: =SUM(F27:F33) -> 34.49989565 | I34: faturamento previsto | K34: =SUM(K27:K33) -> 736909.7441 | L34: =K34/Produção!N8 -> 0.952670453
H36: veículos último ano | I36: =Produção!N7 -> 25973.7
A38: Porto Indaiá de baixo | P38: =I36+I68+I100+I131+I162+I193 -> 87085.81667
A39: veículo | B39: Peso | C39: cumprimento | D39: largura | E39: área ocup | I39: total
A40: passeio | B40: 1500 | C40: 5 | D40: 2 | E40: =C40*D40 -> 10 | F40: 542.2912206 | G40: 542.2912206 | H40: 542.2912206 | I40: =SUM(F40:H40) -> 1626.873662 | K40: =(I40)/3 -> 542.2912206 | L40: =K40/$U$23 -> 0.2499037883
A41: caminhonete e van | B41: 2500 | C41: 6 | D41: 2.5 | E41: =C41*D41 -> 15 | F41: 27.11456103 | G41: 27.11456103 | H41: 27.11456103 | I41: =SUM(F41:H41) -> 81.34368308 | K41: =(I41)/3 -> 27.11456103 | L41: =K41/$U$23 -> 0.01249518941
A42: caminhão 3/4 microônibus | B42: 10000 | C42: 6.5 | D42: 2.5 | E42: =C42*D42 -> 16.25 | F42: 0 | G42: 0 | H42: 0 | I42: 0 | K42: 0 | L42: 0
A43: caminhão toco | B43: 10000 | C43: 14 | D43: 2.5 | E43: 35 | F43: 27.11456103 | G43: 27.11456103 | H43: 27.11456103 | I43: 81.34368308 | K43: 27.11456103 | L43: 0.01249518941
A44: caminhão truck | B44: 20000 | C44: 14 | D44: 2.5 | E44: 35 | F44: 95.44325482 | G44: 95.44325482 | H44: 95.44325482 | I44: 286.3297645 | K44: 95.44325482 | L44: 0.04398306674
A45: carreta | B45: 30000 | C45: 18.5 | D45: 2.8 | E45: 51.8 | F45: 15.18415418 | G45: 15.18415418 | H45: 15.18415418 | I45: 45.55246253 | K45: 15.18415418 | L45: 0.006997306072
A46: bitrem | B46: 50000 | C46: 30 | D46: 2.8 | E46: 84 | F46: 0 | G46: 0 | H46: 0 | I46: 0 | K46: 0 | L46: 0
A47: caminhão leiteiro | B47: 25000 | C47: 14 | D47: 2.5 | E47: 35 | F47: 61.82119914 | G47: 61.82119914 | H47: 61.82119914 | I47: 185.4635974 | K47: 61.82119914 | L47: 0.02848903186
A48: reboque pequeno e tri | B48: 20000 | C48: 5 | D48: 2 | E48: 10 | F48: 1.084582441 | G48: 1.084582441 | H48: 1.084582441 | I48: 3.253747323 | K48: 1.084582441 | L48: 0.0004998075765
A49: reboque de barco | B49: 15000 | C49: 5 | D49: 2 | E49: 10 | F49: 0 | G49: 0 | H49: 0 | I49: 0 | K49: 0 | L49: 0
A50: ônibus trab. Rural | B50: 40000 | C50: 14 | D50: 2.6 | E50: 36.4 | F50: 0 | G50: 0 | H50: 0 | I50: 0 | K50: 0 | L50: 0
A51: ônibus de carreira | B51: 40000 | C51: 14 | D51: 2.6 | E51: 36.4 | F51: 0 | G51: 0 | H51: 0 | I51: 0 | K51: 0 | L51: 0
A52: moto | B52: 200 | C52: 0.5 | D52: 2 | E52: 1 | F52: 232.1006424 | G52: 232.1006424 | H52: 232.1006424 | I52: 696.3019272 | K52: 232.1006424 | L52: 0.1069588214
A53: extra | C53: 5.5 | D53: 2.5 | E53: 13.75 | F53: 2.169164882 | G53: 2.169164882 | H53: 2.169164882 | I53: 6.507494647 | K53: 2.169164882 | L53: 0.0009996151531
A54: outros | C54: 5.5 | D54: 2.5 | E54: 13.75 | F54: 8.676659529 | G54: 8.676659529 | H54: 8.676659529 | I54: 26.02997859 | K54: 8.676659529 | L54: 0.003998460612
E55: 0 | F55: =SUM(F40:F54) -> 1013 | G55: =SUM(G40:G54) -> 1013 | H55: =SUM(H40:H54) -> 1013 | I55: =SUM(I40:I54) -> 3039 | K55: =SUM(K40:K54) -> 1013 | L55: 0.4668202765
A57: Resumo porto indaiá de baixo
A58: Tipo | B58: qtde média | C58: participação | D58: área ocup por veículo | E58: área disponível balsas x veículo | F58: capacidade por tipo de veículo | H58: tarifa | I58: qtde veículos | K58: faturamento previsto
A59: moto | B59: =K52 -> 232.1006424 | C59: =B59/$B$66 -> 0.2291220557 | D59: =D27 -> 1.4 | E59: =$E$66*C59 -> 79.44119914 | F59: =E59/D59 -> 56.74371367 | H59: ='tarifa serviços'!B35 -> 6.405159512 | I59: =C59*$I$68 -> 2784.348501 | K59: =H59*I59 -> 17834.19629
A60: pequeno | B60: =K40+K48+K49 -> 543.375803 | C60: =B60/$B$66 -> 0.5364025696 | D60: =D28 -> 10 | E60: =$E$66*C60 -> 185.9814989 | F60: =E60/D60 -> 18.59814989 | H60: ='tarifa serviços'!B36 -> 25.62063805 | I60: =C60*$I$68 -> 6518.498126 | K60: =H60*I60 -> 167008.0811
A61: médio | B61: =K41+K53+K54 -> 37.96038544 | C61: 0.0374732334 | D61: 13.2 | E61: 12.99271949 | F61: 0.9842969308 | H61: ='tarifa serviços'!B37 -> 38.43095707 | I61: 455.3841006 | K61: 17500.84682
A62: 3/4 van e microônbus | B62: =K42 -> 0 | C62: 0 | D62: 16.25 | E62: 0 | F62: 0 | H62: ='tarifa serviços'!B38 -> 51.2412761 | I62: 0 | K62: 0
A63: caminhão/ônibus | B63: =K43+K44+K47+K50+K51 -> 184.379015 | C63: 0.182012848 | D63: 36.4 | E63: 63.10749465 | F63: 1.73372238 | H63: ='tarifa serviços'!B39 -> 76.86191415 | I63: 2211.865632 | K63: 170008.2263
A64: carreta | B64: =K45 -> 15.18415418 | C64: 0.01498929336 | D64: 51.8 | E64: 5.197087794 | F64: 0.1003298802 | H64: ='tarifa serviços'!B40 -> 102.4825522 | I64: 182.1536403 | K64: 18667.56995
A65: bitrem | B65: =K46 -> 0 | C65: 0 | D65: 84 | E65: 0 | F65: 0 | H65: ='tarifa serviços'!B41 -> 128.1031902 | I65: 0 | K65: 0
A66: Total | B66: =SUM(B59:B65) -> 1013 | C66: 1 | E66: =capacidade!E29 -> 346.72 | F66: =SUM(F59:F65) -> 78.16021276 | I66: faturamento previsto | K66: =SUM(K59:K65) -> 391018.9205 | L66: =K66/Produção!N12 -> 1.981508105
H68: veículos último ano | I68: =Produção!N11 -> 12152.25
A69: Porto Indaiá de cima
A71: veículo | B71: Peso | C71: cumprimento | D71: largura | E71: área ocup | F71: Miquita | I71: total | K71: Miquita | N71: total | P71: Miquita | S71: total
A72: passeio | B72: 1500 | C72: 5 | D72: 2 | E72: =C72*D72 -> 10 | F72: 700.3388521 | I72: =SUM(F72:H72) -> 700.3388521 | K72: 700.3388521 | N72: =SUM(K72:M72) -> 700.3388521 | P72: 700.3388521 | S72: =SUM(P72:R72) -> 700.3388521 | U72: =(I72+N72+S72)/3 -> 700.3388521 | V72: =U72/$U$23 -> 0.3227367982
A73: caminhonete e van | B73: 2500 | C73: 6 | D73: 2.5 | E73: =C73*D73 -> 15 | F73: 0 | I73: =SUM(F73:H73) -> 0 | K73: 0 | N73: 0 | P73: 0 | S73: 0 | U73: =(I73+N73+S73)/3 -> 0 | V73: =U73/$U$23 -> 0
A74: caminhão 3/4 microônibus | B74: 10000 | C74: 6.5 | D74: 2.5 | E74: =C74*D74 -> 16.25 | F74: 0 | I74: 0 | K74: 0 | N74: 0 | P74: 0 | S74: 0 | U74: 0 | V74: 0
A75: caminhão toco | B75: 10000 | C75: 14 | D75: 2.5 | E75: 35 | F75: 10.25386313 | I75: 10.25386313 | K75: 10.25386313 | N75: 10.25386313 | P75: 10.25386313 | S75: 10.25386313 | U75: 10.25386313 | V75: 0.004725282551
A76: caminhão truck | B76: 20000 | C76: 14 | D76: 2.5 | E76: 35 | F76: 76.90397351 | I76: 76.90397351 | K76: 76.90397351 | N76: 76.90397351 | P76: 76.90397351 | S76: 76.90397351 | U76: 76.90397351 | V76: 0.03543961913
A77: carreta | B77: 30000 | C77: 18.5 | D77: 2.8 | E77: 51.8 | F77: 5.126931567 | I77: 5.126931567 | K77: 5.126931567 | N77: 5.126931567 | P77: 5.126931567 | S77: 5.126931567 | U77: 5.126931567 | V77: 0.002362641275
A78: bitrem | B78: 50000 | C78: 30 | D78: 2.8 | E78: 84 | F78: 0 | I78: 0 | K78: 0 | N78: 0 | P78: 0 | S78: 0 | U78: 0 | V78: 0
A79: caminhão leiteiro | B79: 25000 | C79: 14 | D79: 2.5 | E79: 35 | F79: 16.40618102 | I79: 16.40618102 | K79: 16.40618102 | N79: 16.40618102 | P79: 16.40618102 | S79: 16.40618102 | U79: 16.40618102 | V79: 0.007560452081
A80: reboque pequeno e tri | B80: 20000 | C80: 5 | D80: 2 | E80: 10 | F80: 1.025386313 | I80: 1.025386313 | K80: 1.025386313 | N80: 1.025386313 | P80: 1.025386313 | S80: 1.025386313 | U80: 1.025386313 | V80: 0.0004725282551
A81: reboque de barco | B81: 15000 | C81: 5 | D81: 2 | E81: 10 | F81: 0 | I81: 0 | K81: 0 | N81: 0 | P81: 0 | S81: 0 | U81: 0 | V81: 0
A82: ônibus trab. Rural | B82: 40000 | C82: 14 | D82: 2.6 | E82: 36.4 | F82: 0 | I82: 0 | K82: 0 | N82: 0 | P82: 0 | S82: 0 | U82: 0 | V82: 0
A83: ônibus de carreira | B83: 40000 | C83: 14 | D83: 2.6 | E83: 36.4 | F83: 0 | I83: 0 | K83: 0 | N83: 0 | P83: 0 | S83: 0 | U83: 0 | V83: 0
A84: moto | B84: 200 | C84: 0.5 | D84: 2 | E84: 1 | F84: 117.919426 | I84: 117.919426 | K84: 117.919426 | N84: 117.919426 | P84: 117.919426 | S84: 117.919426 | U84: 117.919426 | V84: 0.05434074933
A85: extra | C85: 5.5 | D85: 2.5 | E85: 13.75 | F85: 1.025386313 | I85: 1.025386313 | K85: 1.025386313 | N85: 1.025386313 | P85: 1.025386313 | S85: 1.025386313 | U85: 1.025386313 | V85: 0.0004725282551
A86: outros | C86: 5.5 | D86: 2.5 | E86: 13.75 | I86: 0 | N86: 0 | S86: 0 | U86: 0 | V86: 0
E87: 0 | F87: =SUM(F72:F86) -> 929 | H87: =SUM(H72:H86) -> 0 | I87: =SUM(I72:I86) -> 929 | K87: =SUM(K72:K86) -> 929 | M87: =SUM(M72:M86) -> 0 | N87: =SUM(N72:N86) -> 929 | P87: =SUM(P72:P86) -> 929 | R87: =SUM(R72:R86) -> 0 | S87: =SUM(S72:S86) -> 929 | U87: =SUM(U72:U86) -> 929 | V87: 0.4281105991
A89: Porto Indaiá de cima
A90: Tipo | B90: qtde média | C90: participação | D90: área ocup por veículo | E90: área disponível balsas x veículo | F90: capacidade por tipo de veículo | H90: tarifa | I90: qtde veículos | K90: faturamento previsto
A91: moto | B91: =U84 -> 117.919426 | C91: =B91/$B$98 -> 0.1269315673 | D91: =D59 -> 1.4 | E91: =$E$98*C91 -> 36.55629139 | F91: =E91/D91 -> 26.11163671 | H91: ='tarifa serviços'!C35 -> 9.163932547 | I91: =C91*$I$100 -> 1415.572572 | K91: =H91*I91 -> 12972.21156
A92: pequeno | B92: =U72+U80+U81 -> 701.3642384 | C92: =B92/$B$98 -> 0.7549668874 | D92: =D60 -> 10 | E92: =$E$98*C92 -> 217.4304636 | F92: =E92/D92 -> 21.74304636 | H92: ='tarifa serviços'!C36 -> 36.65573019 | I92: =C92*$I$100 -> 8419.57947 | K92: =H92*I92 -> 308625.8333
A93: médio | B93: =U73+U85+U86 -> 1.025386313 | C93: 0.001103752759 | D93: 13.2 | E93: 0.3178807947 | F93: 0.02408187839 | H93: ='tarifa serviços'!C37 -> 54.98359528 | I93: 12.30932671 | K93: 676.811038
A94: 3/4 van e microônbus | B94: =U74 -> 0 | C94: 0 | D94: 16.25 | E94: 0 | F94: 0 | H94: ='tarifa serviços'!C38 -> 73.31146037 | I94: 0 | K94: 0
A95: caminhão/ônibus | B95: =U75+U76+U79+U82+U83 -> 103.5640177 | C95: 0.1114790287 | D95: 36.4 | E95: 32.10596026 | F95: 0.8820318754 | H95: ='tarifa serviços'!C39 -> 109.9671906 | I95: 1243.241998 | K95: 136715.8297
A96: carreta | B96: =U77 -> 5.126931567 | C96: 0.005518763797 | D96: 51.8 | E96: 1.589403974 | F96: 0.03068347439 | H96: ='tarifa serviços'!C40 -> 146.6229207 | I96: 61.54663355 | K96: 9024.147174
A97: bitrem | B97: =U78 -> 0 | C97: 0 | D97: 84 | E97: 0 | F97: 0 | H97: ='tarifa serviços'!C41 -> 183.2786509 | I97: 0 | K97: 0
A98: Total | B98: =SUM(B91:B97) -> 929 | C98: 1 | E98: =capacidade!E30 -> 288 | F98: =SUM(F91:F97) -> 48.79148029 | I98: faturamento previsto | K98: =SUM(K91:K97) -> 468014.8328 | L98: =K98/Produção!N16 -> 2.325678216
H100: veículos último ano | I100: =Produção!N15 -> 11152.25
A101: =capacidade!A9 -> BALSA EXTREMA
A102: veículo | B102: Peso | C102: cumprimento | D102: largura | E102: área ocup | I102: total
A103: passeio | B103: 1500 | C103: 5 | D103: 2 | E103: =C103*D103 -> 10 | F103: 253 | G103: 253 | H103: 253 | I103: =SUM(F103:H103) -> 759 | K103: =(I103)/3 -> 253 | L103: =K103/$U$23 -> 0.1165898618
A104: caminhonete e van | B104: 2500 | C104: 6 | D104: 2.5 | E104: =C104*D104 -> 15 | I104: =SUM(F104:H104) -> 0 | K104: =(I104)/3 -> 0 | L104: =K104/$U$23 -> 0
A105: caminhão 3/4 microônibus | B105: 10000 | C105: 6.5 | D105: 2.5 | E105: =C105*D105 -> 16.25 | F105: 38 | G105: 38 | H105: 38 | I105: 114 | K105: 38 | L105: 0.01751152074
A106: caminhão toco | B106: 10000 | C106: 14 | D106: 2.5 | E106: 35 | I106: 0 | K106: 0 | L106: 0
A107: caminhão truck | B107: 20000 | C107: 14 | D107: 2.5 | E107: 35 | F107: 23 | G107: 23 | H107: 23 | I107: 69 | K107: 23 | L107: 0.01059907834
A108: carreta | B108: 30000 | C108: 18.5 | D108: 2.8 | E108: 51.8 | F108: 4 | G108: 4 | H108: 4 | I108: 12 | K108: 4 | L108: 0.001843317972
A109: bitrem | B109: 50000 | C109: 30 | D109: 2.8 | E109: 84 | F109: 0 | G109: 0 | H109: 0 | I109: 0 | K109: 0 | L109: 0
A110: caminhão leiteiro | B110: 25000 | C110: 14 | D110: 2.5 | E110: 35 | F110: 0 | G110: 0 | H110: 0 | I110: 0 | K110: 0 | L110: 0
A111: reboque pequeno e tri | B111: 20000 | C111: 5 | D111: 2 | E111: 10 | F111: 92 | G111: 92 | H111: 92 | I111: 276 | K111: 92 | L111: 0.04239631336
A112: reboque de barco | B112: 15000 | C112: 5 | D112: 2 | E112: 10 | F112: 0 | G112: 0 | H112: 0 | I112: 0 | K112: 0 | L112: 0
A113: ônibus trab. Rural | B113: 40000 | C113: 14 | D113: 2.6 | E113: 36.4 | F113: 0 | G113: 0 | H113: 0 | I113: 0 | K113: 0 | L113: 0
A114: ônibus de carreira | B114: 40000 | C114: 14 | D114: 2.6 | E114: 36.4 | F114: 105 | G114: 105 | H114: 105 | I114: 315 | K114: 105 | L114: 0.04838709677
A115: moto | B115: 200 | C115: 0.5 | D115: 2 | E115: 1 | F115: 16 | G115: 16 | H115: 16 | I115: 48 | K115: 16 | L115: 0.007373271889
A116: extra | C116: 5.5 | D116: 2.5 | E116: 13.75 | F116: 0 | G116: 0 | H116: 0 | I116: 0 | K116: 0 | L116: 0
A117: outros | C117: 5.5 | D117: 2.5 | E117: 13.75 | F117: 0 | G117: 0 | H117: 0 | I117: 0 | K117: 0 | L117: 0
E118: 0 | F118: =SUM(F103:F117) -> 531 | G118: =SUM(G103:G117) -> 531 | H118: =SUM(H103:H117) -> 531 | I118: =SUM(I103:I117) -> 1593 | K118: =SUM(K103:K117) -> 531 | L118: 0.2447004608
A120: =A101 -> BALSA EXTREMA | B120: (Não será objeto de licitação)
A121: Tipo | B121: qtde média | C121: participação | D121: área ocup por veículo | E121: área disponível balsas x veículo | F121: capacidade por tipo de veículo | H121: tarifa | I121: qtde veículos | K121: faturamento previsto
A122: moto | B122: =K115 -> 16 | C122: 0.03 | D122: =E115 -> 1 | E122: =$E$34*C122 -> 8.64 | F122: =E122/D122 -> 8.64 | H122: 0 | I122: 0 | K122: =H122*I122 -> 0
A123: pequeno | B123: =K103+K111+K112 -> 345 | C123: =B123/$B$129 -> 0.6497175141 | D123: =E116 -> 13.75 | E123: 187.1186441 | F123: =E123/D123 -> 13.60862866 | H123: 0 | I123: 0 | K123: =H123*I123 -> 0
A124: médio | B124: =K104+K116+K117 -> 0 | C124: =B124/$B$129 -> 0 | D124: 13.75 | E124: 0 | F124: 0 | H124: 0 | I124: 0 | K124: 0
A125: 3/4 van e microônbus | B125: =K105 -> 38 | C125: 0.07156308851 | D125: 1 | E125: 20.61016949 | F125: =E125/D125 -> 20.61016949 | H125: 0 | I125: 0 | K125: 0
A126: caminhão/ônibus | B126: =K106+K107+K110+K113+K114 -> 128 | C126: 0.2410546139 | D126: 1 | E126: 69.42372881 | F126: 69.42372881 | H126: 0 | I126: 0 | K126: 0
A127: carreta | B127: =K108 -> 4 | C127: 0.007532956685 | D127: 1 | E127: 2.169491525 | F127: 2.169491525 | H127: 0 | I127: 0 | K127: 0
A128: bitrem | B128: =K109 -> 0 | C128: 0 | D128: 1 | E128: 0 | F128: =E128/D128 -> 0 | H128: 0 | I128: 0 | K128: 0
A129: Total | B129: =SUM(B122:B128) -> 531 | C129: 1 | E129: =capacidade!#REF! ->  | F129: =SUM(F122:F128) -> 114.4520185 | H129: 0 | I129: faturamento previsto | K129: =SUM(K122:K128) -> 0 | L129: 0
H131: veículos último ano | I131: 0
A132: =capacidade!A31 -> SÃO VINCENTE
A133: veículo | B133: Peso | C133: cumprimento | D133: largura | E133: área ocup | I133: total
A134: passeio | B134: 1500 | C134: 5 | D134: 2 | E134: =C134*D134 -> 10 | F134: 454.6666667 | G134: 454.6666667 | H134: 454.6666667 | I134: =SUM(F134:H134) -> 1364 | K134: =(I134)/3 -> 454.6666667 | L134: =K134/$U$23 -> 0.2095238095
A135: caminhonete e van | B135: 2500 | C135: 6 | D135: 2.5 | E135: =C135*D135 -> 15 | F135: 0 | G135: 0 | H135: 0 | I135: =SUM(F135:H135) -> 0 | K135: =(I135)/3 -> 0 | L135: =K135/$U$23 -> 0
A136: caminhão 3/4 microônibus | B136: 10000 | C136: 6.5 | D136: 2.5 | E136: =C136*D136 -> 16.25 | F136: 17.33333333 | G136: 17.33333333 | H136: 17.33333333 | I136: 52 | K136: 17.33333333 | L136: 0.007987711214
A137: caminhão toco | B137: 10000 | C137: 14 | D137: 2.5 | E137: 35 | F137: 0 | G137: 0 | H137: 0 | I137: 0 | K137: 0 | L137: 0
A138: caminhão truck | B138: 20000 | C138: 14 | D138: 2.5 | E138: 35 | F138: 20 | G138: 20 | H138: 20 | I138: 60 | K138: 20 | L138: 0.009216589862
A139: carreta | B139: 30000 | C139: 18.5 | D139: 2.8 | E139: 51.8 | F139: 1.333333333 | G139: 1.333333333 | H139: 1.333333333 | I139: 4 | K139: 1.333333333 | L139: 0.0006144393241
A140: bitrem | B140: 50000 | C140: 30 | D140: 2.8 | E140: 84 | F140: 0 | G140: 0 | H140: 0 | I140: 0 | K140: 0 | L140: 0
A141: caminhão leiteiro | B141: 25000 | C141: 14 | D141: 2.5 | E141: 35 | F141: 0 | G141: 0 | H141: 0 | I141: 0 | K141: 0 | L141: 0
A142: reboque pequeno e tri | B142: 20000 | C142: 5 | D142: 2 | E142: 10 | F142: 12 | G142: 12 | H142: 12 | I142: 36 | K142: 12 | L142: 0.005529953917
A143: reboque de barco | B143: 15000 | C143: 5 | D143: 2 | E143: 10 | F143: 0 | G143: 0 | H143: 0 | I143: 0 | K143: 0 | L143: 0
A144: ônibus trab. Rural | B144: 40000 | C144: 14 | D144: 2.6 | E144: 36.4 | F144: 12 | G144: 12 | H144: 12 | I144: 36 | K144: 12 | L144: 0.005529953917
A145: ônibus de carreira | B145: 40000 | C145: 14 | D145: 2.6 | E145: 36.4 | F145: 0 | G145: 0 | H145: 0 | I145: 0 | K145: 0 | L145: 0
A146: moto | B146: 200 | C146: 0.5 | D146: 2 | E146: 1 | F146: 41.33333333 | G146: 41.33333333 | H146: 41.33333333 | I146: 124 | K146: 41.33333333 | L146: 0.01904761905
A147: extra | C147: 5.5 | D147: 2.5 | E147: 13.75 | F147: 1.333333333 | G147: 1.333333333 | H147: 1.333333333 | I147: 4 | K147: 1.333333333 | L147: 0.0006144393241
A148: outros | C148: 5.5 | D148: 2.5 | E148: 13.75 | I148: 0 | K148: 0 | L148: 0
E149: 0 | F149: =SUM(F134:F148) -> 560 | G149: =SUM(G134:G148) -> 560 | H149: =SUM(H134:H148) -> 560 | I149: =SUM(I134:I148) -> 1680 | K149: =SUM(K134:K148) -> 560 | L149: 0.2580645161
A151: =A132 -> SÃO VINCENTE
A152: Tipo | B152: qtde média | C152: participação | D152: área ocup por veículo | E152: área disponível balsas x veículo | F152: capacidade por tipo de veículo | H152: tarifa | I152: qtde veículos | K152: faturamento previsto
A153: moto | B153: =K146 -> 41.33333333 | C153: =B153/$B$160 -> 0.07380952381 | D153: =D122 -> 1 | E153: =$E$160*C153 -> 15.83893333 | F153: =E153/D153 -> 15.83893333 | H153: ='tarifa serviços'!D35 -> 4.714638168 | I153: =C153*$I$162 -> 496.2706349 | K153: =H153*I153 -> 2339.736477
A154: pequeno | B154: =K134+K142+K143 -> 466.6666667 | C154: =B154/$B$160 -> 0.8333333333 | D154: =D123 -> 13.75 | E154: =$E$160*C154 -> 178.8266667 | F154: =E154/D154 -> 13.00557576 | H154: ='tarifa serviços'!D36 -> 18.85855267 | I154: 5603.055556 | K154: =H154*I154 -> 105665.5183
A155: médio | B155: =K135+K147+K148 -> 1.333333333 | C155: 0.002380952381 | D155: 13.75 | E155: 0.5109333333 | F155: 0.03715878788 | H155: ='tarifa serviços'!D37 -> 28.28782901 | I155: 16.00873016 | K155: 452.8522213
A156: 3/4 van e microônbus | B156: =K136 -> 17.33333333 | C156: 0.03095238095 | D156: 1 | E156: 6.642133333 | F156: 6.642133333 | H156: ='tarifa serviços'!D38 -> 37.71710534 | I156: 208.1134921 | K156: 7849.438503
A157: caminhão/ônibus | B157: =K137+K138+K141+K144+K145 -> 32 | C157: 0.05714285714 | D157: 1 | E157: 12.2624 | F157: 12.2624 | H157: ='tarifa serviços'!D39 -> 56.57565801 | I157: 384.2095238 | K157: 21736.90662
A158: carreta | B158: =K139 -> 1.333333333 | C158: 0.002380952381 | D158: 1 | E158: 0.5109333333 | F158: 0.5109333333 | H158: ='tarifa serviços'!D40 -> 75.43421068 | I158: 16.00873016 | K158: 1207.605924
A159: bitrem | B159: =K140 -> 0 | C159: 0 | D159: 1 | E159: 0 | F159: 0 | H159: ='tarifa serviços'!D41 -> 94.29276335 | I159: 0 | K159: 0
A160: Total | B160: =SUM(B153:B159) -> 560 | C160: 1 | E160: =capacidade!E31 -> 214.592 | F160: =SUM(F153:F159) -> 48.29713455 | I160: faturamento previsto | K160: =SUM(K153:K159) -> 139252.0581 | L160: =K160/Produção!N21 -> 1.177089635
H162: veículos último ano | I162: =Produção!N20 -> 6723.666667
A163: =capacidade!A32 -> MELANCIAS
A164: veículo | B164: Peso | C164: cumprimento | D164: largura | E164: área ocup | I164: total
A165: passeio | B165: 1500 | C165: 5 | D165: 2 | E165: =C165*D165 -> 10 | F165: 1474.314298 | G165: 1474.314298 | H165: 1474.314298 | I165: =SUM(F165:H165) -> 4422.942893 | K165: =(I165)/3 -> 1474.314298 | L165: =K165/($U$23) -> 0.6794075104
A166: caminhonete e van | B166: 2500 | C166: 6 | D166: 2.5 | E166: =C166*D166 -> 15 | F166: 401.8663887 | G166: 401.8663887 | H166: 401.8663887 | I166: =SUM(F166:H166) -> 1205.599166 | K166: =(I166)/3 -> 401.8663887 | L166: =K166/$U$23 -> 0.1851918842
A167: caminhão 3/4 microônibus | B167: 10000 | C167: 6.5 | D167: 2.5 | E167: =C167*D167 -> 16.25 | F167: 224.1365353 | G167: 224.1365353 | H167: 224.1365353 | I167: 672.4096059 | K167: 224.1365353 | L167: 0.1032887259
A168: caminhão toco | B168: 10000 | C168: 14 | D168: 2.5 | E168: 35 | F168: 10.39743075 | G168: 10.39743075 | H168: 10.39743075 | I168: 31.19229225 | K168: 10.39743075 | L168: 0.004791442742
A169: caminhão truck | B169: 20000 | C169: 14 | D169: 2.5 | E169: 35 | F169: 189.9046757 | G169: 189.9046757 | H169: 189.9046757 | I169: 569.7140272 | K169: 189.9046757 | L169: 0.08751367546
A170: carreta | B170: 30000 | C170: 18.5 | D170: 2.8 | E170: 51.8 | F170: 58.20905908 | G170: 58.20905908 | H170: 58.20905908 | I170: 174.6271772 | K170: 58.20905908 | L170: 0.02682445119
A171: bitrem | B171: 50000 | C171: 30 | D171: 2.8 | E171: 84 | F171: 1.119404982 | G171: 1.119404982 | H171: 1.119404982 | I171: 3.358214947 | K171: 1.119404982 | L171: 0.0005158548306
A172: caminhão leiteiro | B172: 25000 | C172: 14 | D172: 2.5 | E172: 35 | F172: 0 | G172: 0 | H172: 0 | I172: 0 | K172: 0 | L172: 0
A173: reboque pequeno e tri | B173: 20000 | C173: 5 | D173: 2 | E173: 10 | F173: 29.9849488 | G173: 29.9849488 | H173: 29.9849488 | I173: 89.9548464 | K173: 29.9849488 | L173: 0.01381794876
A174: reboque de barco | B174: 15000 | C174: 5 | D174: 2 | E174: 10 | F174: 11.19404982 | G174: 11.19404982 | H174: 11.19404982 | I174: 33.58214947 | K174: 11.19404982 | L174: 0.005158548306
A175: ônibus trab. Rural | B175: 40000 | C175: 14 | D175: 2.6 | E175: 36.4 | F175: 16.47242711 | G175: 16.47242711 | H175: 16.47242711 | I175: 49.41728132 | K175: 16.47242711 | L175: 0.007590980233
A176: ônibus de carreira | B176: 40000 | C176: 14 | D176: 2.6 | E176: 36.4 | F176: 0 | G176: 0 | H176: 0 | I176: 0 | K176: 0 | L176: 0
A177: moto | B177: 200 | C177: 0.5 | D177: 2 | E177: 1 | F177: 172.4007821 | G177: 172.4007821 | H177: 172.4007821 | I177: 517.2023464 | K177: 172.4007821 | L177: 0.07944736503
A178: extra | C178: 5.5 | D178: 2.5 | E178: 13.75 | F178: 0 | G178: 0 | H178: 0 | I178: 0 | K178: 0 | L178: 0
A179: outros | C179: 5.5 | D179: 2.5 | E179: 13.75 | F179: 0 | G179: 0 | H179: 0 | I179: 0 | K179: 0 | L179: 0
E180: 0 | F180: =SUM(F165:F179) -> 2590 | G180: =SUM(G165:G179) -> 2590 | H180: =SUM(H165:H179) -> 2590 | I180: =SUM(I165:I179) -> 7770 | K180: =SUM(K165:K179) -> 2590 | L180: 1.193548387
A182: =A163 -> MELANCIAS
A183: Tipo | B183: qtde média | C183: participação | D183: área ocup por veículo | E183: área disponível balsas x veículo | F183: capacidade por tipo de veículo | H183: tarifa | I183: qtde veículos | K183: faturamento previsto
A184: moto | B184: =K177 -> 172.4007821 | C184: =B184/$B$191 -> 0.06656400854 | D184: =D153 -> 1 | E184: =$E$191*C184 -> 39.53902107 | F184: =E184/D184 -> 39.53902107 | H184: ='tarifa serviços'!E35 -> 5.201229012 | I184: =C184*$I$193 -> 2069.072313 | K184: =H184*I184 -> 10761.71894
A185: pequeno | B185: =K165+K173+K174 -> 1515.493296 | C185: =B185/$B$191 -> 0.5851325468 | D185: =D154 -> 13.75 | E185: =$E$191*C185 -> 347.5687328 | F185: =E185/D185 -> 25.27772602 | H185: ='tarifa serviços'!E36 -> 20.80491605 | I185: =C185*$I$193 -> 18188.23083 | K185: =H185*I185 -> 378404.6155
A186: médio | B186: =K166+K178+K179 -> 401.8663887 | C186: 0.1551607678 | D186: 13.75 | E186: 92.16549608 | F186: 6.70294517 | H186: ='tarifa serviços'!E37 -> 31.20737407 | I186: 4823.009549 | K186: 150513.4631
A187: 3/4 van e microônbus | B187: =K167 -> 224.1365353 | C187: 0.08653920282 | D187: 1 | E187: 51.40428648 | F187: 51.40428648 | H187: ='tarifa serviços'!E38 -> 41.6098321 | I187: 2689.980254 | K187: 111929.6267
A188: caminhão/ônibus | B188: =K168+K169+K172+K175+K176 -> 216.7745336 | C188: 0.08369673112 | D188: 1 | E188: 49.71585828 | F188: 49.71585828 | H188: ='tarifa serviços'!E39 -> 62.41474815 | I188: 2601.625005 | K188: 162379.7695
A189: carreta | B189: =K170 -> 58.20905908 | C189: 0.02247454019 | D189: 1 | E189: 13.34987687 | F189: 13.34987687 | H189: ='tarifa serviços'!E40 -> 83.21966419 | I189: 698.5974834 | K189: 58137.04798
A190: bitrem | B190: =K171 -> 1.119404982 | C190: 0.0004322026959 | D190: 1 | E190: 0.2567284013 | F190: 0.2567284013 | H190: ='tarifa serviços'!E41 -> 104.0245802 | I190: 13.43456699 | K190: 1397.525192
A191: Total | B191: =SUM(B184:B190) -> 2590 | C191: 1 | E191: =capacidade!E32 -> 594 | F191: =SUM(F184:F190) -> 186.2464423 | I191: faturamento previsto | K191: =SUM(K184:K190) -> 873523.7669 | L191: =K191/Produção!N25 -> 6.257187901
H193: veículos último ano | I193: =Produção!N24+Produção!N7 -> 31083.95
A198: geral
A199: Tipo | B199: qtde média | C199: participação
A200: moto | B200: =B27+B59+B91+B122+B153+B184 -> 703.5651292 | C200: =B200/$B$207 -> 0.09028167961
A201: pequeno | B201: =B28+B60+B92+B123+B154+B185 -> 4830.465178 | C201: =B201/$B$207 -> 0.6198466802
A202: médio | B202: 834.6909664 | C202: 0.1071077847
A203: 3/4 van e microônbus | B203: 442.0390229 | C203: 0.05672257447
A204: caminhão/ônibus | B204: 840.2061235 | C204: 0.1078154913
A205: carreta | B205: 139.8375578 | C205: 0.01794399561
A206: bitrem | B206: 2.196021898 | C206: 0.0002817941611
A207: Total | B207: =SUM(B200:B206) -> 7793 | C207: 1
